{"text_format":"3","workbook":"xlsx","n_sheets":10,"sheets":["Copyright","Empieza aquí","Introducción","Vencimientos","Material relacionado","Anexo","F420","Comentarios","Instructivo","Listado completo de archivos"],"not_rendered":{"images":25,"macros":1,"defined_names":5},"read":"whole","date_system":"1900"}

{"sheet":"Copyright","index":0,"n_rows":16,"n_cols":2,"rows_kept":16,"merged":[[1,4,1,7],[3,1,3,7],[4,1,4,7],[5,1,5,7],[6,1,6,7],[7,1,7,7],[9,2,9,6],[10,1,10,7],[11,1,11,7],[15,1,15,9]]}
{"$rows_empty":15}
[null,"https://actualicese.com/plantilla-en-excel-del-formulario-420-ag-2024-declaracion-anual-del-impuesto-al-patrimonio/"]

{"sheet":"Empieza aquí","index":1,"n_rows":1,"n_cols":1,"rows_kept":1,"merged":[[9,1,9,9],[11,1,11,9],[12,1,12,9],[14,1,14,9],[15,1,15,9],[21,1,21,5],[21,7,21,9],[23,1,23,5],[23,7,24,9],[24,1,24,5],[25,1,26,5],[25,7,27,9],[27,1,28,5],[28,7,28,9],[29,1,30,5],[29,7,29,9],[30,7,30,9]]}
[" "]

{"sheet":"Introducción","index":2,"n_rows":61,"n_cols":2,"rows_kept":61,"merged":[[5,1,7,8],[10,1,10,8],[11,1,11,8],[12,1,12,8],[13,1,13,8],[15,1,15,8],[16,1,16,8],[17,1,17,8],[19,1,19,8],[20,1,20,8],[21,1,21,8],[22,1,22,8],[23,1,23,8],[25,1,25,8],[27,1,27,8],[29,1,29,8],[31,1,31,8],[33,1,33,8],[35,1,35,8],[37,1,37,8],[39,1,39,8],[41,1,41,8],[42,1,42,8],[44,1,44,8],[46,1,46,8],[48,1,48,8],[50,1,50,8],[52,1,52,8],[53,1,53,8],[54,1,54,8],[55,1,55,8],[56,1,56,8],[57,1,57,8],[58,1,58,8],[60,1,60,8],[61,1,61,8]]}
[]
[]
[]
[]
[]
[null,"Plantilla del formulario 420 AG 2024: declaración anual del impuesto al patrimonio "]
[]
[]
[null,"Fecha de actualización: abril 24 de 2024"]
[]
[null,"La Resolución Dian 000071 de 2023 prescribió el formulario 420 para presentar la declaración del impuesto al patrimonio del año gravable 2023 y siguientes."]
[null,"Este formato en Excel te facilita la liquidación de este impuesto, que deberá ser presentado cuando un contribuyente llegue a poseer en enero 1 de cada año un patrimonio líquido declarable al Gobierno Colombiano igual o superior a 72.000 UVT ($3.388.680.000 en el 2024)."]
[]
[null,"Responsables del impuesto al patrimonio (sujetos pasivos)"]
[]
[null,"A través de los artículos 35 a 41 de la Ley de reforma tributaria 2277 de diciembre 13 de 2022"]
[null,"se agregaron los artículos 292-3, 294-3, 295-3, 296-3 y 297-3 al ET. También se modificaron los artículos 298-2 y 298-8 del mismo estatuto, creando de esa forma el impuesto al patrimonio de carácter permanente (responsabilidad 03 en el RUT)."]
[null,"Este impuesto recae sobre los sujetos pasivos que se mencionan en el artículo 292-3 del ET (adicionado por el artículo 35 de la Ley 2277 de 2022), a saber:"]
[]
[null,"1. Personas naturales y/o sucesiones ilíquidas que sean contribuyentes del impuesto de renta y complementario o de regímenes sustitutivos del impuesto sobre la renta."]
[null,"2. Personas naturales, nacionales o extranjeras, que no tengan residencia en el país, respecto de su patrimonio poseído directamente en el país, salvo las excepciones previstas en los tratados internacionales y en el derecho interno."]
[null,"3. Personas naturales, nacionales o extranjeras, que no tengan residencia en el país, respecto de su patrimonio poseído indirectamente a través de establecimientos permanentes en el país, salvo las excepciones previstas en los tratados internacionales y en el derecho interno. Nota: el deber formal de declarar estará en cabeza del establecimiento permanente."]
[null,"4. Sucesiones ilíquidas de causantes sin residencia en el país al momento de su muerte respecto de su patrimonio poseído en el país."]
[null,"5. Sociedades o entidades extranjeras que no sean declarantes del impuesto sobre la renta en el país, y que posean bienes ubicados en Colombia diferentes a acciones, cuentas por cobrar y/o inversiones de portafolio de conformidad con el artículo 2.17.2.2.1.2 del Decreto 1068 de 2015 y el 18-1 del ET, como inmuebles, yates, botes, lanchas, obras de arte, aeronaves o derechos mineros o petroleros. Nota: para que apliquen las exclusiones aquí consagradas, las acciones, cuentas por cobrar, inversiones de portafolio y contratos de arrendamiento financiero deben cumplir en debida forma con las obligaciones previstas en el régimen cambiario vigente en Colombia."]
[]
[null,"Hecho generador del impuesto"]
[]
[null,"Según el artículo 36 de la Ley 2277 de 2022, que adicionó el artículo 294-3 al ET, el impuesto al patrimonio se genera si estos sujetos pasivos poseen al primero (1) de enero de cada año, un patrimonio líquido cuyo valor sea igual o superior a setenta y dos mil (72.000) UVT, calculado tomando el total del patrimonio bruto del contribuyente menos las deudas a cargo vigentes en esa fecha."]
[]
[null,"Liquidación del impuesto al patrimonio"]
[]
[null,"El contribuyente deberá tomar su patrimonio líquido a enero 1 y liquidar sobre este el respectivo impuesto al patrimonio, utilizando las tablas fijadas en el artículo 296-3 del ET."]
[]
[null,"Hay que tener en cuenta que la tarifa del 1,5 % solo aplicará de manera temporal desde el año 2023 y hasta el 2026. A partir del año 2027, desaparecerá ese último rango."]
[]
[null,"Además, en el caso de las personas naturales declarantes del impuesto al patrimonio, se excluyen de dicho impuesto las primeras 12.000 UVT del valor patrimonial de su casa o apartamento de habitación. Esta exclusión aplica únicamente respecto a la casa o apartamento en donde efectivamente viva la persona natural la mayor parte del tiempo, por lo que no quedan cobijados por esta exclusión los inmuebles de recreo, segundas viviendas u otro inmueble que no cumpla con la condición de ser el lugar en donde habita la persona natural (ver el artículo 295-3 del ET, adicionado por el artículo 37 de la Ley 2277 de 2022)."]
[]
[null,"Para determinar la base gravable del impuesto al patrimonio, se seguirán las siguientes reglas:\n\n1. El valor de las acciones o cuotas de interés social de sociedades o entidades nacionales que no coticen en la Bolsa de Valores de Colombia o una de reconocida idoneidad internacional según lo determine la Dian, corresponde al costo fiscal determinado conforme a lo previsto en el titulo II del libro I del ET, actualizado anualmente en los términos del artículo 73 del mismo estatuto para las acciones o cuotas de interés social, a partir de su adquisición. Las acciones o cuotas de interés social adquiridas antes del primero (1) de enero de 2006, se entenderán adquiridas en el año 2006.\n\nSi el valor calculado conforme a la anterior regla es mayor al valor intrínseco de las acciones, se tomará este último.\n\nEl valor intrínseco se calculará dividiendo el patrimonio contable a primero (1) de enero de cada año, entre las acciones o cuotas de interés social en circulación.\n\n2. En el caso de las acciones o cuotas de interés social de sociedades o entidades nacionales que coticen en la Bolsa de Valores de Colombia o una de reconocida idoneidad internacional según lo determine la Dian, el valor corresponderá al promedio de cotización del mercado del año o fracción de año, inmediatamente anterior a la fecha de causación del impuesto.\n\nEl tratamiento aquí previsto (en estos dos numerales) será aplicable para determinar el costo fiscal de los derechos en vehículos de inversión, como fiducias mercantiles o fondos de inversión colectiva, cuyos activos correspondan a acciones o cuotas de interés social de sociedades o entidades nacionales, de acuerdo con el artículo 271-1 del ET."]
[]
[null,"3. Las participaciones en fundaciones de interés privado, trusts, seguro con componente de ahorro material, fondos de inversión o cualquier otro negocio fiduciario en el exterior, se asimilarán a derechos fiduciarios y en este caso se aplicará lo dispuesto en los artículos 271-1 y 288 del ET.\n\nNota: lo previsto para la determinación de la base gravable solo tiene efectos en el impuesto al patrimonio y no podrá ser aplicado a otros impuestos."]
[]
[null,"Recuerda…"]
[null,"Cuando se trate de acciones o cuotas de interés social de sociedades o entidades nacionales que no coticen en la Bolsa de Valores de Colombia o una de reconocida idoneidad internacional, según lo determine la Dian, y que cumplan la totalidad de los siguientes requisitos, el valor de dichas acciones o cuotas de interés social será al costo fiscal:\n\n1. Que la sociedad sea una sociedad emergente innovadora, es decir, que su constitución no sea mayor a 4 años y que su propósito sea el desarrollo de un negocio innovador y escalable e involucre dentro de su actividad económica principal el uso intensivo de tecnologías digitales o la ejecución de programas de I+D+i, con concepto favorable del Ministerio de Comercio, Industria y Turismo o del Ministerio de Ciencia, Tecnología e Innovación.\n\n2. Que la sociedad haya recibido al menos 105.000 UVT de inversión en el capital durante el año gravable en curso o en los 4 años gravables inmediatamente anteriores, a cambio de al menos el 5 % de la participación en el capital de la sociedad.\n\n3. Que la sociedad no haya tenido renta líquida gravable al 31 de diciembre del año gravable inmediatamente anterior.\n\n4. Que el costo fiscal de las acciones de uno o varios de los accionistas no fundadores o iniciales de la sociedad sea por lo menos 3 veces su valor intrínseco con base en el patrimonio líquido de la sociedad al 31 de diciembre del año gravable inmediatamente anterior.\n\nEl anterior tratamiento durará por un término de 4 años desde el momento de recibir la inversión, con el cumplimiento de todos los requisitos antes mencionados."]
[]
[null,"Patrimonio que se debe reportar"]
[]
[null,"Cabe anotar que las personas naturales y/o sucesiones ilíquidas que califiquen como residentes están obligados a denunciar tanto el patrimonio poseído en Colombia como el poseído en el exterior. En cambio, las sociedades que no sean nacionales, e igualmente las personas naturales y/o sucesiones ilíquidas que no sean residentes, solo declaran los patrimonios poseídos en Colombia (ver los artículos 9, 10, 12, 12-1, 20, 20-1, 20-2 y 261 a 266 del ET)."]
[]
[null,"Formulario 420 para la declaración del impuesto al patrimonio AG 2024"]
[]
[null,"Con base en todo lo explicado hasta el momento, y tomando como referencia la Resolución 000071 de mayo 4 de 2023, la cual prescribió el formulario 420 para presentar la declaración del impuesto al patrimonio por el AG 2023 y siguientes, en este archivo de Excel compartimos las siguientes hojas de cálculo:"]
[]
[null,"- \"Vencimientos\": incluye los plazos expuestos en el artículo 1.6.1.13.2.53 del DUT 1625 de 2016 (modificado por el artículo 1 del Decreto 2229 de 2023) para la declaración y el pago del impuesto al patrimonio en 2024."]
[null,"- \"Material relacionado\": compartimos una serie de editoriales y respuestas que contienen directrices sobre la depuración y novedades de este impuesto."]
[null,"- \"Anexo\": se puede verificar cuál es la depuración del patrimonio líquido poseído, y las exclusiones y descuentos permitidos para hallar la base gravable para liquidar el impuesto al patrimonio al 1 de enero de 2024."]
[null,"- \"F420\": contiene el borrador del formulario 420 debidamente formulado para presentar la declaración del impuesto al patrimonio ante la Dian."]
[null,"- \"Comentarios\": corresponde a la información expuesta por la Dian y otros comentarios de Actualícese para el diligenciamiento del formulario 420 para la declaración del impuesto al patrimonio."]
[null,"- \"Instructivo\": información relacionada con las instrucciones compartidas por la Dian en el formulario PDF 420."]
[null,"Todas las funcionalidades de este formato son compatibles con los sistemas operativos Windows y iOS, con excepción del botón incluido para descargar el PDF de la hoja \"F420\" que no es compatible con el sistema iOS."]
[]
[null,"Nota: esta es una plantilla elaborada con base en el diseño del formulario emitido por la Dian, pero Actualícese no entrega esta guía en representación de dicha entidad. El diseño, los datos, comentarios o interpretaciones bajo los cuales se elaboró esta plantilla son a título de guía. Será el contribuyente quien deba atender las instrucciones de la Dian, estudiar las normas requeridas, preparar y emitir la información a que haya lugar. Actualícese no se hace responsable de las interpretaciones, operaciones o información derivadas del uso de esta herramienta."]

{"sheet":"Vencimientos","index":3,"n_rows":35,"n_cols":8,"rows_kept":35,"merged":[[5,1,7,8],[11,1,11,8],[12,1,12,8],[14,1,14,8],[18,1,18,2],[18,3,18,4],[18,5,18,6],[18,7,18,8],[19,1,19,2],[19,3,19,4],[19,5,19,6],[19,7,19,8],[20,1,20,2],[20,3,20,4],[20,5,20,6],[20,7,20,8],[21,1,21,2],[21,3,21,4],[21,5,21,6],[21,7,21,8],[22,1,22,2],[22,3,22,4],[22,5,22,6],[22,7,22,8],[23,1,23,2],[23,3,23,4],[23,5,23,6],[23,7,23,8],[25,1,25,8],[29,1,29,4],[29,5,29,8],[30,1,30,4],[30,5,30,8],[32,1,32,8],[34,1,34,8]]}
[]
[]
[]
[]
[]
[null,"Plazos para la declaración y pago del impuesto al patrimonio en 2024"]
[]
[]
[]
[null,{"$f":"+Introducción!B9","v":"Fecha de actualización: abril 24 de 2024"}]
[]
[null,"El impuesto al patrimonio se genera por la posesión del mismo al 1 de enero de 2024 por un valor igual o superior a 72.000 UVT."]
[null,"Para consultar los plazos actualizados de este impuesto puedes ingresar a nuestros calendarios:"]
[]
[null,"Tenga en cuenta que de acuerdo con el artículo 1.6.1.13.2.53 del Decreto 1625 de 2016, modificado por el artículo 1 del Decreto 2229 de 2023, los vencimientos para el impuesto al patrimonio en 2024 son los siguientes:"]
[]
[null,"Declaración y pago 1ª cuota*"]
[]
[null,"Último dígito del NIT",null,"Hasta el día",null,"Último dígito del NIT",null,"Hasta el día"]
[null,1,null,"10 de mayo",null,6,null,"20 de mayo"]
[null,2,null,"14 de mayo",null,7,null,"21 de mayo"]
[null,3,null,"15 de mayo",null,8,null,"22 de mayo"]
[null,4,null,"16 de mayo",null,9,null,"23 de mayo"]
[null,5,null,"17 de mayo",null,0,null,"24 de mayo"]
[]
[null,"*El valor de la primera cuota será del 50 % del impuesto calculado conforme a lo dispuesto en los artículos 292-3, 295-3 y 296-3 del ET"]
[]
[null,"Pago 2ª cuota**"]
[]
[null,"Último dígito del NIT",{"$nulls":3},"Hasta el día"]
[null,"Todos",{"$nulls":3},"13 de septiembre"]
[]
[null,"**El pago de la segunda cuota corresponderá al valor del impuesto al patrimonio declarado, restándole lo pagado en la primera cuota."]
[]
[null,"Para tener en cuenta: los responsables del impuesto al patrimonio deberán presentar la declaración del mismo cuando al 1 de enero de cada año el patrimonio líquido (activos menos pasivos) que se deba informar al Gobierno colombiano (patrimonio poseído en Colombia, más el poseído en el exterior para los residentes, y solo el patrimonio poseído en Colombia para los no residentes; ver los artículos 10 y 261 a 266 del ET) supera las 72.000 UVT ($3.388.680.000 por el año gravable 2024)."]

{"sheet":"Material relacionado","index":4,"n_rows":37,"n_cols":2,"rows_kept":37,"merged":[[5,1,7,8],[11,1,11,8],[12,1,12,8],[12,10,12,12],[14,1,14,8],[15,1,15,8],[17,1,17,8],[18,1,18,8],[20,1,20,8],[21,1,21,8],[23,1,23,8],[24,1,24,8],[26,1,26,8],[27,1,27,8],[29,1,29,8],[30,1,30,8],[32,1,32,8],[33,1,33,8],[35,1,35,8],[36,1,36,8]]}
[]
[]
[]
[]
[]
[null,"Material relacionado"]
[]
[]
[null,{"$f":"+Introducción!B9","v":"Fecha de actualización: abril 24 de 2024"}]
[]
[]
[null,"[Ruta Actualícese] Impuesto al patrimonio: obligados, plazos y declaración AG 2024"]
[null,"Aunque el impuesto al patrimonio no es nuevo en Colombia, una particularidad de su nueva versión es la cualidad de ser permanente.\n\nEncuentra en este análisis más detalles sobre sus reglas, base gravable y plazos; así como los recursos de Actualícese con los que cuentas para ponerte al día."]
[]
[null,"[Análisis] Plazos para declaración y pago del impuesto al patrimonio 2024"]
[null,"Mediante el Decreto 2229 de 2023, el Ministerio de Hacienda estableció el calendario tributario para 2024, el cual contiene los plazos para la declaración y pago del impuesto al patrimonio 2024.\n\nConoce los plazos en que deberás cumplir con esta obligación."]
[]
[null,"[Página] Zona de formularios e instructivos de la Dian"]
[null,"En esta página encontrarás las normas más relevantes en materia tributaria utilizadas para la declaración, reporte y/o pago de diferentes obligaciones. Asimismo, compartimos sus respectivos formularios en PDF y las versiones disponibles a título de guía (por parte de Actualícese) en formato Excel. Además, aprenderás de manera práctica, a través de diferentes infografías, sobre quiénes deben utilizar cada formulario o las novedades más importantes."]
[]
[null,"[Liquidador] Modelo básico en Excel para proyectar el impuesto al patrimonio 2023 y años siguientes"]
[null,"En esta plantilla se ilustran los cálculos exigidos en los artículos 35 a 41 de la Ley de reforma tributaria 2277 de diciembre 13 de 2022 para liquidar el impuesto al patrimonio permanente de los años gravables 2023 y siguientes. Para ello es necesario definir el patrimonio líquido fiscal a enero 1 de cada año."]
[]
[null,"[Informe Especial] Impuesto al patrimonio: claves para elaborar la declaración"]
[null,"El impuesto al patrimonio, uno de los más cuestionados de la Ley 2277 de 2022, busca gravar los patrimonios más altos, propendiendo por la equidad del sistema tributario.\n\nTe presentamos los puntos más importantes de este impuesto: desde los obligados a declarar hasta las sanciones asociadas a su declaración."]
[]
[null,"[Análisis] Formulario 420 para nuevo impuesto al patrimonio año 2023 y siguientes fue prescrito por la Dian"]
[null,"El nuevo formulario 420 para el impuesto al patrimonio, prescrito con la Resolución 000071 de 2023, contiene renglones especiales en los que se deben informar los 5 casos de valores fiscales especiales a enero 1 de cada año para las acciones o cuotas poseídas en sociedades nacionales o del exterior."]
[]
[null,"[Consultorio Tributario] Aplicación de la reforma tributaria 2022 en el año 2024"]
[null,"La reforma tributaria de 2022, conocida como Ley 2277 de 2022, ha tenido un impacto significativo en las finanzas de los colombianos, por lo que es importante destacar que entró en vigor el 1 de enero de 2023. Sin embargo, algunos de sus cambios comienzan a aplicarse a partir del 1 de enero de 2024. ¡Aquí te contamos todo! "]
[]
[null,"[Respuesta] Así se liquida la sanción por no declarar el impuesto al patrimonio"]
[null,"¿Cuál es la sanción que debe liquidar un contribuyente que, al realizar la declaración de renta del año gravable 2022, se percata de que estuvo obligado a declarar impuesto al patrimonio, pero es un omiso de tal obligación? \n\nDiego Guevara, especialista en Impuestos y líder de investigación tributaria de Actualícese, resuelve esta pregunta en el Consultorio Tributario “Sanciones tributarias: tarifas, reducciones y proceso de fiscalización”."]
[]
[null,"[Herramienta] Convertidor UVT"]
[null,"Con esta herramienta puedes calcular de forma rápida y sencilla valores de pesos a UVT y viceversa.\n\nUVT 2024: $47.065"]

{"sheet":"Anexo","index":5,"n_rows":69,"n_cols":7,"rows_kept":69,"merged":[[2,2,3,2],[2,3,3,4],[5,2,6,2],[5,3,6,3],[5,4,6,4],[9,3,9,4],[10,2,16,2],[17,2,19,2],[21,3,21,4],[22,2,27,2],[33,3,33,4],[38,3,38,4],[40,2,41,2],[40,3,41,4],[42,2,45,2],[42,3,45,3],[42,4,45,4],[48,2,51,2],[48,3,49,3],[48,4,49,4],[50,3,51,3],[50,4,51,4],[55,2,56,2],[55,3,56,4],[57,2,58,2],[60,1,60,2],[60,3,61,3],[60,4,61,4],[60,5,61,5],[68,2,71,2],[68,3,71,3],[68,4,71,4]]}
[]
[]
[null,null,"Nota 1","ANEXO - IMPUESTO AL PATRIMONIO"]
[]
[]
[null,null,"Renglón","                 Concepto","Saldo fiscal\n a enero 1 de 2024\n(cifras en pesos, \naproximadas al múltiplo\n de mil más cercano)"]
[]
[]
[]
[{"$nulls":3},"Activos (patrimonio bruto)"]
[null,null,28,"Efectivo, cuentas bancarias (en Colombia y/o en el exterior).",{"v":1200000000,"d":"1,200,000,000"}]
[{"$nulls":3},"Inventarios (en Colombia y/o en el exterior).",{"v":400000000,"d":"400,000,000"}]
[{"$nulls":3},"Cuentas por cobrar (en Colombia y/o en el exterior).",{"v":300000000,"d":"300,000,000"}]
[{"$nulls":3},"Casa de habitación.",{"v":700000000,"d":"700,000,000"}]
[{"$nulls":3},"Demás activos fijos (en Colombia y/o en el exterior).",{"v":900000000,"d":"900,000,000"}]
[{"$nulls":3},"Otros activos (en Colombia y/o en el exterior).",{"v":250000000,"d":"250,000,000"}]
[{"$nulls":3},"SUBTOTAL ACTIVOS O PATRIMONIO BRUTO",{"$f":"SUM(E11:E16)","v":{"v":3750000000,"d":"3,750,000,000"}}]
[null,null,29,"Acciones y cuotas en sociedades colombianas.",{"v":300000000,"d":"300,000,000"}]
[{"$nulls":3},"Acciones y cuotas en sociedades del exterior.",{"v":245000000,"d":"245,000,000"}]
[{"$nulls":3},"TOTAL ACTIVOS O PATRIMONIO BRUTO",{"$f":"SUM(E17:E19)","v":{"v":4295000000,"d":"4,295,000,000"}}]
[]
[{"$nulls":3},"Pasivos (deudas)"]
[null,null,30,"  Financieras (en Colombia y/o en el exterior)",{"v":9000000,"d":"9,000,000"}]
[{"$nulls":3},"  Proveedores (en Colombia y/o en el exterior)",{"v":9500000,"d":"9,500,000"},null," "]
[{"$nulls":3},"  Acreedores (en Colombia y/o en el exterior)",{"v":3600000,"d":"3,600,000"}]
[{"$nulls":3},"  Laborales (en Colombia y/o en el exterior)",{"v":2900000,"d":"2,900,000"}]
[{"$nulls":3},"  Tributarias (en Colombia y/o en el exterior)",{"v":2100000,"d":"2,100,000"}]
[{"$nulls":3},"TOTAL PASIVOS O DEUDAS",{"$f":"SUM(E23:E27)","v":{"v":27100000,"d":"27,100,000"}}]
[]
[null,null,31,"TOTAL PATRIMONIO LÍQUIDO FISCAL POSEÍDO",{"$f":"IF(E20-E28>0,E20-E28,0)","v":{"v":4267900000,"d":"4,267,900,000"}}]
[]
[{"$nulls":4},{"$f":"IF(E30>=(72000*47065),\"Sí debe declarar impuesto al patrimonio\",\"No debe declarar impuesto al patrimonio\")","v":"Sí debe declarar impuesto al patrimonio"}]
[]
[null,null,"Nota 2","Base gravable de acciones o cuotas de interés social"]
[null,null,32,"Valor patrimonial de las acciones o cuotas de interés social ajustado fiscalmente es mayor al valor intrínseco",{"v":300000000,"d":"300,000,000"}]
[null,null,33,"Valor patrimonial de las acciones o cuotas de interés social ajustado fiscalmente es menor al valor intrínseco",{"v":245000000,"d":"245,000,000"}]
[null,null,34,"Valor promedio acciones o cuotas de interés social que cotizan en bolsa",0]
[]
[]
[]
[null,null,"Nota 3","Exclusiones (ver artículo 295-3 del ET)"]
[]
[null,null,37,"Valor patrimonial de  la casa de habitación, sin exceder las 12.000 UVT.",{"$f":"-IF(E14<ROUND(12000*47065,-3),E14,ROUND(12000*47065,-3))","v":{"v":-564780000,"d":"(564,780,000)"}}]
[]
[]
[]
[]
[]
[null,null,38,"Todo el patrimonio líquido que se entienda poseído en países de la CAN (Ecuador y Perú), con tal que en dichos países sí se haya producido algún impuesto al patrimonio o similar sobre dicho patrimonio liquido (nota: esto no lo dice expresamente el artículo 295-3 del ET, pero siempre lo ha permitido el artículo 17 de la Decisión 578 de 2004; ver también  el formulario 420 diseñado por la Dian;  leer el problema jurídico No. 2 en el Concepto Dian 030734  de abril 17 de 2006; y revisar la Sentencia 18884 del Consejo de Estado en agosto 21 de 2014 en https://actualicese.com/sentencia-18884-de-21-08-2014/).",{"v":-20000000,"d":"(20,000,000)"}]
[]
[{"$nulls":3},"El patrimonio líquido poseído en Colombia por parte de personas o entidades domiciliadas en países con los cuales Colombia tenga en aplicación algún convenio para evitar la doble tributación internacional (ejemplo: España, Chile, Suiza, etc.), y que son personas o entidades que no tienen en Colombia ningún tipo de \"establecimiento permanente\". Se resta  siempre y cuando se demuestre que dicho patrimonio líquido ya ha sido gravado con el impuesto al patrimonio en el país donde reside el declarante. En todo caso, existen ciertos activos (como los bienes inmuebles), los cuales, de acuerdo con algunos de los convenios vigentes (ejemplo España), sí pueden quedar gravados en Colombia a pesar de que también sean gravados en el país de domicilio (nota: esto no lo dice directamente el artículo 295-3 del ET, pero lo permiten las instrucciones contenidas en las leyes que rigen los convenios para evitar la doble tributación internacional; ver por ejemplo: Ley 1082 de 2006, Ley 1261 de 2008, y las demás que ya estén en aplicación; ver https://actualicese.com/listado-de-convenios-internacionales-para-evitar-la-doble-tributacion-ano-gravable-2022-y-2023/)",{"v":-25000000,"d":"(25,000,000)"}]
[]
[]
[]
[]
[null,null,"Nota 4","LIQUIDACIÓN PRIVADA"]
[]
[null,null,41,"Base gravable para el impuesto al patrimonio expresada en UVT (2024)",{"$f":"+'F420'!AN30/47065","v":{"v":77724.84861361947,"d":"77,724.85"}}]
[{"$nulls":3},"Impuesto al patrimonio",{"$f":"+MAX(E63,E64,E65,E66)","v":{"v":1347000,"d":"$ 1,347,000"}}]
[]
[null,"Rangos en UVT",null,"Instrucción para calcular impuesto en $","Calculo en $ del impuesto ","Tarifa Marginal"]
[null,"Desde","Hasta"]
[null,">0",{"v":72000,"d":"72,000"},"No tiene",{"v":0,"d":"$ 0"},{"v":0,"d":"0%"}]
[null,">72.000",{"v":122000,"d":"122,000"},"(Base gravable expresada en UVT menos 72.000 UVT) × 0,5%",{"$f":"IF(E58>72000,(IF(E58<=122000,ROUND((((+E58-72000)*0.5%)*47065),-3),0)),0)","v":{"v":1347000,"d":"$ 1,347,000"}},{"v":0.005,"d":"0.5%"}]
[null,">122.000",{"v":239000,"d":"239,000"},"(Base gravable expresada en UVT menos 122.000 UVT) × 1% más 250 UVT",{"$f":"IF(E58>122000,IF(E58<=239000,ROUND((((+E58-122000)*1%)*47065)+(250*47065),-3),0),0)","v":{"v":0,"d":"$ 0"}},{"v":0.01,"d":"1.0%"}]
[null,">239.000","En adelante","(Base gravable expresada en UVT menos 239.000 UVT) × 1,5% más 1.420 UVT ",{"$f":"IF(E58>239000,ROUND((((+E58-239000)*1.5%)*47065)+(1420*47065),-3),0)","v":{"v":0,"d":"$ 0"}},{"v":0.015,"d":"1.5%"}]
[]
[]
[null,null,42,"Menos: Descuentos tributarios por convenios internacionales (este renglón solo lo utilizarían los domiciliados en Colombia que tengan patrimonios líquidos poseídos en los países con los cuales existan convenios para evitar la doble tributación y haya sucedido que algunos de los patrimonios líquidos poseídos en esos otros países, por ejemplo los bienes raíces, hayan quedado gravados en esos territorios. Por tanto, como algunos de los patrimonios líquidos poseídos en los otros países pueden llegar a producir impuesto tanto en Colombia como en el exterior, es por eso que el impuesto pagado en el otro país sí lo dejarán restar como descuento en el formulario que se presenta ante el Gobierno colombiano). Obviamente, el valor del \"descuento\" se debe limitar hasta el mismo valor del impuesto que los patrimonios líquidos poseídos y gravados en los otros países estén produciendo en el formulario colombiano.",{"v":-500000,"d":"(500,000)"}]

{"sheet":"F420","index":6,"n_rows":63,"n_cols":54,"rows_kept":63,"merged":[[1,11,3,37],[1,38,3,42],[6,17,6,24],[6,27,9,27],[6,35,8,50],[7,2,7,24],[7,53,7,55],[9,28,9,50],[10,1,14,1],[10,2,10,14],[10,17,10,23],[11,17,11,23],[11,24,11,34],[11,35,11,40],[11,41,11,50],[13,36,13,41],[13,47,13,50],[14,2,14,46],[14,47,14,48],[14,49,14,50],[15,1,15,10],[15,11,15,13],[15,18,15,22],[15,23,15,33],[15,34,15,50],[16,1,16,20],[17,1,29,1],[17,2,20,3],[17,4,17,37],[17,39,17,50],[18,4,18,37],[18,39,18,50],[19,4,19,37],[19,39,19,50],[20,4,20,37],[20,39,20,50],[21,2,24,3],[21,4,21,37],[21,39,21,50],[22,4,22,37],[22,39,22,50],[23,4,23,37],[23,39,23,50],[24,4,24,37],[24,39,24,50],[25,2,25,37],[25,39,25,50],[26,2,28,3],[26,4,26,37],[26,39,26,50],[27,4,27,37],[27,39,27,50],[28,4,28,37],[28,39,28,50],[29,2,29,37],[29,39,29,50],[30,1,34,1],[30,2,30,37],[30,39,30,50],[31,2,31,37],[31,39,31,50],[32,2,32,37],[32,39,32,50],[33,2,33,37],[33,39,33,50],[33,53,33,55],[34,2,34,37],[34,39,34,50],[35,2,35,17],[35,18,35,20],[35,22,35,37],[35,39,35,50],[36,1,38,1],[36,2,36,37],[36,39,36,50],[37,2,37,37],[37,39,37,50],[38,2,38,37],[38,39,38,50],[39,1,51,50],[52,1,52,9],[52,10,52,16],[52,17,52,18],[52,22,52,50],[53,18,53,32],[54,18,54,29],[55,18,55,29],[55,39,55,48],[57,33,57,50],[58,1,58,10],[61,18,61,29],[62,1,62,10],[62,11,62,17],[62,18,62,29]]}
[]
[{"$nulls":11},"Declaración Impuesto al Patrimonio",{"$nulls":26},"Privada"]
[]
[]
[null,"1. Año",null,null,2,0,2,4]
[{"$nulls":27},"4. Número de Formulario"]
[null,"Espacio reservado para la DIAN"]
[{"$nulls":53},"Ver nota 5"]
[]
[]
[null,"Datos del\nDeclarante","5. Numero de Identificacion Tributaria (NIT)",{"$nulls":12},"6.","DV.","7. Primer Apellido",{"$nulls":6},"8. Segundo Apellido",{"$nulls":10},"9. Primer Nombre",{"$nulls":5},"10. Otros Nombres"]
[]
[]
[null,null,"11.  Razón Social",{"$nulls":44},"12. Cod. Direccion Secconal"]
[]
[null,"Si es una corrección indique:",{"$nulls":9},"25.Cod.",{"$nulls":6},"26. No formulario anterior"]
[null,"27. Es beneficiario de un convenio para envitar la doble imposición (Marque \"X\")"]
[null,"Impuesto al patrimonio","Hecho generador",null,"Patrimonio bruto (sin incluir el valor patrimonial de las acciones o cuotas de interés social)",{"$nulls":33},28,{"$f":"Anexo!E17","v":{"v":3750000000,"d":"3,750,000,000"}}]
[{"$nulls":4},"Valor patrimonial de las acciones o cuotas de interés social",{"$nulls":33},29,{"$f":"+Anexo!E18+Anexo!E19","v":{"v":545000000,"d":"545,000,000"}}]
[{"$nulls":4},"Pasivos",{"$nulls":33},30,{"$f":"Anexo!E28","v":{"v":27100000,"d":"27,100,000"}}]
[{"$nulls":4},"Patrimonio líquido (28 + 29 - 30)",{"$nulls":33},31,{"$f":"IF(AN18+AN19-AN20>0,AN18+AN19-AN20,0)","v":{"v":4267900000,"d":"4,267,900,000"}}]
[null,null,"Base gravable de acciones o cuotas de interés social",null,"Valor patrimonial de las acciones o cuotas de interés social ajustado fiscalmente es mayor al valor intrínseco",{"$nulls":33},32,{"$f":"+Anexo!E35","v":{"v":300000000,"d":"300,000,000"}}]
[{"$nulls":4},"Valor patrimonial de las acciones o cuotas de interés social ajustado fiscalmente es menor al valor intrínseco",{"$nulls":33},33,{"$f":"+Anexo!E36","v":{"v":245000000,"d":"245,000,000"}}]
[{"$nulls":4},"Valor promedio acciones o cuotas de interés social que cotizan en bolsa",{"$nulls":33},34,{"$f":"+Anexo!E37","v":0}]
[{"$nulls":4},"Base gravable acciones o cuotas de interés social (32 + 33 + 34)",{"$nulls":33},35,{"$f":"IF(AN22+AN23+AN24>0,AN22+AN23+AN24,0)","v":{"v":545000000,"d":"545,000,000"}}]
[null,null,"Patrimonio líquido ajustado (28 - 30 + 35)",{"$nulls":35},36,{"$f":"+AN18-AN20+AN25","v":{"v":4267900000,"d":"4,267,900,000"}}]
[null,null,"Exclusiones",null,"Valor patrimonial neto de la casa o apartamento de habitación (sólo personas naturales, las primeras 12.000 UVT)",{"$nulls":33},37,{"$f":"Anexo!E43*-1","v":{"v":564780000,"d":"564,780,000"}}]
[{"$nulls":4},"Patrimonio líquido susceptible de ser excluido en virtud de convenios internacionales",{"$nulls":33},38,{"$f":"(Anexo!E49+Anexo!E51)*-1","v":{"v":45000000,"d":"45,000,000"}}]
[{"$nulls":4},"Total exclusiones (37 + 38)",{"$nulls":33},39,{"$f":"SUM(AN27:AY28)","v":{"v":609780000,"d":"609,780,000"}}]
[null,null,"Base gravable para el impuesto al Patrimonio (36 - 39)",{"$nulls":35},40,{"$f":"+AN26-AN29","v":{"v":3658120000,"d":"3,658,120,000"}}]
[null,"Liquidación privada","Impuesto al patrimonio",{"$nulls":35},41,{"$f":"+Anexo!E59","v":{"v":1347000,"d":"1,347,000"}}]
[null,null,"Descuento tributario por convenios internacionales",{"$nulls":35},42,{"$f":"Anexo!E69*-1","v":{"v":500000,"d":"500,000"}}]
[null,null,"Saldo a pagar por impuesto (41 - 42)",{"$nulls":35},43,{"$f":"IF(AN31-AN32>0,AN31-AN32,0)","v":{"v":847000,"d":"847,000"}}]
[null,null,"Sanciones",{"$nulls":35},44,0,{"$nulls":13},"Ver nota 6"]
[null,null,"Total saldo a pagar (43 + 44)",{"$nulls":35},45,{"$f":"AN33+AN34","v":{"v":847000,"d":"847,000"}}]
{"$rows_empty":17}
[null,"46. No. Identificación signatario",{"$nulls":15},"47. DV"]
[null,"981. Cód. Representación",{"$nulls":16},"997. Fecha efectiva de la transacción"]
[null,"Firma del declarante o de quien lo representa"]
[{"$nulls":34}," 980. Pago Total $",{"$nulls":4},{"$f":"AN35","v":{"v":847000,"d":"$ 847,000"}}]
[]
[{"$nulls":33},"996. Espacio para rl número interno de la DIAN / Adhesivo)"]
[null,"982. Código Contador o Revisor Fiscal"]
[null,"Firma Contador o Revisor Fiscal.           994. Con salvedades"]
[]
[]
[null,"983. No. Tarjeta profesional "]

{"sheet":"Comentarios","index":7,"n_rows":52,"n_cols":2,"rows_kept":52,"merged":[[4,1,4,8],[6,1,6,8],[8,1,8,8],[10,1,10,8],[11,1,11,8],[13,1,13,8],[14,1,14,8],[16,1,16,8],[17,1,17,8],[19,1,19,8],[20,1,20,8],[22,1,22,8],[23,1,23,8],[25,1,25,8],[26,1,26,8],[28,1,28,8],[29,1,29,8],[31,1,31,8],[32,1,32,8],[34,1,34,8],[35,1,35,8],[37,1,37,8],[38,1,38,8],[40,1,40,8],[41,1,41,8],[43,1,43,8],[45,1,45,8],[46,1,46,8],[48,1,48,8],[49,1,49,8],[50,1,50,8],[51,1,51,8]]}
[]
[]
[]
[]
[null,"Comentarios y notas para el diligenciamiento de este formato"]
[]
[null,{"$f":"+Introducción!B9","v":"Fecha de actualización: abril 24 de 2024"}]
[]
[null,"Comentarios hoja \"Anexo\""]
[]
[null,"Nota 1 F420 (volver a la hoja \"Anexo\")"]
[null,"Recuérdese que las personas naturales y/o sucesiones ilíquidas que califiquen como residentes están obligados a denunciar al Gobierno colombiano tanto el patrimonio poseído en Colombia como el poseído en el exterior. En cambio, las sociedades y entidades extranjeras, e igualmente las personas naturales y/o sucesiones ilíquidas, que no sean residentes, solo declaran al Gobierno colombiano los patrimonios poseídos en Colombia (ver los artículos 9, 10, 12, 12-1, 20, 20-1, 20-2 y 261 a 266 del ET)."]
[]
[null,"Casilla 28 F420 (volver a la hoja \"Anexo\")"]
[null,"Solo las personas naturales podrán restar las primeras 12.000 UVT del valor patrimonial de su casa o apartamento de habitación. Sin embargo, debe tomarse en cuenta que en el artículo 295-3 del ET se coloca la siguiente restricción: \"Esta exclusión aplica únicamente respecto a la casa o apartamento en donde efectivamente viva la persona natural la mayor parte del tiempo, por lo que no quedan cobijados por esta exclusión los inmuebles de recreo, segundas viviendas u otro inmueble que no cumpla con la condición de ser el lugar en donde habita la persona natural\"."]
[]
[null,"Casilla 29 F420 (volver a la hoja \"Anexo\")"]
[null,"Registre en esta casilla el valor patrimonial de las acciones o cuotas de interés social, determinado conforme a lo previsto en el título II del libro I del ET, poseídas por el contribuyente a enero 1 de cada año (ver artículo 295-3 del ET)."]
[]
[null,"Casilla 30 F420 (volver a la hoja \"Anexo\")"]
[null,"No incluir el  pasivo que nacerá al calcular el impuesto a patrimonio sobre las bases gravables de este mismo ejercicio (pues si se incluye ese pasivo, entonces se formaría una \"referencia circular\")."]
[]
[null,"Casilla 31 F420 (volver a la hoja \"Anexo\")"]
[null,"Solo si este patrimonio líquido fiscal poseido a enero 1 de 2024 es igual o superior a 72.000 UVT ($3.388.680.000 en el 2024) existe la obligación de presentar la declaración del impuesto al patrimonio. Pero este valor no es la \"base gravable\" que se utilizará."]
[]
[null,"Nota 2 F420 (volver a la hoja \"Anexo\")"]
[null,"En los renglones 32, 33 y 34 se pide informar el valor fiscal especial mencionado en los parágrafos 3 y 4 del artículo 295-3 del ET para las acciones o cuotas, lo cual depende de si cotizan o no en bolsa, y de si se poseen o no en las sociedades tecnológicas mencionadas en el parágrafo 4 del artículo 295-3 del ET."]
[]
[null,"Casilla 32 F420 (volver a la hoja \"Anexo\")"]
[null,"Registre en esta casilla el valor intrínseco de las acciones o cuotas de interés social que no cotizan en la Bolsa de Valores de Colombia o una de reconocida idoneidad internacional y que se encuentran contenidas en la casilla 29, cuando el valor patrimonial ajustado anualmente conforme a lo establecido en el artículo 73 del ET, sea mayor al valor intrínseco de las mismas acciones. Debe tenerse en cuenta que si el valor intrínseco es negativo, se debe registrar en esta casilla el valor cero (0)."]
[]
[null,"Casilla 33 F420 (volver a la hoja \"Anexo\")"]
[null,"Registre en esta casilla el valor patrimonial de las acciones o cuotas de interés social que no cotizan en la Bolsa de Valores de Colombia o una de reconocida idoneidad internacional, ajustado conforme a lo establecido en el artículo 73 del ET y que se encuentran contenidas en la casilla 29, cuando el valor patrimonial ajustado anualmente sea menor al valor intrínseco de las mismas acciones."]
[]
[null,"Casilla 34 F420 (volver a la hoja \"Anexo\")"]
[null,"Registre en esta casilla el valor promedio de cotización del mercado de dichas acciones o cuotas de interés social del año o fracción de año inmediatamente anterior a la fecha de causación del impuesto, si en la casilla 29 se incluyeron acciones o cuotas de interés social de sociedades o entidades nacionales que coticen en la Bolsa de Valores de Colombia o una de reconocida idoneidad internacional."]
[]
[null,"Nota 3 F420 (volver a la hoja \"Anexo\")"]
[null,"Ingrese en las siguientes celdas lo que corresponda a exclusiones utilizando las cifras en negativo."]
[]
[null,"Nota 4 F420 (volver a la hoja \"Anexo\")"]
[null,"Ver tabla del artículo 296-3 del ET. Nota: la tarifa del 1,5 % solo aplicará de manera temporal durante los años 2023, 2024, 2025 y 2026. Ver el parágrafo del artículo 296-3 del ET, adicionado por el artículo 38 de la Ley 2277 de 2022."]
[]
[null,"Comentarios hoja \"F420\""]
[]
[null,"Nota 5 (volver a la hoja \"F420\")"]
[null,"Esta es una plantilla elaborada con base en el diseño del formulario 420 emitido por la Dian en su Resolución 000071 de 2023, pero Actualícese no entrega esta guía en representación de dicha entidad. El diseño, los datos, comentarios o interpretaciones bajo las cuales ha sido elaborada esta plantilla son a título de guía. Será el contribuyente quien deba atender las instrucciones de la Dian, estudiar las normas requeridas, preparar y emitir la información a que haya lugar. Actualícese no se hace responsable de las interpretaciones, operaciones o informaciones derivadas del uso de esta herramienta."]
[]
[null,"Nota 6 (volver a la hoja \"F420\")"]
[null,"Dato manual. \nIncluya en esta casilla el valor total de las sanciones si hay lugar a ellas, de lo contrario escriba cero.\n\nRecuerde que la sanción a liquidar no puede ser inferior a la sanción mínima equivalente a diez (10) UVT, según lo establecido en el artículo 639 del ET."]
[null,"Te recomendamos nuestro formato Liquidadores de sanción por no declarar."]
[null,"También puedes descargar el liquidador Intereses moratorios sobre deudas tributarias."]

{"sheet":"Instructivo","index":8,"n_rows":0,"n_cols":0,"rows_kept":0}

{"sheet":"Listado completo de archivos","index":9,"n_rows":4490,"n_cols":2,"rows_kept":4490,"merged":[[6,0,6,1]]}
[]
[]
[]
[]
[]
[]
["ESTE ES EL LISTADO COMPLETO DE LAS HERRAMIENTAS PUBLICADAS"]
["Fecha de actualización: abril 24 de 2024"]
["Haz clic aquí para ver una versión actualizada de este listado"]
["IDEA:","Si quieres buscar una herramienta en especial en este listado, dale \"Buscar\" en Excel (Ctrl + B, en casi todos lados)."]
[]
[null,"[Pack de Formatos] 15 plantillas y guías para el reporte de información exógena 2023"]
[]
[null,"[Liquidador] Plantilla del formato 1647 de exógena 2023: reporte de ingresos recibidos para terceros"]
[]
[null,"[Liquidador] Plantilla del formato 1010 de exógena 2023: información de socios, cooperados o comuneros"]
[]
[null,"[Liquidador] Plantilla del formato 1004 de exógena 2023: reporte de descuentos al impuesto de renta y el SIMPLE"]
[]
[null,"[Matriz] Resumen con las categorías de los informantes de exógena AG 2023 y los formatos que deben usar"]
[]
[null,"Liquidador del cálculo de retención en la fuente por pensiones"]
[]
[null,"Liquidador de aportes al fondo de solidaridad pensional por parte de un empleado"]
[]
[null,"Liquidador (con macros) de nómina de empleados de servicio doméstico que laboran por días"]
[]
[null,"[Liquidador] Plantilla en Excel para el control de entrega de dotación a empleados"]
[]
[null,"[Liquidador] Plantilla de los formatos de exógena del 5247 al 5252 por el AG 2023: reportes de los mandatarios"]
[]
[null,"[Liquidador] Plantilla del formato 1009 de exógena 2023: información de cuentas por pagar"]
[]
[null,"[Liquidador] Plantilla del formato 1008 de exógena 2023: información de cuentas por cobrar"]
[]
[null,"[Liquidador] Plantilla del formato 1007 de exógena 2023: información de ingresos propios"]
[]
[null,"[Lista de chequeo] Guía en Excel para auditar el formato 2516: conciliación fiscal de las personas jurídicas"]
[]
[null,"Liquidador de indemnización por despido sin justa causa (contrato fijo y de obra o labor)"]
[]
[null,"Casos prácticos de retención en la fuente por compras, servicios y honorarios"]
[]
[null,"[Liquidador] Formulario 260 AG 2023 – declaración anual del régimen simple (personas naturales que no llevan contabilidad)"]
[]
[null,"[Liquidador] Formulario 260 AG 2023 – declaración anual del régimen simple (personas naturales y jurídicas que llevan contabilidad)"]
[]
[null,"[Liquidador] Plantilla del formato 2276, 2280 y 2743 para el reporte de información exógena de 2023"]
[]
[null,"[Liquidador] Plantilla del formato 1003 de exógena 2023: retenciones que le practicaron al informante"]
[]
[null,"[Liquidador] Plantilla de los formatos 1005 y 1006 de exógena 2023: reporte del INC e IVA descontable y generados"]
[]
[null,"[Liquidador] Plantilla de los formatos 1011, 1012 y 2275 de exógena 2023 para el reporte de otros datos en renta e IVA"]
[]
[null,"Modelo en Word de un contrato de transacción laboral para la terminación del contrato de trabajo"]
[]
[null,"[Liquidador] Plantilla del formato 1001 del año gravable 2023: reporte de exógena de pagos o abonos en cuenta"]
[]
[null,"[Liquidador] Formulario 260 AG 2023 – declaración anual del régimen simple (personas naturales que no llevan contabilidad)"]
[]
[null,"[Liquidador] Formulario 260 AG 2023 – declaración anual del régimen simple (personas naturales y jurídicas que llevan contabilidad)"]
[]
[null,"Carta para solicitar licencia por luto"]
[]
[null,"Modelo de poder para adelantar sucesión ante notaría"]
[]
[null,"Herramienta en Excel para la consulta de terceros en la Dian"]
[]
[null,"Liquidador del auxilio de incapacidad de origen común para trabajador independiente"]
[]
[null,"Modelo de autorización para el tratamiento y la protección de datos personales"]
[]
[null,"Liquidador avanzado en Excel (con macros) de intereses moratorios sobre deudas tributarias"]
[]
[null,"[Matriz] Resumen con las categorías de los informantes de exógena AG 2023 y los formatos que deben usar"]
[]
[null,"Liquidador en Excel del formulario 110 y el formato 2516: declaración de renta de personas jurídicas AG 2023"]
[]
[null,"[Liquidador] Excel del formulario 350 de retención en la fuente (vigente a partir de agosto 1 de 2024)"]
[]
[null,"Modelo de contrato de trabajo a término indefinido"]
[]
[null,"Liquidador de prestaciones sociales y vacaciones"]
[]
[null,"Liquidador de topes de ingresos para presentar formatos de conciliación fiscal 2516 y 2517"]
[]
[null,"[Guía] Clasificación de las personas jurídicas frente al impuesto de renta y el SIMPLE AG 2023"]
[]
[null,"[Lista de chequeo] Guía para evitar errores en la presentación de información exógena"]
[]
[null,"Formato de cálculo de horas extra y recargos mensuales o quincenales"]
[]
[null,"Modelo de certificado laboral  "]
[]
[null,"Carta de recomendación laboral"]
[]
[null,"Liquidador de prestaciones sociales en período de incapacidad"]
[]
[null,"Tabla en Excel de retención en la fuente 2024"]
[]
[null,"Tabla automatizada con las tarifas de autorretención especial en renta (Decretos 0261 de 2023 y 0242 de 2024)"]
[]
[null,"[Liquidador] Formulario 160 AG 2024 para la declaración de activos en el exterior"]
[]
[null,"[Liquidador] Certificado de ingresos y retenciones: plantilla del formulario 220 y del formato 2276 AG 2023"]
[]
[null,"Simulador para contrastar los efectos de pertenecer al régimen ordinario del impuesto a la renta o al régimen simple de tributación AG 2024"]
[]
[null,"Lista de chequeo de estándares mínimos de SST para empresas con 11 a 50 trabajadores"]
[]
[null,"Lista de chequeo de documentos para la asamblea de accionistas o junta de socios"]
[]
[null,"Modelo en Excel del certificado anual a socios y/o accionistas AG 2023"]
[]
[null,"[Liquidador] Tributación sobre dividendos y cálculo de su retención en la fuente a título de renta durante el año 2024"]
[]
[null,"Liquidador avanzado en Excel (con macros) de intereses moratorios sobre deudas tributarias"]
[]
[null,"[Guía] Clasificación de las personas jurídicas frente al impuesto de renta y el SIMPLE AG 2023"]
[]
[null,"Simulador de retenciones a practicar entre regímenes"]
[]
[null,"Liquidador de aportes a ARL para trabajadores independientes"]
[]
[null,"Lista de chequeo en Excel para efectuar el cierre contable y fiscal de una entidad"]
[]
[null,"Modelo en Word de un acuerdo de exclusividad laboral"]
[]
[null,"Listado de actividades económicas (códigos CIIU)"]
[]
[null,"Modelo de contrato de prestación de servicios"]
[]
[null,"Acta de entrega de dotación"]
[]
[null,"Solicitud de compensación en dinero de las vacaciones"]
[]
[null,"Modelo de acta de reunión del máximo órgano social para cambio de representante legal"]
[]
[null,"Lista de chequeo de estándares mínimos de SST para empresas con 10 o menos trabajadores"]
[]
[null,"Lista de chequeo para contratación laboral"]
[]
[null,"[Liquidador] Plantilla para elaborar el formulario 300 para las declaraciones del IVA en 2024"]
[]
[null,"Tabla para liquidar indemnizaciones por pérdida de capacidad laboral"]
[]
[null,"Liquidador y desprendible mensual de nómina básico en Excel"]
[]
[null,"Liquidador con macros para calcular la renta gravable por comparación patrimonial"]
[]
[null,"3 modelos del certificado de dependientes para aplicar la deducción en la declaración de renta"]
[]
[null,"12 liquidadores para calcular la prima de servicios semestral"]
[]
[null,"Modelo de certificado de retención en la fuente por conceptos diferentes a rentas laborales"]
[]
[null,"[Liquidador] Cálculo del costo de renovación de matrícula mercantil y de establecimientos de comercio (2024)"]
[]
[null,"Modelo en Word de documento de otorgamiento de viáticos permanentes"]
[]
[null,"Liquidador de sanción por corrección presentada por el contribuyente"]
[]
[null,"Liquidador de sanción por inexactitud con macros"]
[]
[null,"Modelo en Word de carta de terminación del contrato de trabajo sin justa causa por parte del empleador"]
[]
[null,"Calendario tributario 2024 (versión descargable)"]
[]
[null,"Simulador del impuesto para dividendos y participaciones no gravados de 2017 y siguientes luego de la Ley 2277 de 2022"]
[]
[null,"Simulador del impuesto para dividendos y participaciones gravados de 2017 y siguientes luego de la Ley 2277 de 2022"]
[]
[null,"Simulador del impuesto sobre dividendos y participaciones gravados de 2016 y anteriores"]
[]
[null,"Simulador para contrastar los efectos de pertenecer al régimen ordinario del impuesto a la renta o al régimen simple de tributación AG 2024"]
[]
[null,"Liquidador avanzado en Excel (con macros) de intereses moratorios sobre deudas tributarias"]
[]
[null,"Comparativo de pagos a trabajador (contrato de trabajo vs. contrato de prestación de servicios)"]
[]
[null,"Liquidador en Excel para la contabilización de la nómina (ejemplo práctico)"]
[]
[null,"Liquidador de sanción por extemporaneidad antes del emplazamiento"]
[]
[null,"Liquidador de sanción por extemporaneidad después del emplazamiento"]
[]
[null,"[Liquidador] Tributación sobre dividendos y cálculo de su retención en la fuente a título de renta durante el año 2024"]
[]
[null,"Liquidador de sanción por no consignar las cesantías y no pagar los intereses"]
[]
[null,"Liquidador de cesantías y sus intereses aplicado a 11 casos prácticos"]
[]
[null,"Liquidador de vacaciones en Excel aplicado a 10 casos prácticos"]
[]
[null,"[Guía] Requisitos para operar como no responsables de IVA durante el 2024"]
[]
[null,"Calendario para pago de aportes a seguridad social para empleadores e independientes 2023-2024"]
[]
[null,"Tabla en Excel de retención en la fuente 2024"]
[]
[null,"Tablas de retención en la fuente a título de impuestos nacionales durante el año fiscal 2024"]
[]
[null,"Liquidador e histórico de porcentajes de reajuste fiscal 2005-2023"]
[]
[null,"Liquidador en Excel de retención en la fuente con procedimiento 1 durante 2024 sobre rentas de trabajo (laborales y no laborales)"]
[]
[null,"Histórico de la variación nominal del salario mínimo e inflación 1993-2024"]
[]
[null,"Histórico del índice de precios al consumidor –IPC–"]
[]
[null,"Liquidador de horas extra diurnas, nocturnas, dominicales y festivas"]
[]
[null,"Tabla de tarifas de honorarios para contadores públicos en Colombia"]
[]
[null,"Liquidador de aportes a seguridad social para independientes con contrato de prestación de servicios"]
[]
[null,"Liquidador de aportes a seguridad social de independientes por cuenta propia y con contrato diferente al de prestación de servicios"]
[]
[null,"Comparativo de normas del DUT 1625 de 2016 afectadas con el Decreto 2231 de 2023"]
[]
[null,"Histórico del salario mínimo y el auxilio de transporte 1990-2024"]
[]
[null,"Guía de información laboral 2024"]
[]
[null,"Modelo en Excel para el cálculo de intereses a las cesantías"]
[]
[null,"Modelo para elaborar el comprobante de pago de intereses a las cesantías"]
[]
[null,"Cuadro comparativo de regímenes pensionales en Colombia"]
[]
[null,"Caso práctico de liquidación de un trabajador doméstico que devenga el salario mínimo"]
[]
[null,"Liquidador avanzado en Excel (con macros) de intereses moratorios sobre deudas tributarias"]
[]
[null,"Liquidador del costo de la contratación de un trabajador con el salario mínimo"]
[]
[null,"Calendario tributario 2024 (versión descargable)"]
[]
[null,"Liquidador de sanciones por incumplir con la obligación de inscribirse en el RUT"]
[]
[null,"Liquidadores de sanciones relacionadas con la información exógena"]
[]
[null,"Liquidadores de sanción por no declarar"]
[]
[null,"Pack de Formatos para la revisoría fiscal: dictámenes, informes, certificaciones y más"]
[]
[null,"Modelo de carta para el incremento anual del arrendamiento comercial"]
[]
[null,"Listado de convenios internacionales para evitar la doble tributación"]
[]
[null,"Convertidor de UVT"]
[]
[null,"Fórmulas para liquidar prestaciones, vacaciones y horas extra"]
[]
[null,"Matriz de responsabilidades en seguridad social de trabajadores independientes"]
[]
[null,"Dictamen de estados financieros consolidados: opinión con salvedades cuando no se obtiene evidencia"]
[]
[null,"Informe sobre los hallazgos obtenidos en la auditoría de inventarios, según la NISR 4400"]
[]
[null,"Informe de compilación de estados financieros con fines específicos"]
[]
[null,"Informe del revisor fiscal sobre irregularidades y deficiencias en el control interno"]
[]
[null,"Presencia económica significativa –PES–: comparativo en Word de las normas del DUT 1625 de 2016 afectadas con el Decreto 2039 de 2023"]
[]
[null,"Modelo de pagaré en blanco y carta de instrucción"]
[]
[null,"Guía: estructura del informe del revisor fiscal bajo NIA 701 (comunicación de las cuestiones clave de auditoría)"]
[]
[null,"Modelo de carta de aceptación de un encargo de auditoría concreto"]
[]
[null,"Dictamen del revisor fiscal con comunicación de cuestiones clave (NIA 700 revisada y NIA 701)"]
[]
[null,"Dictamen del revisor fiscal que incluye opinión con salvedades"]
[]
[null,"Certificación del contador o revisor fiscal para la inscripción de libros en la Cámara de Comercio"]
[]
[null,"Liquidador automatizado de la prima de servicios con comprobante de pago"]
[]
[null,"[Liquidador] Modelos y formatos para la elaboración de estados financieros y cálculo de los indicadores financieros"]
[]
[null,"Modelo básico en Excel para proyectar el impuesto al patrimonio 2023 y años siguientes"]
[]
[null,"Liquidador en Excel del porcentaje fijo de retención en la fuente sobre salarios en diciembre de 2023 – Procedimiento 2"]
[]
[null,"Liquidador avanzado en Excel (con macros) de intereses moratorios sobre deudas tributarias"]
[]
[null,"NIA 700 vs. NIA 700 (revisada): comparativo de estructura del informe del revisor fiscal"]
[]
[null,"Modelo en Excel (con macros) del documento soporte para operaciones con no obligados a facturar"]
[]
[null,"Modelo de acta de distribución de utilidades y pago de dividendos"]
[]
[null,"Modelo de acta del máximo órgano social para cambio de los miembros de junta directiva"]
[]
[null,"Modelo de acta de nombramiento del revisor fiscal"]
[]
[null,"Modelo de acta de asamblea general de accionistas"]
[]
[null,"Papeles de trabajo del auditor: cuestionarios de control interno para pymes"]
[]
[null,"Modelo de poder de representación para nombrar delegado en asamblea de copropietarios"]
[]
[null,"Modelo de proyecto de distribución de utilidades en una sociedad comercial"]
[]
[null,"Cuestionario de auditoría y control interno para el área de nómina"]
[]
[null,"Cuestionario de auditoría y control interno para el área de ventas"]
[]
[null,"Modelo de convocatoria a asamblea general ordinaria de copropietarios"]
[]
[null,"Modelo de acta de reunión de junta directiva"]
[]
[null,"Modelo de acta de decisiones de asamblea de copropietarios"]
[]
[null,"Informe del revisor fiscal dirigido a la asamblea de accionistas o junta de socios"]
[]
[null,"Modelo de convocatoria a asamblea general ordinaria de socios o accionistas"]
[]
[null,"Modelo de convocatoria extraordinaria a asamblea de accionistas o junta de socios"]
[]
[null,"Modelo de poder de representación en asamblea de accionistas o junta de socios"]
[]
[null,"Modelo de informe de gestión"]
[]
[null,"Cuestionario de auditoría y control interno para el área de compras"]
[]
[null,"[Pack de Formatos] Liquidadores, simuladores y guías para el cierre contable y fiscal del año gravable 2023"]
[]
[null,"Modelo en Word de acuerdo de pago"]
[]
[null,"Modelo de carta de respuesta a la solicitud de un servicio"]
[]
[null,"Formato de solicitud de permiso compensatorio por votaciones"]
[]
[null,"Modelo de solicitud de compensación y disfrute de vacaciones"]
[]
[null,"Simulador del impuesto sobre dividendos y participaciones gravados de 2016 y anteriores"]
[]
[null,"Cuestionario de auditoría en Excel para el control de propiedades, planta y equipo"]
[]
[null,"Cuestionario en Excel para el control interno de inventarios"]
[]
[null,"Cuestionario en Excel de control interno de provisiones y contingencias"]
[]
[null,"Caso práctico en Excel sobre adquisición de activos (inventarios) con interés implícito"]
[]
[null,"Listado de códigos de responsabilidades tributarias (RUT casilla 53)"]
[]
[null,"Caso práctico en Excel de corrección de errores de períodos anteriores"]
[]
[null,"Formato en Excel de circularización de clientes automatizado"]
[]
[null,"Guía en Excel sobre hechos posteriores al cierre que implican o no ajustes"]
[]
[null,"Formato en Excel de circularización de proveedores automatizado"]
[]
[null,"Liquidador en Excel para revisiones pertinentes en propiedad, planta y equipo en el proceso de cierre contable"]
[]
[null,"Lista de chequeo en Excel para efectuar el cierre contable y fiscal de una entidad"]
[]
[null,"Guía en Excel y casos prácticos de tributación en el impuesto de renta de los dividendos y participaciones AG 2023"]
[]
[null,"Pack de Formatos para el análisis financiero en Excel"]
[]
[null,"Guía en Word con las revelaciones de la información financiera a presentar según el Estándar para Pymes"]
[]
[null,"Plantilla en Excel (con macros) del estado de costos de producción y de ventas"]
[]
[null,"Ejercicios de conversión entre tasas de interés efectiva, nominal y periódica"]
[]
[null,"Formato de flujo de caja real y presupuestado"]
[]
[null,"Modelo en Excel de la estructura del balance de comprobación"]
[]
[null,"Liquidador en Excel para el cálculo de intereses de mora y su IVA en cuentas por cobrar vencidas"]
[]
[null,"Modelo en Excel del estado de resultados con enfoque de gastos por naturaleza o función"]
[]
[null,"Simulador en Excel del punto de equilibrio como herramienta de análisis financiero"]
[]
[null,"Guía en Excel para el análisis vertical y horizontal aplicado al estado de situación financiera y al estado de resultado integral"]
[]
[null,"[Liquidador] Formato de hoja de costos en Excel con macros"]
[]
[null,"Liquidador de indicadores financieros"]
[]
[null,"Modelo de autorización de descuento por libranza"]
[]
[null,"Liquidador Dupont: índice de rentabilidad  "]
[]
[null,"[Simulador] Análisis de propuestas de inversión con el uso del valor presente y valor presente neto"]
[]
[null,"Estado de flujos de efectivo por el método directo: ejercicio práctico y plantilla en Excel"]
[]
[null,"Estado de flujos de efectivo por el método indirecto: ejercicio práctico y plantilla en Excel"]
[]
[null,"Modelo en Excel de estructura del estado de resultados y ganancias acumuladas"]
[]
[null,"[Simulador] Cálculo del costo amortizado y la TIR"]
[]
[null,"Clasificación de arrendamientos según la sección 20 del Estándar para Pymes: casos prácticos en Excel"]
[]
[null,"Liquidador de indicadores de detrimento patrimonial e insolvencia financiera"]
[]
[null,"Guía en Excel para determinar el control de una entidad sobre otra"]
[]
[null,"Casos prácticos en Excel sobre la distribución de los CIF (costos indirectos de fabricación)"]
[]
[null,"Plantilla en Excel para elaborar el estado de cambios en el patrimonio"]
[]
[null,"Modelo de presentación del estado de resultado integral por enfoques"]
[]
[null,"Modelo de certificación de estados financieros (versión simplificada)"]
[]
[null,"Modelo de certificación de estados financieros consolidados"]
[]
[null,"Simulador en Excel del estado de situación financiera (análisis comparativo)"]
[]
[null,"Casos prácticos para comprender la contabilización de pasivos en el cierre contable"]
[]
[null,"Ejercicios sobre métodos de depreciación: línea recta, decreciente, unidades de producción y más"]
[]
[null,"Modelo de carta de renuncia"]
[]
[null,"Modelo de llamado de atención  "]
[]
[null,"Modelo de carta de aceptación de renuncia de un trabajador"]
[]
[null,"Modelo de certificado laboral  "]
[]
[null,"Modelo de derecho de petición para solicitar certificado laboral  "]
[]
[null,"Simulador de casos para clasificar instrumentos financieros como pasivos o patrimonio"]
[]
[null,"Guía en Excel sobre el sistema de facturación electrónica, documento soporte y nómina electrónica AG 2023"]
[]
[null,"Casos prácticos para comprender la contabilización de activos en el cierre contable"]
[]
[null,"Modelos de conciliación bancaria (individual y conjunta) en Excel"]
[]
[null,"Ejercicio práctico en Excel: valuación de inventarios por el método de identificación específica"]
[]
[null,"Simulador para la clasificación de entidades en los grupos 1, 2 o 3 de Estándares Internacionales"]
[]
[null,"Guía en Excel con los principales índices de coherencia tributaria para las personas jurídicas  "]
[]
[null,"Casos prácticos en Excel con las diferencias más comunes en el proceso de conciliación fiscal de personas jurídicas"]
[]
[null,"Simulador con las diferencias permanentes, temporales y temporarias: efectos en la utilidad contable y fiscal"]
[]
[null,"Liquidador en Excel para calcular la contribución 2023 a Supersociedades"]
[]
[null,"Caso práctico en Excel sobre bancarización en personas jurídicas"]
[]
[null,"Liquidador de indicadores financieros de actividad y rentabilidad"]
[]
[null,"Liquidador de indicadores financieros de endeudamiento"]
[]
[null,"Liquidador de indicadores financieros: márgenes de utilidad o rentabilidad"]
[]
[null,"Liquidador de indicadores financieros de liquidez"]
[]
[null,"Liquidador de indicadores financieros de mercado"]
[]
[null,"Modelo de cesión de acciones  "]
[]
[null,"Modelo de memorial para solicitar al juez librar medida cautelar de embargo  "]
[]
[null,"Modelo de nota 1 a los estados financieros bajo el Estándar para Pymes  "]
[]
[null,"Modelo de revocatoria de poder otorgado a un abogado  "]
[]
[null,"Modelo de notas a los estados financieros (estado de resultados)"]
[]
[null,"Matriz en Excel: rentas exentas, descuentos, costos y deducciones para personas jurídicas en 2023"]
[]
[null,"Carta para solicitar a la empresa de servicios públicos la cancelación del contrato de telefonía e internet"]
[]
[null,"Carta para solicitar el pago de acreencias laborales"]
[]
[null,"Carta otorgando poder"]
[]
[null,"Cuestionario de control interno para el efectivo y equivalentes al efectivo"]
[]
[null,"Pack de Formatos en Excel para calcular el impuesto diferido en 2023: guías, casos prácticos y más"]
[]
[null,"Modelo de políticas contables (nota) “base para la preparación de estados financieros” para Pymes"]
[]
[null,"Liquidador de actualización de sanciones tributarias"]
[]
[null,"Liquidador en Excel para la determinación de diferencias temporarias e impuesto diferido"]
[]
[null,"Caso práctico en Excel: utilidad del impuesto diferido en la corrección del efecto de las normas fiscales"]
[]
[null,"Casos prácticos sobre métodos para determinar la naturaleza del impuesto diferido"]
[]
[null,"Pack de Formatos para realizar contabilizaciones en operaciones diarias"]
[]
[null,"Liquidador de horas extra diurnas, nocturnas, dominicales y festivas"]
[]
[null,"Formato en Excel para la toma de inventario físico (con macros)"]
[]
[null,"Casos prácticos de contabilización de sanciones e intereses tributarios a la Dian"]
[]
[null,"Formato de arqueo de caja general con macros"]
[]
[null,"Formato de arqueo de caja menor con macros"]
[]
[null,"Liquidador y caso práctico para calcular y contabilizar horas extra y recargos durante la reducción de la jornada laboral en 2023"]
[]
[null,"Notificación a empleado de la reducción de la jornada laboral"]
[]
[null,"Casos prácticos de contabilización de ingresos en pymes bajo Estándares Internacionales"]
[]
[null,"Formato de cálculo de horas extra y recargos mensuales o quincenales"]
[]
[null,"Caso práctico de contabilización de un préstamo bancario en pymes y microempresas"]
[]
[null,"Casos prácticos sobre contabilización de combinación de negocios y determinación de la plusvalía"]
[]
[null,"Carta para solicitar licencia por luto"]
[]
[null,"Formato de solicitud de licencia de calamidad doméstica"]
[]
[null,"Liquidador (con macros) de sanciones relacionadas con la declaración informativa de precios de transferencia"]
[]
[null,"Plantilla de control de cuentas por pagar y política de pago a proveedores"]
[]
[null,"Plantilla automática para control y auditoría del gasto de servicios públicos"]
[]
[null,"Casos prácticos de retención en la fuente por compras, servicios y honorarios"]
[]
[null,"Plantilla para el control y auditoría del gasto de celulares"]
[]
[null,"Casos prácticos sobre AIU: cálculo del IVA y retención en la fuente en esta figura"]
[]
[null,"Simulador para la aplicación de la renta exenta de las cesantías y sus intereses AG 2022 (numeral 4 del artículo 206 del ET)"]
[]
[null,"Liquidador en Excel con macros del porcentaje de retención en la fuente sobre salarios, procedimiento 1 (2023)"]
[]
[null,"Caso práctico de contabilización de devoluciones en ventas"]
[]
[null,"Plantilla de control de cuentas por cobrar y política de recaudo a clientes"]
[]
[null,"Impuesto diferido por diferencia en cambio en 2023: caso práctico en Excel"]
[]
[null,"Caso práctico en Excel: impuesto diferido por deterioro de inventario en 2023"]
[]
[null,"Caso práctico en Excel: impuesto diferido por valorización de activos intangibles"]
[]
[null,"Ejercicios para determinar si una persona natural está obligada a presentar renta por el AG 2022"]
[]
[null,"Matriz y ejemplos de residencia fiscal de las personas naturales"]
[]
[null,"Aplicación del impuesto a los dividendos recibidos por personas naturales (caso práctico en Excel)"]
[]
[null,"Simulador para el cálculo del límite del descuento por impuestos pagados en el exterior"]
[]
[null,"Caso práctico de impuesto diferido: compensación de pérdidas fiscales y exceso de renta presuntiva"]
[]
[null,"Caso práctico en Excel: impuesto diferido por provisiones contables no aceptadas fiscalmente"]
[]
[null,"Impuesto diferido por activos biológicos en 2023: caso práctico en Excel"]
[]
[null,"Caso práctico en Excel de impuesto diferido por acciones medidas a valor razonable"]
[]
[null,"Impuesto diferido en la depreciación de propiedad, planta y equipo 2023 (caso práctico en Excel)"]
[]
[null,"Modelo en Excel: cálculo de intereses presuntivos en 2023 sobre préstamos entre socios y sociedades"]
[]
[null,"Casos prácticos de contabilización de compras e impuestos asumidos"]
[]
[null,"Caso práctico de determinación de la renta líquida cedular por pensiones del exterior"]
[]
[null,"Modelo de notas a los estados financieros (estado de situación financiera)"]
[]
[null,"Simulador del límite de pagos en efectivo a partir de 2018"]
[]
[null,"Liquidador del impuesto sobre la renta líquida de las cédulas general y de pensiones"]
[]
[null,"Caso práctico de determinación de la ganancia ocasional gravable de una persona natural residente"]
[]
[null,"Caso práctico sobre deducciones y descuentos tributarios con los cambios de la Ley 2277 de 2022"]
[]
[null,"Liquidador con macros del porcentaje fijo de retención en la fuente sobre salarios, procedimiento 2 (segundo semestre 2023)"]
[]
[null,"Caso práctico: cálculo del valor a adicionar y límites de beneficios tributarios"]
[]
[null,"Simulador de casos de descuentos tributarios y donaciones: conciliación contable y tributaria"]
[]
[null,"Listado de contribuyentes inscritos en el régimen simple"]
[]
[null,"Ejemplo en Excel de la declaración de renta de un pensionado en Colombia"]
[]
[null,"Caso práctico en Excel: impuesto diferido por valoración de propiedades de inversión"]
[]
[null,"Pack de Formatos para profundizar en las novedades de la Ley de reforma tributaria 2277 de 2022"]
[]
[null,"Casos prácticos en Excel del impuesto al patrimonio AG 2023"]
[]
[null,"Impuesto diferido por venta de bienes inmuebles a largo plazo en 2023: caso práctico en Excel"]
[]
[null,"Guía en Excel y casos prácticos de tributación en el impuesto de renta de los dividendos y participaciones AG 2022"]
[]
[null,"Modelo de certificado de retención en la fuente por conceptos diferentes a rentas laborales"]
[]
[null,"Formato de control de clientes de declaración de renta de persona natural"]
[]
[null,"Dividendos y sus retenciones: comparativo de normas del DUT 1625 de 2016 modificadas con el Decreto 1103 de 2023"]
[]
[null,"Impuesto diferido por gastos de establecimiento en 2023: caso práctico en Excel"]
[]
[null,"Impuesto diferido ante deterioro de cartera en 2023: caso práctico en Excel"]
[]
[null,"Ejercicio práctico en Excel: impuesto diferido cuando hay compensación de pérdidas fiscales"]
[]
[null,"Simulador del impuesto para dividendos y participaciones gravados de 2017 y siguientes"]
[]
[null,"Simulador del impuesto para dividendos y participaciones no gravados de 2017 y siguientes"]
[]
[null,"Modelo de contrato de mandato: descarga y simplifica tus procesos de delegación"]
[]
[null,"Liquidador de sanciones por incumplir con la obligación de inscribirse en el RUT"]
[]
[null,"Lista de chequeo para trasladarse de régimen de pensiones: pasos esenciales a seguir"]
[]
[null,"Modelos y guías sobre aspectos laborales y comerciales que deben atender los trabajadores independientes"]
[]
[null,"Casos prácticos de liquidación y contabilización de sanciones por no inscribirse o actualizar el RUT"]
[]
[null,"Liquidador automático de utilidad por venta de activo fijo depreciable que será renta por recuperación de deducciones"]
[]
[null,"Caso práctico de declaración de renta a partir de información reportada por terceros"]
[]
[null,"Formulario 110 y formato 2516 para la declaración de renta de personas naturales no residentes que llevan contabilidad AG 2022"]
[]
[null,"Cuestionario para definir si una persona natural está obligada a presentar declaración de renta AG 2022"]
[]
[null,"Casos prácticos de retención en la fuente sobre prima de servicios"]
[]
[null,"Simulador del beneficio de auditoría para 2021, 2022 y 2023"]
[]
[null,"Modelo de carta de solicitud de corrección de información exógena"]
[]
[null,"Formulario 110: declaración de renta de personas naturales no residentes que no llevan contabilidad AG 2022"]
[]
[null,"Pack de Formatos para elaborar la declaración de renta de personas naturales AG 2022"]
[]
[null,"Beneficio de auditoría para personas naturales AG 2022: casos prácticos en Excel"]
[]
[null,"Listado de actividades económicas (códigos CIIU)"]
[]
[null,"Valor patrimonial de acciones y aportes en la declaración de renta de personas naturales AG 2022"]
[]
[null,"Ejercicios sobre la determinación de la renta líquida de trabajo cuando hay rentas laborales y honorarios"]
[]
[null,"Cálculo del límite de subcapitalización: casos prácticos en Excel"]
[]
[null,"Caso práctico sobre liquidación de sucesión ilíquida e impuesto de ganancia ocasional"]
[]
[null,"Lista de chequeo: soportes para preparación y presentación de la declaración de renta de personas naturales"]
[]
[null,"Notificación de embargo de la prima de servicios"]
[]
[null,"12 liquidadores para calcular la prima de servicios semestral"]
[]
[null,"Formulario 210 y formato 2517 para la declaración de renta de personas naturales residentes que llevan contabilidad AG 2022"]
[]
[null,"Notificación a trabajadores que no tienen derecho a la prima de servicios"]
[]
[null,"Calendario tributario 2023 – versión automatizada en Excel"]
[]
[null,"Formulario 2593 AG 2023 en excel: declaración de anticipos bimestrales – régimen simple"]
[]
[null,"[Liquidador] Modelo en Excel para calcular la nueva «tasa mínima de tributación» de personas jurídicas, según Ley 2277 de reforma tributaria 2022"]
[]
[null,"Calendario tributario 2023 – versión para imprimir"]
[]
[null,"Liquidador en Excel del porcentaje fijo de retención en la fuente sobre salarios en junio de 2023 – Procedimiento 2"]
[]
[null,"Formulario 160 AG 2023 para la declaración de activos en el exterior"]
[]
[null,"Formulario 420 AG 2023 para la declaración del impuesto al patrimonio"]
[]
[null,"3 modelos del certificado de dependientes para aplicar la deducción en la declaración de renta"]
[]
[null,"Liquidador del componente inflacionario de los rendimientos o costos financieros"]
[]
[null,"Liquidadores de sanción por no declarar"]
[]
[null,"Formulario 210: declaración de renta de personas naturales residentes que no llevan contabilidad AG 2022"]
[]
[null,"Liquidador de sanción por corrección presentada por el contribuyente"]
[]
[null,"Liquidador de sanción por inexactitud con macros"]
[]
[null,"Modelo de certificado de no declarante del impuesto de renta y complementario AG 2022"]
[]
[null,"Simulador: cálculo de la distribución de rentas exentas y deducciones limitadas"]
[]
[null,"Tratamiento del ICA como descuento o deducción en la declaración de renta personas naturales: caso práctico en Excel"]
[]
[null,"Plantilla para elaborar el formulario 300 para las declaraciones del IVA en 2023"]
[]
[null,"[Guía] Características básicas de la cedulación de personas naturales residentes AG 2022"]
[]
[null,"Modelo de contrato de outsourcing o tercerización"]
[]
[null,"Liquidador con macros para calcular la renta gravable por comparación patrimonial"]
[]
[null,"Modelo de carta para solicitar el certificado de donación para efectuar el descuento tributario"]
[]
[null,"Liquidador del componente inflacionario de los rendimientos o costos financieros"]
[]
[null,"[Pack de Formatos] Herramientas y guías para el reporte de información exógena 2022"]
[]
[null,"Calendario para pago de aportes a seguridad social para empleadores e independientes 2023-2024"]
[]
[null,"Casos prácticos de criptoactivos de una persona natural en la declaración de renta AG 2022"]
[]
[null,"Simulador para determinar si una persona natural es residente fiscal en Colombia"]
[]
[null,"Comparativo de pagos a trabajador (contrato de trabajo vs. contrato de prestación de servicios)"]
[]
[null,"Liquidador del auxilio de incapacidad de origen común para trabajador independiente"]
[]
[null,"Liquidador de aportes a caja de compensación para trabajadores independientes"]
[]
[null,"Liquidador de topes de ingresos para presentar formatos de conciliación fiscal 2516 y 2517"]
[]
[null,"Herramienta con macros en Excel para elaborar y analizar estados financieros"]
[]
[null,"Liquidador avanzado en Excel (con macros) de intereses moratorios sobre deudas tributarias"]
[]
[null,"Liquidador avanzado en Excel (con macros) de intereses moratorios sobre deudas tributarias"]
[]
[null,"Plantilla en Excel del formulario 350 AG 2023 – declaración de retención en la fuente"]
[]
[null,"Plantilla del formulario 310 AG 2023: declaración del impuesto nacional al consumo"]
[]
[null,"Simulador con los efectos de los cambios introducidos por la Ley 2277 de 2022 al impuesto de renta bajo el régimen ordinario de las personas naturales residentes"]
[]
[null,"Cuestionario para definir si una persona natural está obligada a presentar declaración de renta AG 2022"]
[]
[null,"Modelo de contrato de prestación de servicios"]
[]
[null,"Modelo de derecho de petición para el pago de incapacidades de trabajadores independientes"]
[]
[null,"Liquidador en Excel del formulario 110 y el formato 2516: declaración de renta de personas jurídicas AG 2022"]
[]
[null,"Herramienta con macros en Excel para elaborar y analizar estados financieros"]
[]
[null,"[Pack de Formatos] Herramientas y guías para el reporte de información exógena 2022"]
[]
[null,"Casos prácticos de liquidación de intereses moratorios y sanción de extemporaneidad, Ley 2277 de 2022"]
[]
[null,"Liquidador avanzado en Excel (con macros) de intereses moratorios sobre deudas tributarias"]
[]
[null,"Liquidador de sanción por extemporaneidad antes del emplazamiento"]
[]
[null,"Liquidador de sanción por extemporaneidad después del emplazamiento"]
[]
[null,"Simulador del límite de costos y gastos no soportados en factura electrónica"]
[]
[null,"Plantilla del formato 1009 para el reporte de exógena 2022: información de cuentas por pagar"]
[]
[null,"Plantilla del formato 1008 para el reporte de exógena 2022: información de cuentas por cobrar"]
[]
[null,"Plantilla de los formatos 1011, 1012 y 2275 de exógena 2022 para el reporte de otros datos en renta e IVA"]
[]
[null,"Plantilla de los formatos 1005 y 1006 de exógena 2022 para el reporte del IVA descontable e IVA y/o INC generados"]
[]
[null,"Plantilla del formato 1007 para el reporte de exógena 2022: información de ingresos propios"]
[]
[null,"Plantilla del formato 1647 para el reporte de ingresos recibidos para terceros – exógena 2022"]
[]
[null,"Facturación electrónica: comparativo de normas del DUT 1625 de 2016 afectadas con el Decreto 442 de 2023"]
[]
[null,"Plantilla del formato 1004 de exógena de 2022: reporte de descuentos al impuesto de renta y el SIMPLE"]
[]
[null,"Plantilla del formato 1003 para el reporte de exógena 2022: retenciones que le practicaron al informante"]
[]
[null,"Plantilla de los formatos de exógena del 5247 al 5252 por el AG 2022: reportes de los mandatarios"]
[]
[null,"Pack de Formatos para elaborar la declaración de renta de personas jurídicas año gravable 2022"]
[]
[null,"Liquidador en Excel del formulario 110 y el formato 2516: declaración de renta de personas jurídicas AG 2022"]
[]
[null,"Guía en Excel para auditar el formato 2516: conciliación fiscal de las personas jurídicas"]
[]
[null,"Requisitos para reportar información exógena por el AG 2022 (guía y casos prácticos)"]
[]
[null,"Plantilla del formato 1010 para reporte de exógena 2022: información de socios, cooperados o comuneros"]
[]
[null,"Casos prácticos sobre el reporte de información exógena AG 2022"]
[]
[null,"Liquidador en Excel de intereses moratorios sobre deudas tributarias"]
[]
[null,"Herramienta en Excel para la consulta de terceros en la Dian"]
[]
[null,"Plantilla del formato 2276, 2280 y 2743 para el reporte de información exógena de 2022"]
[]
[null,"Plantilla del formato 1001 por el año gravable 2022: reporte de exógena de pagos o abonos en cuenta"]
[]
[null,"Guía en Excel para evitar errores en la presentación de información exógena"]
[]
[null,"Simulador del límite de pagos en efectivo a partir de 2018"]
[]
[null,"Simulador del límite de costos y gastos no soportados en factura electrónica"]
[]
[null,"[Liquidador] Certificado de ingresos y retenciones: plantilla del formulario 220 y del formato 2276 AG 2022"]
[]
[null,"Listado de códigos de responsabilidades tributarias (RUT casilla 53)"]
[]
[null,"Liquidador del anticipo del impuesto de renta 2023 para personas jurídicas y naturales"]
[]
[null,"Modelo del certificado de donación para que proceda el descuento tributario en la declaración de renta"]
[]
[null,"Plantilla para elaborar el formulario 300 para las declaraciones del IVA en 2023"]
[]
[null,"Formulario 260 AG 2022 – declaración anual régimen simple (personas naturales que no llevan contabilidad)"]
[]
[null,"Matriz de categorías para el reporte de información exógena y los formatos para el AG 2022"]
[]
[null,"[Liquidador] Tributación sobre dividendos y cálculo de su retención luego de la Ley 2277 de 2022"]
[]
[null,"Modelo de certificación laboral para deducción del primer empleo"]
[]
[null,"Acta de entrega de dotación"]
[]
[null,"Carta de finalización del contrato individual de trabajo por justa causa"]
[]
[null,"Formatos para la liquidación de la nómina paso a paso"]
[]
[null,"Liquidador de aportes a seguridad social durante la licencia de maternidad"]
[]
[null,"Casos prácticos de liquidación de sanciones relacionadas con la información exógena"]
[]
[null,"Tabla para liquidar indemnizaciones por pérdida de capacidad laboral"]
[]
[null,"Liquidador de indemnización por despido sin justa causa (contrato fijo y de obra o labor)"]
[]
[null,"Liquidador en Excel de nómina para trabajadora en licencia de maternidad"]
[]
[null,"Liquidador de seguridad social, parafiscales y prestaciones en vacaciones"]
[]
[null,"Calendario tributario 2023 – versión para imprimir"]
[]
[null,"Modelo en Excel: cálculo de intereses presuntivos en 2022 sobre préstamos entre socios y sociedades"]
[]
[null,"Liquidador de aportes a ARL para trabajadores independientes"]
[]
[null,"Actualícese 110.xls: una herramienta amigable y eficiente para declaraciones de renta de personas jurídicas"]
[]
[null,"Excel interactivo: resultados de la Encuesta Actualícese ¿Cómo están realmente los honorarios profesionales del contador público?"]
[]
[null,"Caso práctico de liquidación de nómina con salario integral"]
[]
[null,"Caso práctico de liquidación de nómina cuando hay incapacidad"]
[]
[null,"Liquidador en Excel para la contabilización de la nómina (ejemplo práctico)"]
[]
[null,"Liquidador de nómina mensual de trabajador pensionado por vejez"]
[]
[null,"Liquidador y desprendible mensual de nómina básico en Excel"]
[]
[null,"[Liquidador] Plantilla en Excel para el control de entrega de dotación a empleados"]
[]
[null,"Calendario tributario 2023 – versión automatizada en Excel"]
[]
[null,"Formulario 260 AG 2022 – declaración anual régimen simple (personas naturales y jurídicas que llevan contabilidad)"]
[]
[null,"Liquidador de indemnización por despido sin justa causa (contrato indefinido)"]
[]
[null,"Liquidador de aportes al fondo de solidaridad pensional por parte de un empleado"]
[]
[null,"Liquidador de aportes en el piso de protección social: trabajadores dependientes e independientes"]
[]
[null,"Liquidador (con macros) de nómina de empleados de servicio doméstico que laboran por días"]
[]
[null,"Liquidador del costo de renovación de matrícula mercantil y de establecimientos de comercio (2023)"]
[]
[null,"[Pack de formatos] Modelos y guías para asambleas de accionistas, socios y copropietarios al cierre del AG 2022"]
[]
[null,"Modelo de acta de reunión de asamblea general para constituir una empresa o fundación"]
[]
[null,"Modelo de acta de cesión y venta de cuotas sociales a terceros en la sociedad de responsabilidad limitada"]
[]
[null,"Modelo de poder de representación para nombrar delegado en asamblea de copropietarios"]
[]
[null,"Modelo de acta de reunión del máximo órgano social para cambio de representante legal"]
[]
[null,"Modelo de acta de decisiones de asamblea de copropietarios"]
[]
[null,"Modelo de convocatoria a asamblea general ordinaria de copropietarios"]
[]
[null,"Liquidadores de sanciones relacionadas con la información exógena"]
[]
[null,"Modelo de acta del máximo órgano social para cambio de los miembros de junta directiva"]
[]
[null,"Modelo de acta de nombramiento del revisor fiscal"]
[]
[null,"Modelo de acta de reunión de junta de socios o asamblea general de accionistas por derecho propio"]
[]
[null,"Modelo de acta para la ampliación del término de duración de una sociedad"]
[]
[null,"Liquidador en Excel de intereses moratorios sobre deudas tributarias"]
[]
[null,"Modelo de carta para notificar la exclusión de un socio de la sociedad"]
[]
[null,"Lista de chequeo de documentos presentados en la asamblea de accionistas o junta de socios"]
[]
[null,"Modelo básico en Excel para proyectar el impuesto al patrimonio 2023 y años siguientes"]
[]
[null,"Calendario tributario 2023 – versión automatizada en Excel"]
[]
[null,"Modelo de convocatoria a asamblea general ordinaria de socios o accionistas"]
[]
[null,"Modelo de convocatoria extraordinaria a asamblea de accionistas o junta de socios"]
[]
[null,"Modelo de acta de distribución de utilidades y pago de dividendos"]
[]
[null,"Modelo de poder de representación en asamblea de accionistas o junta de socios"]
[]
[null,"Modelo de acta de asamblea general de accionistas"]
[]
[null,"Modelo de segunda convocatoria a asamblea general ordinaria de accionistas o junta de socios"]
[]
[null,"Planilla de asistencia y toma de decisiones en asamblea de accionistas o junta de socios"]
[]
[null,"[Guía] Clasificación de las personas jurídicas frente al impuesto de renta y al SIMPLE – AG 2022"]
[]
[null,"Liquidador de horas extra, diurnas, nocturnas, dominicales y festivas"]
[]
[null,"Liquidador de prestaciones sociales y vacaciones"]
[]
[null,"Liquidador automatizado de la prima de servicios con comprobante de pago"]
[]
[null,"Histórico de salario mínimo y auxilio de transporte 1990-2023"]
[]
[null,"Histórico de la variación nominal del salario mínimo e inflación 1993-2023"]
[]
[null,"Matriz de responsabilidades en seguridad social de trabajadores independientes"]
[]
[null,"Modelo del certificado anual a socios y/o accionistas AG 2022"]
[]
[null,"Liquidador de aportes a seguridad social para independientes con contrato de prestación de servicios"]
[]
[null,"Liquidador de aportes a seguridad social de independientes por cuenta propia y con contrato diferente al de prestación de servicios"]
[]
[null,"Calendario tributario distrital 2023"]
[]
[null,"[Guía] Información laboral 2023"]
[]
[null,"Solicitud de compensación en dinero de las vacaciones"]
[]
[null,"Histórico del índice de precios al consumidor –IPC–"]
[]
[null,"Cuadro comparativo de regímenes pensionales en Colombia"]
[]
[null,"Notificación a trabajadores que no tienen derecho a la prima de servicios"]
[]
[null,"Notificación de embargo de la prima de servicios"]
[]
[null,"[Pack de Formatos] 30 dictámenes e informes del revisor fiscal al cierre del AG 2022"]
[]
[null,"Tabla de retención en la fuente 2023"]
[]
[null,"Tablas de retención en la fuente 2023 a título de impuestos nacionales"]
[]
[null,"12 liquidadores para calcular la prima de servicios semestral"]
[]
[null,"Liquidador de cesantías en Excel aplicado a 11 casos prácticos"]
[]
[null,"Liquidador de vacaciones en Excel aplicado a 10 casos prácticos"]
[]
[null,"Liquidador de retención en la fuente con procedimiento 1 durante 2023 sobre rentas de trabajo (laborales y no laborales)"]
[]
[null,"Histórico de la TRM en 2022"]
[]
[null,"Histórico de tasas de intereses moratorios Dian"]
[]
[null,"Liquidador e histórico de porcentajes de reajuste fiscal 2005-2022"]
[]
[null,"Listado de convenios internacionales para evitar la doble tributación – año gravable 2022 y 2023"]
[]
[null,"Informe del revisor fiscal sobre el control interno: manifestación sobre pruebas de cumplimiento y sustantivas"]
[]
[null,"Modelo de carta de aceptación de un encargo de auditoría concreto"]
[]
[null,"Informe de auditoría sobre un solo estado financiero, elemento, partida o cuenta específicos"]
[]
[null,"Informe del revisor fiscal sobre irregularidades y deficiencias en el control interno"]
[]
[null,"Liquidador de prestaciones sociales en período de incapacidad"]
[]
[null,"Liquidador de auxilio de incapacidad (valores asumidos por el empleador, la EPS o la ARL)"]
[]
[null,"Liquidador del auxilio de incapacidad de origen común para trabajador independiente"]
[]
[null,"Liquidador de auxilio de incapacidad aplicado a salario variable, fijo o integral"]
[]
[null,"Calendario tributario 2023 – versión para imprimir"]
[]
[null,"Informe sobre los hallazgos obtenidos en el efectivo y equivalentes al efectivo, según la NISR 4400"]
[]
[null,"Liquidador de sanción por no consignar las cesantías y no pagar los intereses"]
[]
[null,"Simulador de sanción por no pagar la liquidación del contrato laboral"]
[]
[null,"Simulador en Excel para realizar la liquidación de contrato de trabajo"]
[]
[null,"Certificación del contador o revisor fiscal para la inscripción de libros en la cámara de comercio"]
[]
[null,"Informe de revisión de información financiera intermedia: conclusión sin salvedades"]
[]
[null,"Informe de revisión de información financiera intermedia: conclusión con salvedades"]
[]
[null,"Dictamen del revisor fiscal para empresas en liquidación: opinión favorable"]
[]
[null,"Informe del revisor fiscal dirigido a la asamblea de accionistas o junta de socios"]
[]
[null,"Informe de verificación del cumplimiento de requerimientos del programa de incentivo por creación de nuevos empleos, según la NISR 4400"]
[]
[null,"Comparativo de las normas afectadas por la reforma tributaria – Ley 2277 de 2022"]
[]
[null,"Tabla de tarifas de honorarios para contadores públicos en Colombia"]
[]
[null,"Liquidador del costo de la contratación de un trabajador: salario mínimo 2023"]
[]
[null,"Cuadro temático con las normas afectadas por la Ley de reforma tributaria 2277 de 2022"]
[]
[null,"Informe sobre los hallazgos obtenidos en las cuentas por pagar, según la NISR 4400"]
[]
[null,"Informe sobre los hallazgos obtenidos en la auditoría de inventarios, según la NISR 4400"]
[]
[null,"Informe de verificación del cumplimiento de los requerimientos del Paef, según la NISR 4400"]
[]
[null,"[Pack de Formatos] 30 formatos de análisis financiero en Excel"]
[]
[null,"Informe de verificación del cumplimiento del sistema de facturación y nómina electrónica, según la NISR 4400"]
[]
[null,"Guía en Word con los principales cambios en el impuesto de renta de personas jurídicas, Ley 2277 de reforma tributaria 2022"]
[]
[null,"Liquidador en Excel del porcentaje fijo de retención en la fuente sobre salarios en diciembre de 2022 – Procedimiento 2"]
[]
[null,"[Liquidador] Modelo en Excel para calcular la nueva «tasa mínima de tributación» de personas jurídicas, según Ley 2277 de reforma tributaria 2022"]
[]
[null,"Modelo en Excel para calcular el valor del impuesto a las bebidas azucaradas, según Ley 2277 de reforma tributaria 2022"]
[]
[null,"Modelo en Excel para el cálculo de intereses a las cesantías"]
[]
[null,"Modelo para elaborar el comprobante de pago de intereses a las cesantías"]
[]
[null,"Fórmulas para liquidar prestaciones, vacaciones y horas extra"]
[]
[null,"Métodos de medición de activos y pasivos según el Estándar para Pymes"]
[]
[null,"Informe de compilación de estados financieros con fines generales"]
[]
[null,"Informe de compilación de estados financieros con fines específicos"]
[]
[null,"Dictamen del revisor fiscal en entidades del grupo 3 (opinión favorable)"]
[]
[null,"Liquidador y desprendible de nómina básico en Excel"]
[]
[null,"Dictamen del revisor fiscal con comunicación de cuestiones clave y párrafo de énfasis"]
[]
[null,"Dictamen de estados financieros consolidados: opinión desfavorable por incorrección material"]
[]
[null,"Dictamen de estados financieros consolidados: opinión con salvedades cuando no se obtiene evidencia"]
[]
[null,"Dictamen del revisor fiscal con párrafos de cuestiones clave y de otras cuestiones"]
[]
[null,"Dictamen de estados financieros consolidados: opinión sin salvedades"]
[]
[null,"Lista de convenios internacionales para evitar la doble tributación – año gravable 2021"]
[]
[null,"Liquidador Dupont: índice de rentabilidad"]
[]
[null,"Dictamen del revisor fiscal con opinión adversa o desfavorable"]
[]
[null,"Liquidador en Excel de intereses moratorios sobre deudas tributarias"]
[]
[null,"Liquidador de indicadores financieros de endeudamiento"]
[]
[null,"Guía en Excel y casos prácticos de tributación en el impuesto de renta de los dividendos y participaciones 2022"]
[]
[null,"Casos prácticos de liquidación de aportes a seguridad social de independientes con varios contratos de prestación de servicios"]
[]
[null,"[Liquidador] Grados de apalancamiento operativo, financiero y combinado"]
[]
[null,"Liquidador de indicadores financieros: márgenes de utilidad o rentabilidad"]
[]
[null,"Liquidador de indicadores financieros de liquidez"]
[]
[null,"Guía: estructura del informe del revisor fiscal bajo NIA 701 (comunicación de las cuestiones clave de auditoría)"]
[]
[null,"Dictamen del revisor fiscal que incluye opinión con salvedades"]
[]
[null,"Convertidor de UVT"]
[]
[null,"Pack de Formatos para el cierre contable y fiscal del año gravable 2022"]
[]
[null,"[Liquidador] Caso práctico en Excel sobre bancarización por el año gravable 2022"]
[]
[null,"[Liquidador] Casos prácticos en Excel con las diferencias más comunes en el proceso de conciliación fiscal de personas jurídicas"]
[]
[null,"[Liquidador] Casos prácticos en Excel de liquidación de aportes a seguridad social de independientes del transporte de carga"]
[]
[null,"Liquidador de indicadores financieros de actividad y rentabilidad"]
[]
[null,"Dictamen del revisor fiscal con denegación (abstención) de opinión por no obtener evidencia"]
[]
[null,"Simulador en Excel del punto de equilibrio como herramienta de análisis financiero"]
[]
[null,"Modelo de certificado para acceder al incentivo a la creación de nuevos empleos"]
[]
[null,"Caso práctico en Excel sobre adquisición de activos (inventarios) con interés implícito"]
[]
[null,"Guía en Excel con los principales índices de coherencia tributaria para las personas jurídicas"]
[]
[null,"[Guía] Modelo de notas a los estados financieros (estado de resultados)"]
[]
[null,"[Guía] Funciones, responsabilidades y conocimientos para aplicar al cargo de contador público de una empresa industrial"]
[]
[null,"NIA 700 vs. NIA 700 (revisada): comparativo de estructura del informe del revisor fiscal"]
[]
[null,"Guía en Excel para el análisis vertical y horizontal aplicado al estado de situación financiera y al estado de resultado integral"]
[]
[null,"Análisis en Excel de la información de ventas y su pronóstico utilizando el método del índice de estacionalidad"]
[]
[null,"Simulador del beneficio de auditoría para 2021, 2022 y 2023"]
[]
[null,"Modelo en Excel (con macros) del documento soporte para operaciones con no obligados a facturar"]
[]
[null,"Liquidador de sanción por corrección presentada por el contribuyente"]
[]
[null,"Carta de solicitud de licencia no remunerada"]
[]
[null,"Cuenta de cobro para una persona que presta servicios y no es responsable del IVA"]
[]
[null,"Liquidador en Excel sobre efectos fiscales de escriturar bienes inmuebles por debajo del valor comercial"]
[]
[null,"Dictamen del revisor fiscal con comunicación de cuestiones clave (NIA 700 revisada y NIA 701)"]
[]
[null,"[Liquidador] Casos prácticos en Excel de análisis de propuestas de inversión con el uso del valor presente y valor presente neto"]
[]
[null,"Liquidador de indicadores financieros de mercado"]
[]
[null,"[Liquidador] Ejercicios de conversión entre tasas de interés efectiva, nominal y periódica"]
[]
[null,"Liquidador en Excel de intereses moratorios sobre deudas tributarias"]
[]
[null,"Liquidador de aportes a seguridad social para independientes con contrato de prestación de servicios"]
[]
[null,"Lista de convenios internacionales para evitar la doble tributación – año gravable 2021"]
[]
[null,"Modelo en Word de carta de terminación del contrato de trabajo sin justa causa por parte del empleador"]
[]
[null,"[Liquidador] Modelo para la elaboración de estados financieros y pautas para el análisis financiero"]
[]
[null,"[Guía] Modelo en Word de nota 2 a los estados financieros: bases de elaboración y política contable bajo el Estándar para Pymes"]
[]
[null,"Formulario en Excel (con macros) de reclamos del usuario o cliente"]
[]
[null,"[Carta] Modelo en Word de reclamación directa contra proveedor o productor"]
[]
[null,"Lista de chequeo en Excel de las etapas requeridas en el proceso presupuestal"]
[]
[null,"[Guía] Plantilla en Excel (con macros) de la nota crédito"]
[]
[null,"[Guía] Plantilla en Excel (con macros) de la nota débito"]
[]
[null,"[Guía] Informe de entrega del cargo de contador externo a la dirección de una entidad"]
[]
[null,"Caso práctico en Excel de contabilización de ingresos en contratos de construcción"]
[]
[null,"Casos prácticos en Excel sobre la distribución de los CIF (costos indirectos de fabricación)"]
[]
[null,"Modelo en Word de reclamación por garantía sobre bienes o servicios"]
[]
[null,"[Pack de Formatos] Casos prácticos en Excel sobre impuesto diferido en 2022"]
[]
[null,"[Liquidador] Tabla de amortización en Excel de un contrato de leasing"]
[]
[null,"Ejercicio práctico en Excel: valuación de inventarios por el método de identificación específica"]
[]
[null,"[Liquidador] Kárdex por el método del promedio ponderado: caso práctico en Excel"]
[]
[null,"[Liquidador] Formato de hoja de costos en Excel con macros"]
[]
[null,"Casos prácticos en Excel de contabilización de contratos de prestación de servicios independientes"]
[]
[null,"Caso práctico en Excel: contabilización de beneficios a empleados por terminación"]
[]
[null,"[Liquidador] Casos prácticos en Excel de contabilización de contratos de renting"]
[]
[null,"[Guía] Modelo de notas a los estados financieros (estado de situación financiera)"]
[]
[null,"Caso práctico en Excel de corrección de errores de períodos anteriores"]
[]
[null,"Simulador en Excel del estado de situación financiera (análisis comparativo)"]
[]
[null,"[Guía] Modelo en Excel de la estructura del balance de comprobación"]
[]
[null,"[Guía] Matriz en Excel de costos y deducciones de las personas jurídicas en 2022"]
[]
[null,"Casos prácticos de liquidación de seguridad social de independientes con contrato de prestación de servicios"]
[]
[null,"[Guía] Caso práctico en Excel: utilidad del impuesto diferido en la corrección del efecto de las normas fiscales"]
[]
[null,"[Liquidador] Casos prácticos sobre métodos para determinar la naturaleza del impuesto diferido"]
[]
[null,"[Guía] Plantilla en Excel (con macros) del estado de costos de producción y de ventas"]
[]
[null,"Casos prácticos de liquidación y contabilización de sanciones por no inscribirse o actualizar el RUT"]
[]
[null,"[Guía] Plantilla para clasificar una entidad en un grupo de aplicación de los Estándares Internacionales"]
[]
[null,"Ejercicio práctico en Excel: impuesto diferido cuando hay compensación de pérdidas fiscales"]
[]
[null,"[Guía] Matriz en Excel: rentas exentas y descuentos tributarios de las personas jurídicas en 2022"]
[]
[null,"[Liquidador] Casos prácticos de liquidación de aportes a seguridad social de independientes cuenta propia y rentistas de capital"]
[]
[null,"Liquidador en Excel de intereses moratorios sobre deudas tributarias"]
[]
[null,"Guía en Excel para revisiones pertinentes en propiedad, planta y equipo en el proceso de cierre contable"]
[]
[null,"Ejercicio en Excel para el reconocimiento del deterioro de inventarios al cierre contable de una pyme"]
[]
[null,"[Liquidador] Formato en Excel de circularización de proveedores automatizado"]
[]
[null,"[Liquidador] Impuesto diferido por venta de bienes inmuebles a largo plazo en 2022: caso práctico en Excel"]
[]
[null,"[Liquidador] Liquidador en Excel del capital de trabajo"]
[]
[null,"[Liquidador] Impuesto diferido ante deterioro de cartera en 2022: caso práctico en Excel"]
[]
[null,"Caso práctico de impuesto diferido: compensación de pérdidas fiscales y exceso de renta presuntiva"]
[]
[null,"Impuesto diferido por gastos de establecimiento en 2022: caso práctico en Excel"]
[]
[null,"[Contrato] Modelo en Word de acuerdo de pago"]
[]
[null,"Liquidador en Excel de nómina para trabajadora en licencia de maternidad"]
[]
[null,"[Guía] Modelo de presentación del estado de resultado integral por enfoques"]
[]
[null,"Guía en Excel para determinar el control de una entidad sobre otra"]
[]
[null,"Modelo de informe de gestión"]
[]
[null,"Listado de actividades económicas (códigos CIIU)"]
[]
[null,"Modelo de certificado de ingresos de persona natural"]
[]
[null,"Formato de control de clientes de declaración de renta de persona natural"]
[]
[null,"Caso práctico en Excel: impuesto diferido por deterioro de inventario en 2022"]
[]
[null,"Impuesto diferido por diferencia en cambio en 2022: caso práctico en Excel"]
[]
[null,"Impuesto diferido en la depreciación de propiedad, planta y equipo 2022 (caso práctico en Excel)"]
[]
[null,"Caso práctico en Excel: contabilización de sobrantes y faltantes de caja"]
[]
[null,"Caso práctico en Excel de evaluación de diferencias temporarias, temporales y permanentes"]
[]
[null,"Caso práctico en Excel: impuesto diferido por valoración de propiedades de inversión"]
[]
[null,"Modelo de contrato de prestación de servicios"]
[]
[null,"Carta de finalización de un contrato de prestación de servicios"]
[]
[null,"Modelo en Excel de solicitud de permiso laboral"]
[]
[null,"Guía en Excel sobre hechos posteriores al cierre que implican o no ajustes"]
[]
[null,"Modelo en Excel de estructura del estado de resultados y ganancias acumuladas"]
[]
[null,"Caso práctico en Excel de impuesto diferido por acciones medidas a valor razonable"]
[]
[null,"Caso práctico en Excel: impuesto diferido por valorización de activos intangibles"]
[]
[null,"Caso práctico en Excel: impuesto diferido por provisiones no aceptadas fiscalmente"]
[]
[null,"Impuesto diferido por activos biológicos en 2022: caso práctico en Excel"]
[]
[null,"Guía y casos prácticos en Excel para la medición de inversiones según el Estándar Internacional"]
[]
[null,"Modelos de conciliación bancaria (individual y conjunta) en Excel"]
[]
[null,"Caso práctico en Excel: contabilización de ajustes por conciliación bancaria"]
[]
[null,"Carta en Word de aviso a empleados para la elección del fondo de cesantías"]
[]
[null,"Cálculo del costo amortizado y la TIR"]
[]
[null,"Clasificación de arrendamientos según la sección 20 del Estándar para Pymes: casos prácticos en Excel"]
[]
[null,"Liquidador en Excel de aportes a ARL para trabajadores independientes"]
[]
[null,"[Guía] Formato en Excel para reembolso de caja menor"]
[]
[null,"Modelo en Excel de orden de compra"]
[]
[null,"Modelo de proyecto de distribución de utilidades en una sociedad comercial"]
[]
[null,"Casos prácticos en Excel del efecto del cálculo del valor residual en el estado de resultados"]
[]
[null,"[Pack de formatos] Pack de Formatos para gestionar tus finanzas personales"]
[]
[null,"Ejemplos de reconocimiento de provisiones y pasivos contingentes según el Estándar para Pymes"]
[]
[null,"Contabilización de depreciación bajo Estándares Internacionales: casos prácticos en Excel"]
[]
[null,"Estado de flujos de efectivo por el método directo: ejercicio práctico y plantilla en Excel"]
[]
[null,"Estado de flujos de efectivo por el método indirecto: ejercicio práctico y plantilla en Excel"]
[]
[null,"Plantilla en Excel para elaborar el estado de cambios en el patrimonio"]
[]
[null,"Modelo de carta de renuncia"]
[]
[null,"Modelo en Excel del estado de resultados con enfoque de gastos por naturaleza o función"]
[]
[null,"[Guía] Planeador en Excel para contadores públicos"]
[]
[null,"Liquidador en Excel para calcular la contribución 2022 a la Supersociedades"]
[]
[null,"[Liquidador] Caso práctico en Excel: contabilización de reembolso de caja menor"]
[]
[null,"Modelo de llamado de atención"]
[]
[null,"[Guía] Modelo de políticas contables “Base para la preparación de Estados Financieros” bajo el Estándar Internacional para Pymes"]
[]
[null,"Modelo de certificación de estados financieros (versión simplificada)"]
[]
[null,"Modelo de carta de respuesta a la solicitud de un servicio"]
[]
[null,"Modelo de certificación de estados financieros consolidados"]
[]
[null,"Simulador de casos para clasificar instrumentos financieros como pasivos o patrimonio"]
[]
[null,"Informe en Word de entrega de soportes de declaración de renta de persona natural"]
[]
[null,"Simulador en Excel de firmeza de las declaraciones de renta del año gravable 2021"]
[]
[null,"Carta en Word de aceptación de renuncia de trabajador"]
[]
[null,"Modelo de nota 1 a los Estados Financieros bajo el Estándar para Pymes"]
[]
[null,"Liquidador en Excel para la determinación de diferencias temporarias e impuesto diferido"]
[]
[null,"Lista de chequeo en Excel para efectuar el cierre contable y fiscal de una entidad"]
[]
[null,"[Liquidador] Plantilla en Excel para el control de entrega de dotación a empleados"]
[]
[null,"Liquidador en Excel para el cálculo de intereses de mora y su IVA en cuentas por cobrar vencidas"]
[]
[null,"[Liquidador] Casos prácticos en Excel de contabilización de utilidades y dividendos"]
[]
[null,"[Liquidador] Casos prácticos en Excel de contabilización de aportes a capital social"]
[]
[null,"Formulario 210: declaración de renta de personas naturales residentes que no llevan contabilidad AG 2021"]
[]
[null,"Formato de cálculo de horas extra y recargos mensuales o quincenales"]
[]
[null,"[Liquidador] Casos prácticos en Excel de contabilización de inversiones en criptomonedas"]
[]
[null,"[Liquidador] Casos prácticos en Excel de contabilización de inversiones en CDT"]
[]
[null,"Modelo de citación a descargos"]
[]
[null,"Solicitud al banco por desacuerdo en estado de cuenta o extracto"]
[]
[null,"Plantilla de control de cuentas por pagar y política de pago a proveedores"]
[]
[null,"Casos prácticos de contabilización de arrendamientos financiero y operativo"]
[]
[null,"Casos prácticos de contabilización de venta de activos fijos"]
[]
[null,"Formato de arqueo de caja menor"]
[]
[null,"Formato de arqueo de caja general"]
[]
[null,"Liquidador de aportes a seguridad social de independientes por cuenta propia y rentistas de capital"]
[]
[null,"Solicitud de cancelación de cuenta bancaria"]
[]
[null,"Liquidador de aportes a seguridad social para independientes con contrato de prestación de servicios"]
[]
[null,"Plantilla de control de cuentas por cobrar y política de recaudo a clientes"]
[]
[null,"Caso práctico de baja de cuentas por cobrar"]
[]
[null,"Caso práctico de contabilización de cheques devueltos"]
[]
[null,"Proyecto de reforma tributaria de Petro: cuadro temático de las normas que se modificarían"]
[]
[null,"Certificación de mora en propiedad horizontal"]
[]
[null,"Casos prácticos de contabilización de compras con tarjetas de crédito"]
[]
[null,"Comparativo de pagos a trabajador (contrato de trabajo vs. contrato de prestación de servicios)"]
[]
[null,"Solicitud de retiro de cesantías para estudio"]
[]
[null,"Lista de convenios internacionales para evitar la doble tributación – año gravable 2021"]
[]
[null,"Casos prácticos de deterioro de cartera fiscal (provisión individual y general)"]
[]
[null,"Caso práctico de contabilización de compras a crédito"]
[]
[null,"Caso práctico de contabilización de compras de contado"]
[]
[null,"Liquidador de refinanciación de deuda: método ecuación de valor equivalente"]
[]
[null,"Derecho de petición para solicitar información a entidad financiera"]
[]
[null,"Liquidador del nivel de endeudamiento de una persona"]
[]
[null,"Solicitud de inversión de capital"]
[]
[null,"Simulador de CDT"]
[]
[null,"Caso práctico de contabilización de impuestos asumidos"]
[]
[null,"Casos prácticos de contabilización de ventas de contado y a crédito"]
[]
[null,"Modelo para proyectar el presupuesto personal del contador"]
[]
[null,"Solicitud de certificado de inversiones realizadas en una entidad"]
[]
[null,"Modelo de propuesta de proyecto empresarial"]
[]
[null,"Caso práctico de contabilización de incapacidades laborales"]
[]
[null,"Modelo de autorización para el tratamiento y la protección de datos personales"]
[]
[null,"Modelo de carta de solicitud de corrección de información exógena"]
[]
[null,"Caso práctico de declaración de renta a partir de información reportada por terceros"]
[]
[null,"Modelo de contrato de teletrabajo"]
[]
[null,"Comparativo de normas del DUT 1625 de 2016 sobre el beneficio de obras por impuestos afectadas con el Decreto 1208 de 2022"]
[]
[null,"20 liquidadores de sanciones y procedimiento tributario 2022"]
[]
[null,"Caso práctico de contabilización de prestaciones sociales y vacaciones"]
[]
[null,"Liquidador de sanción por extemporaneidad antes del emplazamiento"]
[]
[null,"Liquidador de sanción por extemporaneidad después del emplazamiento"]
[]
[null,"Beneficio de auditoría para personas naturales AG 2021: casos prácticos en Excel"]
[]
[null,"Casos prácticos del cálculo de la materialidad en auditoría"]
[]
[null,"Formato de circularización de clientes automatizado"]
[]
[null,"Contabilización de sobregiros bancarios (caso práctico)"]
[]
[null,"Cálculo del anticipo de impuesto de renta (casos prácticos)"]
[]
[null,"Carta de solicitud de inmovilización de cesantías para adquisición de vivienda"]
[]
[null,"Formato de control de vacaciones de empleados"]
[]
[null,"Modelo para tramitar una queja ante la Superintendencia Financiera de Colombia"]
[]
[null,"Modelo para calcular cuota variable de un crédito con abonos a capital iguales"]
[]
[null,"Abonos a capital realizados a un préstamo en un rango de tiempo"]
[]
[null,"Cálculo de intereses pagados por un préstamo en un rango de tiempo determinado"]
[]
[null,"Número de cuotas o pagos de un proyecto de financiación o inversión"]
[]
[null,"Modelo para calcular cuota variable de un crédito con abonos a capital iguales"]
[]
[null,"Calculadora de fechas"]
[]
[null,"Solicitud de acuerdo de pago para saldar obligación financiera"]
[]
[null,"Simulador de préstamo para vivienda: modalidad de cuota fija en pesos"]
[]
[null,"Simulador de préstamo para vivienda: modalidad de cuota fija en pesos"]
[]
[null,"Formato de flujo de caja real y presupuestado"]
[]
[null,"Casos prácticos del valor patrimonial de los vehículos en la declaración de renta de personas naturales"]
[]
[null,"Plantilla para elaborar el presupuesto de consumo de materiales (costos variables)"]
[]
[null,"Ejercicios para determinar si una persona natural está obligada a presentar renta por el AG 2021"]
[]
[null,"Caso práctico del tratamiento de las cesantías en la declaración de renta"]
[]
[null,"Formato de quejas y reclamos"]
[]
[null,"Formulario 160 AG 2022 para la declaración de activos en el exterior"]
[]
[null,"Modelo de carta para notificar vacaciones a empleados"]
[]
[null,"Liquidador de sanciones por incumplir con la obligación de inscribirse en el RUT"]
[]
[null,"Liquidador de sanción por inexactitud con macros"]
[]
[null,"Sanción por inexactitud para declarantes de ingresos y patrimonio"]
[]
[null,"Simulador para comparar créditos bancarios con tabla de amortización"]
[]
[null,"Casos prácticos de contabilización de sanciones e intereses tributarios a la Dian"]
[]
[null,"Liquidador de actualización de sanciones tributarias"]
[]
[null,"Caso práctico de impuesto diferido por mejoras en propiedades ajenas"]
[]
[null,"Caso práctico sobre liquidación de sucesión ilíquida e impuesto de ganancia ocasional"]
[]
[null,"Caso práctico: aportes del Paef en la declaración de renta de personas naturales"]
[]
[null,"Liquidador y desprendible de nómina básico en Excel"]
[]
[null,"Casos prácticos de sanción por extemporaneidad después de emplazamiento"]
[]
[null,"Casos prácticos de contabilización de inventarios en pymes"]
[]
[null,"Formato en Excel para la toma de inventario físico (con macros)"]
[]
[null,"Ejercicios sobre la determinación de la renta líquida de trabajo cuando hay rentas laborales y honorarios"]
[]
[null,"Formato de solicitud de permiso compensatorio por votaciones"]
[]
[null,"Plantilla para el control del incremento de salario de empleados"]
[]
[null,"[Pack de formatos] Guías laborales para notificaciones por parte del empleador"]
[]
[null,"Plantilla automática para el control y auditoría del gasto de servicios públicos"]
[]
[null,"Casos prácticos de sanción por extemporaneidad antes de emplazamiento"]
[]
[null,"Valor patrimonial de acciones y aportes en la declaración de renta de personas naturales AG 2021"]
[]
[null,"Modelo de política de desconexión laboral"]
[]
[null,"Acta de diligencia de descargos"]
[]
[null,"Carta de recomendación"]
[]
[null,"Carta de terminación del contrato por dificultades económicas del empleador"]
[]
[null,"Notificación de vacaciones colectivas"]
[]
[null,"Modelo de certificación para notificar al empleado exámenes médicos ocupacionales"]
[]
[null,"Certificado de prácticas laborales realizadas por el estudiante o pasante"]
[]
[null,"Carta para retiro de cesantías por terminación del contrato laboral"]
[]
[null,"Casos prácticos de contabilización de ingresos en pymes bajo Estándares Internacionales"]
[]
[null,"Diferencias principales en el impuesto de renta AG 2021 para personas naturales obligadas y no obligadas a llevar contabilidad"]
[]
[null,"Acuerdo para pago de auxilios extralegales o no salariales"]
[]
[null,"Carta de bienvenida para un nuevo trabajador"]
[]
[null,"Carta deseando felices fiestas a empleados"]
[]
[null,"Carta para invitar al empleado a disfrutar del día de la familia"]
[]
[null,"Control de disfrute del día de la familia (planilla en Excel)"]
[]
[null,"Guía y casos prácticos de tributación en el impuesto de renta de los dividendos y participaciones AG 2021"]
[]
[null,"Notificación a empleado de la reducción de la jornada laboral"]
[]
[null,"Casos prácticos de liquidación de intereses moratorios de obligaciones tributarias"]
[]
[null,"Liquidador automático de utilidad por venta de activo fijo depreciable que será renta por recuperación de deducciones"]
[]
[null,"Caso práctico de liquidación de nómina en junio de trabajador que devenga el salario mínimo 2022"]
[]
[null,"Liquidador de sanción por no presentar la conciliación fiscal"]
[]
[null,"Casos prácticos de retención en la fuente sobre prima de servicios"]
[]
[null,"Casos prácticos de contabilización de donaciones"]
[]
[null,"Liquidador de aportes a seguridad social durante la licencia de maternidad"]
[]
[null,"Matriz y 9 ejemplos de residencia fiscal de las personas naturales"]
[]
[null,"Liquidador automatizado de la prima de servicios con comprobante de pago"]
[]
[null,"Liquidador de sanciones aplicables a la documentación comprobatoria"]
[]
[null,"Liquidador de sanciones relacionadas con la declaración informativa de precios de transferencia"]
[]
[null,"Carta para solicitar acuerdo de pago para obligaciones vencidas ante la Dian"]
[]
[null,"Carta de solicitud de desembargo de bienes ante la Dian"]
[]
[null,"Liquidador (con macros) de nómina de empleados de servicio doméstico que laboran por días"]
[]
[null,"Formato de estado de flujos de efectivo"]
[]
[null,"Formato de cotización comercial"]
[]
[null,"Caso práctico de contabilización de un préstamo bancario en pymes y microempresas"]
[]
[null,"Casos prácticos de determinación del valor patrimonial de los bienes inmuebles de personas naturales"]
[]
[null,"Pack de 33 formatos para la declaración de renta de personas naturales 2021"]
[]
[null,"Modelo de carta de renuncia del revisor fiscal"]
[]
[null,"Guía para muestra de auditoría simple y aleatoria"]
[]
[null,"Modelo de certificación del revisor fiscal sobre pagos a la seguridad social y parafiscales"]
[]
[null,"Calendario tributario 2022 – versión para imprimir"]
[]
[null,"Calendario tributario 2022 – versión automatizada en Excel"]
[]
[null,"Liquidador de topes de ingresos para presentar formatos de conciliación fiscal 2516 y 2517"]
[]
[null,"Casos prácticos sobre AIU: cálculo del IVA y retención en la fuente en esta figura"]
[]
[null,"Modelo de certificación del tamaño de una empresa en Colombia"]
[]
[null,"Liquidador con macros para calcular la renta gravable por comparación patrimonial"]
[]
[null,"Simulador del impuesto de renta de personas naturales (honorarios o compensación de servicios)"]
[]
[null,"Modelo de convenio de prácticas estudiantiles profesionales"]
[]
[null,"Modelo de acta de reunión de junta directiva"]
[]
[null,"Modelo de contrato de prestación de servicios de revisoría fiscal"]
[]
[null,"Implicaciones básicas de ser residente fiscal frente al impuesto de renta de personas naturales AG 2021"]
[]
[null,"Listado de contribuyentes inscritos en el régimen simple"]
[]
[null,"Plantilla para el control y auditoría del gasto de celulares"]
[]
[null,"Modelo en Excel (con macros) del documento soporte para operaciones con no obligados a facturar"]
[]
[null,"Casos prácticos de retención en la fuente por compras, servicios y honorarios"]
[]
[null,"Liquidador de porcentaje fijo de retención en la fuente sobre salarios en junio de 2022 – procedimiento 2"]
[]
[null,"20 formatos para elaborar contratos de trabajo"]
[]
[null,"Modelo de solicitud de permiso para autorizar el trabajo en horas extra"]
[]
[null,"Modelo de contrato de aprendizaje"]
[]
[null,"Formato de acuerdo de confidencialidad"]
[]
[null,"Contrato de trabajo de servicio doméstico al día"]
[]
[null,"Carta de preaviso de terminación del contrato a término fijo"]
[]
[null,"Contrato de trabajo con salario integral a término fijo e indefinido"]
[]
[null,"Contrato de obra o labor"]
[]
[null,"Acuerdo de suspensión del contrato de trabajo"]
[]
[null,"Contrato de trabajo con menor de edad a término indefinido"]
[]
[null,"Casos prácticos de depuración del impuesto de ganancia ocasional en 4 escenarios"]
[]
[null,"Simulador del beneficio de auditoría para 2021, 2022 y 2023"]
[]
[null,"Formulario 110 y formato 2516 AG 2021 – declaración de renta de personas naturales no residentes que llevan contabilidad"]
[]
[null,"Liquidador del componente inflacionario de los rendimientos o costos financieros"]
[]
[null,"Caso práctico de descuento por pronto pago en pymes y microempresas"]
[]
[null,"Lista de chequeo: documentos para elaborar la declaración de renta de personas naturales"]
[]
[null,"Simulador para determinar si una persona natural es residente fiscal en Colombia"]
[]
[null,"Normas del impuesto de renta de personas naturales que sufrieron cambios para el AG 2021"]
[]
[null,"Lista de documentos para la terminación laboral cuando el trabajador se retira"]
[]
[null,"Modelo de comunicación para la habilitación del trabajo en casa"]
[]
[null,"Formulario 110 AG 2021 – declaración de renta de personas naturales no residentes que no llevan contabilidad"]
[]
[null,"Modelo de contrato de trabajo de servicio doméstico a término fijo"]
[]
[null,"Modelo de contrato de trabajo de auxiliar contable a término indefinido"]
[]
[null,"Formulario 210 y formato 2517 para la declaración de renta AG 2021 – residentes que llevan contabilidad"]
[]
[null,"Liquidador para la clasificación de empresas en Colombia según sus ingresos y sector económico"]
[]
[null,"Liquidador de sanción por corrección presentada por el contribuyente"]
[]
[null,"10 liquidadores de sanción por no declarar"]
[]
[null,"Caso práctico de criptoactivos de una persona natural en la declaración de renta AG 2021"]
[]
[null,"Comparativo de normas del DUT 1625 de 2016 relacionadas con el RUT y afectadas por el Decreto 678 de 2022"]
[]
[null,"Modelo de contrato de trabajo remoto"]
[]
[null,"Simulador para el cálculo del límite del descuento por impuestos pagados en el exterior"]
[]
[null,"Caso práctico de liquidación de un trabajador doméstico que devenga el salario mínimo en 2022"]
[]
[null,"Simulador del impuesto sobre dividendos y participaciones gravados de 2016 y anteriores"]
[]
[null,"Ejercicio en Excel de depreciación en línea recta según la limitación del artículo 137 del ET"]
[]
[null,"Excel del formulario 2593 AG 2022: declaración de anticipos bimestrales – régimen simple"]
[]
[null,"Modelo de citación a descargos en la propiedad horizontal"]
[]
[null,"Modelo de notificación de sanción disciplinaria a trabajador"]
[]
[null,"Lista de chequeo de documentos para contratación laboral a solicitar al trabajador"]
[]
[null,"Modelo de contrato de prestación de servicios de auditoría externa"]
[]
[null,"Matriz de características básicas de la depuración de las 3 cédulas del formulario 210 AG 2021"]
[]
[null,"Modelo para el incremento anual del arrendamiento comercial"]
[]
[null,"Liquidador para determinar la periodicidad del IVA"]
[]
[null,"Simulador: cálculo de la distribución de rentas exentas y deducciones limitadas"]
[]
[null,"Simulador del impuesto para dividendos y participaciones no gravados de 2017 y siguientes"]
[]
[null,"Simulador para que independientes decidan si restan costos o gastos, o renta exenta del 25 %"]
[]
[null,"Caso práctico de contabilización de devoluciones en ventas"]
[]
[null,"Modelos de certificación de dependientes para deducción en declaración de renta"]
[]
[null,"Ejemplo de la depuración de la sección de rentas de capital del formulario 210"]
[]
[null,"Modelo de autorización de descuento por libranza"]
[]
[null,"Modelo de derecho de petición para solicitar certificado laboral"]
[]
[null,"Simulador del impuesto para dividendos y participaciones gravados de 2017 y siguientes"]
[]
[null,"Caso práctico de determinación de la ganancia ocasional gravable de una persona natural residente"]
[]
[null,"Aplicación del impuesto a los dividendos recibidos por personas naturales (caso práctico en Excel)"]
[]
[null,"Caso práctico de determinación de la renta líquida cedular por pensiones del exterior"]
[]
[null,"Depuración de la sección de rentas no laborales del formulario 210 (caso práctico en Excel)"]
[]
[null,"Modelo de contrato de trabajo a término indefinido"]
[]
[null,"Modelo de contrato de trabajo a término fijo"]
[]
[null,"Tratamiento del ICA como descuento o deducción para personas naturales: caso práctico en Excel"]
[]
[null,"Formulario 260 AG 2021 – declaración anual del régimen simple (personas naturales que no llevan contabilidad)"]
[]
[null,"Formulario 260 AG 2021 – declaración anual régimen simple (personas naturales y jurídicas que llevan contabilidad)"]
[]
[null,"Certificado de no declarante del impuesto de renta y complementario 2021"]
[]
[null,"[Pack de Formatos] 30 formatos para elaborar la declaración de renta de personas jurídicas año gravable 2021"]
[]
[null,"Matriz de categorías para el reporte de información exógena y los formatos para el año gravable 2021"]
[]
[null,"Plantilla del formato 1001 por el año gravable 2021: reporte de exógena de pagos o abonos en cuenta"]
[]
[null,"Plantilla del formato 2276 y del 2280 para el reporte de información exógena de 2021"]
[]
[null,"Plantilla de los formatos 1005 y 1006 para el reporte de exógena 2021: reportes de IVA generados y descontables"]
[]
[null,"Plantilla del formato 1003 para el reporte de exógena 2021: retenciones que le practicaron al informante"]
[]
[null,"Plantilla de formatos 1011, 1012 y 2275 de exógena: reporte de otros datos en renta e IVA en 2021"]
[]
[null,"Plantilla del formato 1009 para el reporte de exógena 2021: información de cuentas por pagar"]
[]
[null,"Plantilla de los formatos de exógena por el año gravable 2021: reportes de los mandatarios"]
[]
[null,"Plantilla del formato 1008 para el reporte de exógena 2021: información de cuentas por cobrar"]
[]
[null,"Plantilla del formato 1010 para reporte de exógena 2021: información de socios, cooperados o comuneros"]
[]
[null,"Plantilla del formato 1007 para el reporte de exógena 2021: información de ingresos propios"]
[]
[null,"Plantilla del formato 1647 para el reporte de ingresos recibidos para terceros – exógena 2021"]
[]
[null,"Plantilla del formato 1004 de exógena de 2021: reporte de descuentos al impuesto de renta y el SIMPLE"]
[]
[null,"[Pack de Formatos] Guías para el reporte de información exógena 2021: ¡descárgalas ya!"]
[]
[null,"Ejemplo en Excel de la declaración de renta de un pensionado en Colombia"]
[]
[null,"Liquidador del impuesto sobre la renta líquida de las cédulas general y de pensiones"]
[]
[null,"Simulador del límite de pagos en efectivo a partir de 2018"]
[]
[null,"Modelo de certificado laboral para deducción del primer empleo"]
[]
[null,"31 casos prácticos sobre el reporte de información exógena por el año gravable 2021"]
[]
[null,"Guía en Excel para evitar errores en la presentación de información exógena"]
[]
[null,"Liquidador del costo de renovación de matrícula mercantil y de establecimientos de comercio (2022)"]
[]
[null,"Histórico de la TRM en 2021"]
[]
[null,"Formulario 310 AG 2022: declaración del impuesto nacional al consumo (plantilla para borrador)"]
[]
[null,"Histórico del índice de precios al consumidor –IPC–"]
[]
[null,"Listado de códigos de usuario aduanero para diligenciar la casilla 54 del RUT"]
[]
[null,"[2022] Histórico de salario mínimo y auxilio de transporte"]
[]
[null,"[2022] Histórico de la variación nominal del salario mínimo vs. la inflación 1993-2022"]
[]
[null,"Guía para auditar el formato 2516 AG 2021: conciliación fiscal de las personas jurídicas"]
[]
[null,"Modelo de certificado de retención en la fuente por conceptos diferentes a rentas laborales"]
[]
[null,"Herramienta en Excel para la consulta de terceros en la Dian"]
[]
[null,"Liquidador del anticipo del impuesto de renta 2022 para personas jurídicas y naturales"]
[]
[null,"Liquidador del formulario 110 y formato 2516: declaración de renta de personas jurídicas AG 2021"]
[]
[null,"Contabilización de los ingresos del Paef y otros beneficios laborales: ejercicio en Excel"]
[]
[null,"Cálculo del límite de subcapitalización: casos prácticos en Excel"]
[]
[null,"Casos prácticos en Excel sobre ventas en los días sin IVA en 2022"]
[]
[null,"Certificado de ingresos y retenciones: plantilla del formulario 220 y del formato 2276 – AG 2021"]
[]
[null,"Modelo de certificado de donación para que proceda descuento tributario en la declaración de renta"]
[]
[null,"Certificación de baja de inventarios por obsolescencia"]
[]
[null,"Modelo de certificado laboral"]
[]
[null,"Carta de solicitud de licencia no remunerada"]
[]
[null,"Carta para notificar un incremento de salario"]
[]
[null,"Calendario de implementación del documento soporte de pago de nómina electrónica"]
[]
[null,"Dictámenes e informes del revisor fiscal actualizados al 2022"]
[]
[null,"Caso práctico de liquidación de nómina con salario integral 2022"]
[]
[null,"Informe de verificación del cumplimiento del sistema de facturación y nómina electrónica"]
[]
[null,"Listado de códigos de responsabilidades tributarias (casilla 53 del RUT)"]
[]
[null,"Informe NISR 4400 para revisión de requerimientos del programa de incentivo por creación de nuevos empleos"]
[]
[null,"Informe del revisor fiscal al finalizar el encargo"]
[]
[null,"Informe de verificación del cumplimiento de los requerimientos del Paef, según la NISR 4400"]
[]
[null,"Informe del revisor fiscal sobre irregularidades y deficiencias en el control interno"]
[]
[null,"Informe del revisor fiscal sobre irregularidades y deficiencias en el control interno"]
[]
[null,"[Carta] Propuesta para la prestación de servicios de revisoría fiscal en una copropiedad"]
[]
[null,"Tabla de retención en la fuente 2022"]
[]
[null,"Informe NISR 4400 de revisión de ingresos para acceder al apoyo a empresas afectadas por el paro nacional"]
[]
[null,"Dictamen de revisor fiscal con comunicación de cuestiones clave y párrafo de énfasis"]
[]
[null,"Dictamen del revisor fiscal en entidades del grupo 3 (opinión favorable)"]
[]
[null,"Ingresos por venta de criptoactivos en la declaración de renta: caso práctico en Excel"]
[]
[null,"Plantilla para elaborar el formulario 300 para las declaraciones del IVA en 2022"]
[]
[null,"Simulador de tributación en el régimen simple vs. régimen ordinario – año gravable 2022"]
[]
[null,"Clasificación de las personas jurídicas frente al impuesto de renta y al SIMPLE – año gravable 2021"]
[]
[null,"Simulador para determinar el valor patrimonial de los criptoactivos"]
[]
[null,"Matriz: rentas exentas y descuentos tributarios de las personas jurídicas en 2021"]
[]
[null,"Carta de aceptación de un encargo de auditoría concreto"]
[]
[null,"Informe de auditoría sobre un solo estado financiero, elemento, partida o cuenta específicos"]
[]
[null,"Informe de revisión de información financiera intermedia con salvedades"]
[]
[null,"Dictamen de estados financieros consolidados: opinión desfavorable por incorrección material"]
[]
[null,"Dictamen de estados financieros consolidados: opinión con salvedades cuando no se obtiene evidencia"]
[]
[null,"Modelo de dictamen con opinión adversa o desfavorable"]
[]
[null,"Informe de compilación de estados financieros con fines generales"]
[]
[null,"Informe de compilación de estados financieros con fines específicos"]
[]
[null,"Guía: estructura del informe del revisor fiscal bajo NIA 701 (cuestiones clave de auditoría)"]
[]
[null,"Dictamen del revisor fiscal con párrafos de cuestiones clave y de otras cuestiones"]
[]
[null,"Dictamen del revisor fiscal que incluye opinión con salvedades"]
[]
[null,"Liquidador del cálculo de retención en la fuente por pensiones obtenidas en 2022"]
[]
[null,"Liquidador del costo fiscal de los inventarios para obligados a llevar contabilidad"]
[]
[null,"Liquidador del impuesto de normalización tributaria 2022 y su anticipo para 2021"]
[]
[null,"Modelo de poder de representación para nombrar delegado en asamblea de copropietarios"]
[]
[null,"[Pack de formatos] 24 modelos y guías para asambleas de accionistas, socios y copropietarios"]
[]
[null,"Modelo de acta de distribución de utilidades y pago de dividendos"]
[]
[null,"Modelo de acta de cesión y venta de cuotas sociales a terceros a la sociedad de responsabilidad limitada"]
[]
[null,"Modelo de acta de decisiones de asamblea de copropietarios"]
[]
[null,"Acta de reunión de junta de socios o asamblea por derecho propio"]
[]
[null,"Dictamen del revisor fiscal con denegación (abstención) de opinión por no obtener evidencia"]
[]
[null,"NIA 700 vs. NIA 700 (revisada): comparativo de estructura del informe del revisor fiscal"]
[]
[null,"Dictamen del revisor fiscal con comunicación de cuestiones clave (NIA 700 revisada y NIA 701)"]
[]
[null,"Modelo en Excel: cálculo de intereses presuntivos en 2021 sobre préstamos entre socios y sociedades"]
[]
[null,"Modelo de acta de ampliación del término de duración de una sociedad comercial"]
[]
[null,"Plantilla en Excel del formulario 350 AG 2022 – declaración de retención en la fuente"]
[]
[null,"Modelo de acta de asamblea de constitución de empresa o fundación"]
[]
[null,"Modelo de acta del máximo órgano social para cambio de los miembros de junta directiva"]
[]
[null,"Modelo de acta de nombramiento del revisor fiscal"]
[]
[null,"Modelo de acta de reunión de máximo órgano social para cambio de representante legal"]
[]
[null,"Tributación sobre dividendos y el cálculo de su retención luego de la Ley 2010 de 2019"]
[]
[null,"Modelo de convocatoria de asamblea de copropietarios"]
[]
[null,"Lista de chequeo de documentos presentados en asamblea de accionistas o junta de socios"]
[]
[null,"Modelo de convocatoria extraordinaria a asamblea de accionistas o junta de socios"]
[]
[null,"Modelo de poder de representación en asamblea de accionistas o junta de socios"]
[]
[null,"Modelo de acta de asamblea general de accionistas"]
[]
[null,"Dictamen de estados financieros consolidados (opinión sin salvedades)"]
[]
[null,"Modelo de segunda convocatoria a asamblea general ordinaria de accionistas o junta de socios"]
[]
[null,"Simulador de casos de deducciones y costos estimados para la declaración de renta 2021"]
[]
[null,"Modelo del certificado anual para socios y/o accionistas por el año 2021"]
[]
[null,"Rentas exentas para empresas de economía naranja – año gravable 2021"]
[]
[null,"Casos de ganancia ocasional por venta de activos fijos depreciables del año gravable 2021"]
[]
[null,"Simulador del límite de costos y gastos no soportados en factura electrónica"]
[]
[null,"Carta para notificar la exclusión de un socio de la sociedad"]
[]
[null,"Informe sobre los hallazgos obtenidos en las cuentas por pagar"]
[]
[null,"Informe sobre los hallazgos obtenidos en la auditoría de inventarios"]
[]
[null,"Efectivo y equivalentes al efectivo: informe sobre los hallazgos obtenidos"]
[]
[null,"[Guía] Información laboral 2022"]
[]
[null,"Tabla para liquidar indemnizaciones por pérdida de capacidad laboral"]
[]
[null,"Plantilla para clasificar una entidad en un grupo de aplicación de los Estándares Internacionales"]
[]
[null,"Aviso de pago de salarios y prestaciones sociales de trabajador fallecido"]
[]
[null,"12 liquidadores para calcular la prima de servicios semestral"]
[]
[null,"Liquidador de cesantías en Excel aplicado a 11 casos prácticos"]
[]
[null,"[Pack de formatos] Formatos para la liquidación de nómina paso a paso"]
[]
[null,"Liquidador de nómina mensual de trabajador pensionado por vejez"]
[]
[null,"Cuadro comparativo de regímenes pensionales en Colombia"]
[]
[null,"Responsabilidad en seguridad social de trabajadores independientes"]
[]
[null,"Modelo de convocatoria a asamblea general ordinaria de socios o accionistas"]
[]
[null,"Contabilización de la nómina: ejemplo práctico"]
[]
[null,"Tablas de retención en la fuente 2022 a título de impuestos nacionales"]
[]
[null,"Liquidador de prestaciones sociales en período de incapacidad"]
[]
[null,"Liquidador de auxilio de incapacidad (valores asumidos por el empleador, la EPS o la ARL)"]
[]
[null,"Liquidador de prestaciones sociales y vacaciones"]
[]
[null,"Liquidador de indemnización por despido sin justa causa (contrato indefinido)"]
[]
[null,"Liquidador de indemnización por despido sin justa causa (para contrato fijo u obra o labor)"]
[]
[null,"Acta de entrega de dotación"]
[]
[null,"Solicitud compensación en dinero de las vacaciones"]
[]
[null,"Carta de terminación de contrato de trabajo con justa causa"]
[]
[null,"Formato de autorización de descuentos sobre salarios por préstamos al trabajador"]
[]
[null,"Liquidación de nómina cuando hay incapacidad: caso práctico"]
[]
[null,"Histórico de tasas de intereses moratorios Dian"]
[]
[null,"Liquidador de retención en la fuente con procedimiento 1 sobre rentas de trabajo durante 2022"]
[]
[null,"Liquidador de la prima legal de servicios semestral"]
[]
[null,"Liquidador de horas extra, diurnas, nocturnas, dominicales y festivas"]
[]
[null,"Guía sobre propiedad horizontal en Colombia: 379 preguntas resueltas"]
[]
[null,"Tabla de tarifas de honorarios para contadores públicos en Colombia"]
[]
[null,"Liquidador e histórico de porcentajes de reajuste fiscal 2005-2021"]
[]
[null,"Calendario tributario distrital 2022"]
[]
[null,"Liquidador de sanción por no consignar las cesantías y no pagar los intereses"]
[]
[null,"Liquidador de seguridad social, parafiscales y prestaciones en vacaciones"]
[]
[null,"Herramienta Interactiva para elaborar la hoja de vida de un contador público"]
[]
[null,"Nota por aplicar la exención de contabilización del impuesto diferido de 2021"]
[]
[null,"Fórmulas para liquidar prestaciones, vacaciones y horas extra"]
[]
[null,"Liquidador del costo de la contratación de un trabajador: salario mínimo 2022"]
[]
[null,"Simulador en Excel para realizar la liquidación de contrato de trabajo"]
[]
[null,"Liquidador de vacaciones en Excel aplicado a 10 casos prácticos"]
[]
[null,"Liquidador de sanciones por no facturar"]
[]
[null,"Liquidador de sanciones por expedir facturas sin los requisitos legales"]
[]
[null,"Métodos de medición de activos y pasivos según el Estándar para Pymes"]
[]
[null,"Carta para solicitar el certificado de donación para efectuar descuento tributario"]
[]
[null,"Liquidadores de sanciones relacionadas con la información exógena resueltas en 2022"]
[]
[null,"Liquidador de sanción por inexactitud en Excel"]
[]
[null,"Carta para solicitar licencia por luto"]
[]
[null,"Informe del revisor fiscal dirigido a la asamblea de accionistas o junta de socios"]
[]
[null,"Listado de ingresos de fuente extranjera – período gravable 2021"]
[]
[null,"Convertidor de UVT"]
[]
[null,"[Pack de Formatos] Guías para profundizar las novedades de la reforma tributaria Ley de Inversión Social 2155 de 2021"]
[]
[null,"Derecho de petición para retiro de centrales de riesgo"]
[]
[null,"Formato de solicitud de licencia de calamidad doméstica"]
[]
[null,"Planilla de asistencia y toma de decisiones en asamblea de accionistas o junta de socios"]
[]
[null,"Cuestionario de control interno de provisiones y contingencias en Excel"]
[]
[null,"Liquidador de intereses moratorios reducidos con la tasa transitoria de la Ley de Inversión Social"]
[]
[null,"Casos prácticos de reducción de sanción por corrección: reforma tributaria 2021"]
[]
[null,"Liquidador de indicadores de detrimento patrimonial e insolvencia financiera"]
[]
[null,"Cuestionario para definir obligados a declarar renta por 2021"]
[]
[null,"Modelo en Excel para el cálculo de intereses a las cesantías"]
[]
[null,"Modelo para elaborar el comprobante de pago de intereses a las cesantías"]
[]
[null,"Auditoría de nómina: informe de control interno"]
[]
[null,"Porcentaje fijo de retención en la fuente sobre salarios en diciembre de 2021 – procedimiento 2"]
[]
[null,"Ejemplos de aplicación de los beneficios de la ley de borrón y cuenta nueva"]
[]
[null,"Modelo de informe de control interno"]
[]
[null,"Casos de reducción de sanción por extemporaneidad antes del emplazamiento: reforma tributaria 2021"]
[]
[null,"Casos de reducción de sanción por extemporaneidad después del emplazamiento: reforma tributaria 2021"]
[]
[null,"Informe sobre el control interno por parte del revisor fiscal"]
[]
[null,"Informe sobre el control interno: manifestación sobre las pruebas de cumplimiento y sustantivas"]
[]
[null,"Solicitud de retiro parcial de cesantías para vivienda"]
[]
[null,"Notificación al empleador sobre el fondo donde debe consignar el auxilio de cesantías"]
[]
[null,"Modelo de dictamen del revisor fiscal para empresas en liquidación (opinión favorable)"]
[]
[null,"Certificación del contador o revisor fiscal para la inscripción de libros en la cámara de comercio"]
[]
[null," 21 formatos de análisis financiero en Excel"]
[]
[null,"Modelo de certificado para acceder al incentivo a la creación de nuevos empleos"]
[]
[null,"Cuestionario de control interno de inventarios en Excel"]
[]
[null,"Dupont: índice de rentabilidad"]
[]
[null,"Grados de apalancamiento financiero y operativo"]
[]
[null,"Indicadores financieros de actividad y rentabilidad"]
[]
[null,"Indicadores financieros de endeudamiento"]
[]
[null,"Indicadores financieros: márgenes de utilidad o rentabilidad"]
[]
[null,"Indicadores financieros de liquidez"]
[]
[null,"Simulador del punto de equilibrio en Excel – herramienta de análisis financiero"]
[]
[null,"[ORO] Análisis vertical y horizontal aplicados a la interpretación de información financiera"]
[]
[null,"Análisis de información de ventas utilizando el método del índice de estacionalidad"]
[]
[null,"Modelo para analizar el valor presente y el valor presente neto de una inversión"]
[]
[null,"Indicadores financieros de mercado"]
[]
[null,"Inscripción en el RUT: lista de chequeo para inscribirse a través de las cámaras de comercio"]
[]
[null,"Apoyo a empresas afectadas por el paro nacional: matriz en Excel y casos prácticos"]
[]
[null,"Modelo para la elaboración de estados financieros y cálculo de los indicadores financieros"]
[]
[null,"Ejercicios de conversión entre tasas de interés efectiva, nominal y periódica"]
[]
[null,"Casos prácticos en Excel sobre ventas en los días sin IVA"]
[]
[null,"Matriz sobre las nuevas condiciones para aplicar a la exención de los 3 días sin IVA"]
[]
[null,"Guía con casos de verificación de requisitos para acceder al apoyo por generar nuevos empleos"]
[]
[null,"Lista de chequeo de revelaciones de la sección 18 – “Activos intangibles distintos de la plusvalía”"]
[]
[null,"Lista de chequeo de revelaciones de la sección 20 – “Arrendamientos”"]
[]
[null,"Lista de chequeo de revelaciones de la NIC 38 – “Activos intangibles”"]
[]
[null,"Modelos y guías sobre aspectos laborales y comerciales que deben atender los trabajadores independientes"]
[]
[null,"Liquidador del número de empleados y cálculo del aporte del Paef"]
[]
[null,"Simulador de la reducción de multas de tránsito contemplada en la Ley de Inversión Social"]
[]
[null,"Plantilla para auditar la declaración del impuesto sobre las ventas –IVA–"]
[]
[null,"Matriz: nuevas condiciones para postularse al Programa de Apoyo al Empleo Formal –Paef–"]
[]
[null,"Matriz: novedades en el sistema de facturación con la reforma tributaria Ley 2155 de 2021"]
[]
[null,"Cuestionario de auditoría para las propiedades, planta y equipo"]
[]
[null,"Matriz: requisitos y condiciones para la normalización tributaria de 2022"]
[]
[null,"Comparativo de normas afectadas con la Ley de Inversión Social 2155 de septiembre 14 de 2021"]
[]
[null,"Liquidador para revisar aportes a salud y pensión de independientes a partir del reporte de exógena"]
[]
[null,"Lista de chequeo de revelaciones de la sección 28: “Beneficios a los empleados”"]
[]
[null,"Modelo de política contable de las cuentas por cobrar: presentación y revelación"]
[]
[null,"Lista de chequeo de revelaciones de la sección 21: “Provisiones y contingencias”"]
[]
[null,"Lista de chequeo de revelaciones de la sección 11 – Instrumentos financieros básicos"]
[]
[null,"Casos prácticos en Excel sobre impuesto diferido para el cierre contable y fiscal de 2021"]
[]
[null,"Modelo para elaborar políticas contables sobre el tratamiento a los intangibles"]
[]
[null,"Ejercicios de verificación de requisitos para acceder al apoyo por contratar jóvenes"]
[]
[null,"Lista de chequeo de revelaciones de la sección 12: “Otros temas relacionados con los instrumentos financieros”"]
[]
[null,"Impuesto diferido en la depreciación de propiedad, planta y equipo (caso práctico para 2021)"]
[]
[null,"Cuadro temático con los cambios introducidos por la Ley de Inversión Social 2155 de 2021"]
[]
[null,"Liquidador de auxilio de incapacidad aplicado a salario variable, fijo o integral"]
[]
[null,"Impuesto diferido por venta de bienes inmuebles a largo plazo en 2021: caso práctico en Excel"]
[]
[null,"Matriz: costos y deducciones de las personas jurídicas en 2021"]
[]
[null,"Ejercicio práctico en Excel: impuesto diferido cuando hay compensación de pérdidas fiscales"]
[]
[null,"Valorización de activos intangibles: caso de impuesto diferido en 2021"]
[]
[null,"Guía para diligenciar la planilla integrada de liquidación de aportes de los independientes"]
[]
[null,"Casos de descuentos tributarios vigentes en el año gravable 2021 (liquidador en Excel)"]
[]
[null,"Lista de chequeo para trasladarse de régimen de pensiones"]
[]
[null,"[Pack de Formatos] Formatos para la implementación del control de calidad y ética en la ejecución de encargos de auditoría"]
[]
[null,"Simulador del estado de situación financiera (análisis comparativo)"]
[]
[null,"Formulario 260 AG 2020 – declaración anual régimen simple (personas naturales que no llevan contabilidad)"]
[]
[null,"Formulario 260 AG 2020 – declaración anual régimen simple (personas naturales y jurídicas que llevan contabilidad)"]
[]
[null,"Modelo de derecho de petición para el pago de incapacidades de trabajadores independientes"]
[]
[null,"Formato de evaluación de desempeño laboral para un auditor"]
[]
[null,"Impuesto diferido por activos biológicos en 2021: caso práctico en Excel"]
[]
[null,"Liquidador para calcular la contribución 2021 a la Supersociedades"]
[]
[null,"Calendario para pago de aportes a seguridad social para empleadores e independientes 2021-2022"]
[]
[null,"Carta para notificar deficiencias en el proceso de inspección del seguimiento del control de calidad"]
[]
[null,"Lista de chequeo para el control de calidad aplicado a recursos humanos en un encargo de auditoría"]
[]
[null,"Lista de chequeo para revisar el control de calidad en un encargo de auditoría"]
[]
[null,"Acta de entrega del manual de procedimientos y políticas de calidad"]
[]
[null,"Acta de entrega de normas de ética aplicables a encargos de auditoría"]
[]
[null,"Lista de chequeo para la planeación de la ejecución de un encargo NICC 1"]
[]
[null,"Lista de chequeo para la etapa de seguimiento en encargo de auditoría bajo la NICC 1"]
[]
[null,"Matriz para identificar quiénes están obligados a aplicar la NICC 1"]
[]
[null,"Carta para comunicar asuntos que generan amenazas a la independencia"]
[]
[null,"Acta de investigación para la aceptación de los clientes del revisor fiscal"]
[]
[null,"Notificación de la asignación de responsabilidad en el sistema de control de calidad"]
[]
[null,"Impuesto diferido ante deterioro de cartera en 2021: ejercicio práctico en Excel"]
[]
[null,"Informe de entrega del cargo de contador externo al finalizar un contrato"]
[]
[null,"Impuesto diferido por valoración de propiedades de inversión en 2021: caso práctico en Excel"]
[]
[null,"Impuesto diferido por deterioro de inventario en 2021: caso práctico en Excel"]
[]
[null,"Liquidador de aportes a caja de compensación para trabajadores independientes"]
[]
[null,"Matriz de licencias de maternidad y paternidad: tipos y características"]
[]
[null,"Solicitud de licencia de paternidad a la EPS por parte de un trabajador independiente"]
[]
[null,"Solicitud de licencia de maternidad ante la EPS por parte de una trabajadora independiente"]
[]
[null,"Matriz de lineamientos del Código de Ética del contador público: principios fundamentales, amenazas y salvaguardas"]
[]
[null,"Impuesto diferido por diferencia en cambio en 2021: caso práctico en Excel"]
[]
[null,"Tratamientos contable y fiscal de la depreciación de activos en desuso: casos prácticos en Excel"]
[]
[null,"Solicitud de licencia de paternidad"]
[]
[null,"Modelo de acción de tutela para reclamo de pago de licencia de maternidad"]
[]
[null,"Modelo de declaración de confidencialidad de los miembros de la firma de auditoría"]
[]
[null,"Impuesto diferido por gastos de establecimiento en 2021: caso práctico en Excel"]
[]
[null,"Guías y casos para preparar la declaración de renta de personas naturales por el año gravable 2020"]
[]
[null,"Liquidador del auxilio de incapacidad de origen común para trabajador independiente"]
[]
[null,"Cuestionario de independencia para el personal de una firma de auditoría"]
[]
[null,"Clasificación de pasivos entre corrientes y no corrientes: caso práctico en Excel"]
[]
[null,"Plantilla del estado de costos de producción y ventas"]
[]
[null,"Beneficio de auditoría para personas naturales año gravable 2020: casos prácticos en Excel"]
[]
[null,"Liquidador de la licencia de maternidad cuando procede pago proporcional"]
[]
[null,"Modelo para proyectar el presupuesto de un encargo de auditoría o revisoría fiscal"]
[]
[null,"Lista de chequeo de las etapas requeridas en el proceso presupuestal"]
[]
[null,"Hoja de costos en Excel"]
[]
[null,"Plantilla para la revisión de la declaración sugerida del impuesto sobre las ventas –IVA–"]
[]
[null,"Modelo de certificado para acceder a los beneficios por contratar adultos mayores no pensionados"]
[]
[null,"Cuestionario en Excel para la aceptación de clientes en una firma de auditoría"]
[]
[null,"Kárdex por el método del promedio ponderado: caso práctico en Excel"]
[]
[null,"Listado de códigos para diligenciar la casilla 51 del RUT con la ocupación de las personas naturales"]
[]
[null,"Modelo de las políticas sobre conservación de los papeles de trabajo de una firma de auditoría"]
[]
[null,"Lista de convenios internacionales para evitar la doble tributación – año gravable 2020"]
[]
[null,"Liquidador del costo fiscal de la propiedad, planta y equipo y de las propiedades de inversión"]
[]
[null,"Poder especial para tramitar solicitud de reconocimiento y pago de la pensión de sobrevivencia"]
[]
[null,"Matriz: comparativo de las diferencias al emprender como persona natural o sociedad"]
[]
[null,"Liquidador del anticipo de renta 2021 para personas jurídicas y naturales"]
[]
[null,"Liquidador del pago faltante de aportes al sistema general de pensiones de abril y mayo de 2020"]
[]
[null,"Liquidador del monto del salario y de prestaciones sociales que se puede embargar a un trabajador"]
[]
[null,"Formulario 110 y formato 2516 para declaración de renta 2020 de personas naturales obligadas a llevar contabilidad"]
[]
[null,"Ejercicios para determinar si una persona natural está obligada a presentar renta por el AG 2020"]
[]
[null,"[Pack de formatos] Modelos para elaborar contratos comerciales en Colombia"]
[]
[null,"Liquidador de aportes en el piso de protección social: trabajadores dependientes e independientes"]
[]
[null,"Cuestionario para clasificar una obligación como provisión o pasivo contingente"]
[]
[null,"Formulario 310 AG 2021: declaración del impuesto nacional al consumo (plantilla para borrador)"]
[]
[null,"Formulario 110 AG 2020: declaración de renta de personas naturales no residentes que no llevan contabilidad"]
[]
[null,"Modelo en Excel: cálculo de intereses presuntivos sobre préstamos entre socios y sociedades en 2020"]
[]
[null,"Formulario 210 y formato 2517 para declaración de renta AG 2020 – residentes que llevan contabilidad"]
[]
[null,"Liquidador de porcentaje fijo de retención en la fuente sobre salarios en junio de 2021 – procedimiento 2"]
[]
[null,"Formulario 210: declaración de renta personas naturales residentes que no llevan contabilidad – AG 2020"]
[]
[null,"Modelo de contrato de permuta"]
[]
[null,"Simulador del impuesto si la renta presuntiva es mayor a la renta líquida gravable de la cédula general"]
[]
[null,"Modelo de contrato de comisión o corretaje"]
[]
[null,"Notificación de embargo de la prima de servicios"]
[]
[null,"Matriz de características básicas de la depuración de las 3 cédulas del formulario 210 AG 2020"]
[]
[null,"Formulario 420: declaración de impuesto al patrimonio 2021"]
[]
[null,"Notificación a trabajadores que no tienen derecho a la prima de servicios"]
[]
[null,"Plantilla para elaborar el formulario 300 para las declaraciones del IVA durante 2021"]
[]
[null,"Cuestionario de auditoría para el área de compras"]
[]
[null,"Carta para designar al responsable del seguimiento del sistema de control de calidad – NICC 1"]
[]
[null,"Plantilla en Excel para la declaración de anticipos bimestrales en 2021 – régimen simple"]
[]
[null,"Modelo de contrato de prestación de servicios – servicios generales"]
[]
[null,"Contrato de prestación de servicios para mensajería externa"]
[]
[null,"Cuestionario de auditoría para área de nómina"]
[]
[null,"Cuestionario de auditoría para el área de ventas"]
[]
[null,"Acta de análisis de rotación del equipo de auditoría o revisoría fiscal"]
[]
[null,"Simulador de deducciones por GMF, fiestas a empleados, publicidad e inversiones en transporte aéreo"]
[]
[null,"Liquidador del formulario 110 y formato 2516: declaración de renta de personas jurídicas AG 2020"]
[]
[null,"Contrato de promesa de compraventa de carro o motocicleta"]
[]
[null,"Modelo de contrato de cuentas en participación"]
[]
[null,"Contrato de prestación de servicios"]
[]
[null,"Plantilla para elaborar un contrato de unión temporal"]
[]
[null,"Carta de aceptación de los términos del encargo de revisoría fiscal conforme a la NIA 210"]
[]
[null,"Contrato de prestación de servicios contables"]
[]
[null,"Matriz para definir casos en que las personas naturales son agentes de retención a título de renta"]
[]
[null,"Guías para el reporte de exógena 2020: ¡descárgalas ya!"]
[]
[null,"Contrato de prestación de servicios de administración de propiedad horizontal"]
[]
[null,"Acta de criterios que debe cumplir el revisor de control de calidad de un encargo de auditoría"]
[]
[null,"Matriz de categorías de informantes de exógena por el año gravable 2020 y los formatos que deben usar"]
[]
[null,"Plantilla de los formatos exógena por el año gravable 2020: reportes de los mandatarios"]
[]
[null,"Plantilla del formato exógena 1647 por el año gravable 2020: reporte de ingresos recibidos para terceros"]
[]
[null,"Plantilla de los formatos 2276 y 2280 para el reporte de información exógena de 2020"]
[]
[null,"Plantilla del formato exógena 1003 por el año gravable 2020: retenciones que le practicaron al informante"]
[]
[null,"Plantilla de los formatos exógena 1011, 1012 y 2275 por el año gravable 2020: reporte de otros datos en renta e IVA"]
[]
[null,"Plantilla del formato exógena 1008 por el año gravable 2020: reporte de cuentas por cobrar"]
[]
[null,"Plantilla del formato de exógena 1007 por el año gravable 2020: reportes de ingresos propios"]
[]
[null,"Plantilla del formato de exógena 1009 por el año gravable 2020: reporte de cuentas por pagar"]
[]
[null,"Plantilla del formato 1004 exógena de 2020: reporte de descuentos al impuesto de renta y el SIMPLE"]
[]
[null,"Plantilla de los formatos exógena 1005 y 1006 del año gravable 2020: reportes de IVA generados y descontables"]
[]
[null,"Plantilla del formato exógena 1010 por el año gravable 2020: reporte de socios, cooperados o comuneros"]
[]
[null,"Plantilla del formato exógena 1001 por el año gravable 2020: reporte de pagos o abonos en cuenta"]
[]
[null,"Modelo de contrato de maquila"]
[]
[null,"Carta de ofrecimiento de servicios de una empresa"]
[]
[null,"Notificación de sanción disciplinaria para el empleado de una firma de auditoría"]
[]
[null,"Modelo de contrato de mercancías en consignación"]
[]
[null,"Modelo de contrato de arrendamiento de vivienda urbana"]
[]
[null,"Modelos de notas a los estados financieros 2020: 5 casos que pueden presentarse por el COVID-19"]
[]
[null,"27 formatos para preparar la declaración de renta de personas jurídicas por el año gravable 2020"]
[]
[null,"Simulador de casos de beneficios tributarios por donaciones en el año gravable 2020"]
[]
[null,"Modelo de contrato de arrendamiento de local comercial, oficina o bodega"]
[]
[null,"Modelo de contrato de mandato"]
[]
[null,"[Pack de formatos] Dictámenes e informes del revisor fiscal actualizados al 2021"]
[]
[null,"Simulador de 4 casos de deducciones y costos estimados para la declaración de renta"]
[]
[null,"Notificación de entrega de manual de funciones del auditor dentro de la firma"]
[]
[null,"Simulador de casos de descuentos y donaciones especiales: conciliación contable y tributaria"]
[]
[null,"Modelo de inventario de entrega de inmueble"]
[]
[null,"Modelo de contrato de obra civil"]
[]
[null,"Desistimiento de la acción de tutela"]
[]
[null,"Liquidador del costo de renovación de matrícula mercantil y de establecimientos de comercio (2021)"]
[]
[null,"Clasificación de las personas jurídicas frente al impuesto de renta y al SIMPLE – año gravable 2020"]
[]
[null,"Carta para notificar un incidente de desacato de acción de tutela"]
[]
[null,"Modelo de acción de tutela para reclamar incapacidades"]
[]
[null,"Plantilla en Excel para diligenciar el formulario 350 de retención en la fuente en 2021"]
[]
[null,"Carta para comunicarle a los proveedores las operaciones con facturadores electrónicos"]
[]
[null,"Calendario tributario 2021 – automatizado en Excel"]
[]
[null,"Cuenta de cobro para una persona que presta servicios y no es responsable del IVA"]
[]
[null,"Certificado de persona natural no declarante del impuesto de renta y complementario 2020"]
[]
[null,"Modelo de acción de tutela contra entidades financieras"]
[]
[null,"Plantilla para elaborar formulario 220: certificado de ingresos y retenciones – año gravable 2020"]
[]
[null,"[Pack de formatos] Formatos para la liquidación de nómina paso a paso"]
[]
[null,"Rentas exentas para personas jurídicas – período gravable 2020"]
[]
[null,"Modelo del certificado anual para socios y/o accionistas por el año 2020"]
[]
[null,"Normativa relacionada con la liquidación de nómina"]
[]
[null,"Información laboral 2021"]
[]
[null,"[2021] Histórico de salario mínimo y auxilio de transporte"]
[]
[null,"Régimen sancionatorio: 15 formatos para liquidar obligaciones en 2021"]
[]
[null,"Liquidador de retención en la fuente con procedimiento 1 sobre rentas de trabajo durante 2021"]
[]
[null,"[2021] Formularios e instructivos de la Dian 2021"]
[]
[null,"[2021] Histórico de la variación nominal del salario mínimo vs. la inflación 1993 – 2020"]
[]
[null,"[Guía] Tabla de retención en la fuente para el año fiscal 2021"]
[]
[null,"Tablas de retención en la fuente a título de impuestos nacionales durante el año fiscal 2021"]
[]
[null,"Histórico de la tasa representativa del mercado –TRM– 2020"]
[]
[null,"Comparativo de normas tributarias afectadas con las leyes 2068, 2069 y 2070 de diciembre 31 de 2020"]
[]
[null,"[Calendario] Calendario tributario 2021 – versión para imprimir"]
[]
[null,"[Calendario] Calendario tributario distrital 2021"]
[]
[null,"[ORO] Liquidador de sanciones por no enviar información exógena, enviarla con errores o de forma extemporánea"]
[]
[null,"[ORO] Modelo para cálculo de depreciación por el método de reducción de saldos"]
[]
[null,"[ORO] Acta administrativa para la baja de activos fijos dañados y obsoletos"]
[]
[null,"[ORO] Modelo para identificar ingresos que no se consideran de fuente nacional – período gravable 2020"]
[]
[null,"[ORO] Modelo para identificar ingresos que no se consideran de fuente nacional – período gravable 2020"]
[]
[null,"[ORO] Contabilización de los rubros asociados a la dotación a empleados"]
[]
[null,"21 formatos para preparar el cierre contable de 2020"]
[]
[null,"[ORO] Nuevos descuentos tributarios para el cierre fiscal 2020: casos prácticos"]
[]
[null,"[ORO] Liquidador de procedimiento 2 con porcentaje fijo para la retención sobre salarios en diciembre de 2020"]
[]
[null,"[ORO] Plantilla para definir el perfil del cargo de un empleado y sus funciones"]
[]
[null,"[ORO] Políticas contables para las propiedades de inversión"]
[]
[null,"[ORO] Nota sobre la determinación de valores razonables"]
[]
[null,"[ORO] Liquidador de nómina en un contrato de aprendizaje"]
[]
[null,"[ORO] Venta de bienes inmuebles a largo plazo: caso práctico de impuesto diferido"]
[]
[null,"[ORO] Impuesto diferido de propiedades de inversión en un contrato de leasing operativo"]
[]
[null,"Corrección de errores de períodos anteriores"]
[]
[null,"[ORO] Impuesto diferido por diferencias en la tasa de depreciación de propiedades, planta y equipo"]
[]
[null,"[ORO] Simulador de sanción por no pagar la liquidación del contrato laboral"]
[]
[null,"[ORO] Plantilla en Excel para la declaración de anticipos bimestrales en 2020 – régimen simple"]
[]
[null,"Calendario automatizado de implementación de la facturación electrónica"]
[]
[null,"[ORO] Tratamiento contable y fiscal de los gastos de establecimiento: caso práctico"]
[]
[null,"[ORO] Liquidador para el cálculo de la renta presuntiva del año gravable 2020"]
[]
[null,"[ORO] Depreciación y valor máximo a deducir en impuesto de renta"]
[]
[null,"Carta de finalización del contrato de arrendamiento por vencimiento del término"]
[]
[null,"[ORO] Carta de terminación de contrato de arrendamiento de vivienda urbana"]
[]
[null,"[ORO] Contabilización de impuesto diferido ante deterioro de cartera"]
[]
[null,"[ORO] Modelo de contrato de mutuo comercial o préstamo con intereses"]
[]
[null,"[ORO] Modelo de contrato de franquicia"]
[]
[null,"[ORO] Contrato de permuta"]
[]
[null,"[ORO] Modelo de contrato de concesión comercial"]
[]
[null,"[ORO] Modelo de contrato de anticresis"]
[]
[null,"[ORO] Modelo de contrato de edición"]
[]
[null,"[ORO] Modelo de acuerdo de dación en pago"]
[]
[null,"[ORO] Modelo de contrato de preposición"]
[]
[null,"[ORO] Modelo de contrato de agencia comercial"]
[]
[null,"[ORO] Formato de promesa de compraventa de bien inmueble"]
[]
[null,"​[ORO] Contrato de comisión o corretaje"]
[]
[null,"[ORO] Certificación de bienes y derechos recibidos por donaciones inter vivos"]
[]
[null,"[ORO] Formulario 260 AG 2019 – régimen simple (personas naturales y jurídicas que llevan contabilidad)"]
[]
[null,"[ORO] Formulario 260 AG 2019 – declaración anual del SIMPLE (personas naturales que no llevan contabilidad)"]
[]
[null,"[ORO] Planilla automatizada para controlar la asistencia a pausas activas"]
[]
[null,"¿Cómo liquidar un contrato de trabajo?"]
[]
[null,"[Pack de formatos] 17 herramientas para mejorar tu análisis financiero"]
[]
[null,"[ORO] Compensación de pérdidas fiscales y exceso de renta presuntiva (caso impuesto diferido)"]
[]
[null,"[ORO] Impuesto diferido cuando hay compensación de pérdidas fiscales"]
[]
[null,"[ORO] Formato de entrega de dotación (elementos físicos)"]
[]
[null,"[ORO] Constancia de entrega de equipos y elementos de protección personal"]
[]
[null,"[ORO] Certificado de prestación de servicios"]
[]
[null,"[ORO] Simulador de retenciones a practicar entre regímenes"]
[]
[null,"[ORO] Aportes al fondo de solidaridad pensional por parte de un empleado"]
[]
[null,"[ORO] Certificado de normalización de actividades afectadas por el COVID-19"]
[]
[null,"[ORO] Formulario 210 de declaración de renta, año gravable 2019 – residentes no obligados a llevar contabilidad"]
[]
[null,"[ORO] Formulario 210 y formato 2517 para declaración de renta AG 2019 – residentes que llevan contabilidad"]
[]
[null,"[ORO] Contrato de aprendizaje: certificado de desempeño y descripción de logros en la etapa práctica"]
[]
[null,"[ORO] Cálculo de la contribución 2020 a Supersociedades"]
[]
[null,"[Pack de formatos] 21 herramientas para facilitar la elaboración de solicitudes emitidas por un empleado"]
[]
[null,"[ORO] Solicitud de información sobre afiliaciones a salud y riesgos laborales en un contrato de aprendizaje"]
[]
[null,"[ORO] Notificación de suspensión del contrato de aprendizaje"]
[]
[null,"[ORO] Solicitud de no pago de cheque"]
[]
[null,"[ORO] Solicitud de intervención de la inspección de trabajo"]
[]
[null,"[ORO] Formulario 420: declaración de impuesto al patrimonio 2020"]
[]
[null,"[ORO] Formulario 445 – impuesto de normalización tributaria 2020 (plantilla en Excel)"]
[]
[null,"[ORO] Derecho de petición para solicitar al empleador información sobre afiliaciones al sistema de seguridad integral"]
[]
[null,"[ORO] Poder para adelantar trámite de solicitud de calificación de pérdida de capacidad laboral"]
[]
[null,"[ORO] Porcentaje fijo de retención en la fuente sobre pagos laborales en junio de 2020 – procedimiento 2"]
[]
[null,"[ORO] Modelo para definir el IVA sobre el AIU en los servicios del artículo 462-1 del ET"]
[]
[null,"[ORO] Cálculo de intereses presuntivos sobre préstamos entre socios y sociedades durante 2019"]
[]
[null,"[ORO] Certificación de contador para acceder al subsidio de la prima de servicios"]
[]
[null,"[ORO] Acuerdo para no laborar el sábado y distribuir jornada entre semana (sin generar horas extra)"]
[]
[null,"[ORO] Formulario 110 y formato 2516 para declaración de renta 2019 de personas naturales obligadas a llevar contabilidad"]
[]
[null,"[ORO] Aplicación de las rentas exentas en la renta presuntiva en el formulario 210"]
[]
[null,"[ORO] Formulario 110 de declaración de renta de personas naturales, AG 2019 – no obligados a llevar contabilidad"]
[]
[null,"[Contrato] Otrosí – nuevos plazos para pago de la prima de servicios de 2020 (primer semestre)"]
[]
[null,"[Carta] Solicitud de no cobro del IVA en arrendamiento de local o establecimiento comercial"]
[]
[null,"[ORO] Plantilla en Excel para diligenciar el formulario 350 de retención en la fuente en 2020"]
[]
[null,"[ORO] Solicitud de trabajador para incorporarse al teletrabajo"]
[]
[null,"[ORO] Formulario 110 y formato 2516: declaración de renta o ingresos y patrimonio – personas jurídicas AG 2019"]
[]
[null,"Calendario tributario 2020 – Versión para imprimir"]
[]
[null,"[Liquidador] Liquidador del número de trabajadores por los cuales se tiene derecho al subsidio de nómina del Paef"]
[]
[null,"[Certificaciones] Certificación para subsidio de nómina Paef – entidad sin ánimo de lucro"]
[]
[null,"[Certificaciones] Certificación para subsidio de nómina Paef – entidad del régimen tributario especial"]
[]
[null,"[Certificaciones] Certificación para que una persona natural acceda al subsidio de nómina – Paef –"]
[]
[null,"[Certificaciones] Informe del contador o revisor fiscal para que una entidad acceda al subsidio de nómina"]
[]
[null,"[Certificaciones] Certificado para modificar o suspender beneficios extralegales a causa del COVID-19"]
[]
[null,"[Liquidador] Simulador de crédito en período de gracia: estrategia de entidades financieras ante el COVID-19"]
[]
[null,"[Guía] Cuadro temático: cambios de la Resolución 000042 de 2020 sobre facturación electrónica"]
[]
[null,"[Pack de formatos] Guías para el reporte de exógena 2019: ¡descárgalas ya!"]
[]
[null,"[ORO] Categorías de informantes de exógena por el año gravable 2019 y los formatos que deben usar"]
[]
[null,"[ORO] Formatos de exógena por el año gravable 2019: reportes de los mandatarios"]
[]
[null,"[Certificaciones] Certificado de licencia remunerada compensable: protección al empleo ante el COVID-19"]
[]
[null,"[ORO] Plantilla para elaborar el formulario 300 para las declaraciones del IVA durante 2020"]
[]
[null,"[ORO] Modelo del certificado anual para socios y/o accionistas por el año 2019"]
[]
[null,"[ORO] Modificación de la jornada laboral y concertación de salario – COVID-19"]
[]
[null,"[Liquidador] Pago parcial del aporte al sistema general de pensiones – COVID-19"]
[]
[null,"[ORO] Sanciones relacionadas con la declaración informativa de precios de transferencia"]
[]
[null,"Solicitud de retiro parcial de cesantías con ocasión del COVID-19"]
[]
[null,"[ORO] Formato exógena 1010 por el año gravable 2019: reporte de socios, cooperados o comuneros"]
[]
[null,"[ORO] Formato exógena 1004 de 2019: reporte de descuentos al impuesto de renta y régimen simple"]
[]
[null,"[ORO] Formato exógena 5253 por el año gravable 2019: información de los beneficiarios efectivos"]
[]
[null,"[ORO] Formato exógena 1007 por el año gravable 2019: reportes de ingresos propios"]
[]
[null,"[ORO] Formato exógena 1647 por el año gravable 2019: reporte de ingresos recibidos para terceros"]
[]
[null,"[ORO] Formato exógena 1009 por el año gravable 2019: reporte de cuentas por pagar"]
[]
[null,"[ORO] Formato exógena 1008 por el año gravable 2019: reporte de cuentas por cobrar"]
[]
[null,"[ORO] Formato exógena 1003 por el año gravable 2019: retenciones que le practicaron al informante"]
[]
[null,"[ORO] Formatos exógena 1005 y 1006 del año gravable 2019: reportes de IVA generados y descontables"]
[]
[null,"[ORO] Formatos exógena 1011, 1012 y 2275 por el año gravable 2019: reporte de otros datos en renta e IVA"]
[]
[null,"[ORO] Formato exógena 1001 por el año gravable 2019: reporte de pagos o abonos en cuenta"]
[]
[null,"[ORO] Formatos 2276 y 2280 para el reporte de información exógena de 2019"]
[]
[null,"[Pack de formatos] Asamblea de accionistas y junta de socios: realice una correcta convocatoria"]
[]
[null,"[ORO] Plantilla para elaborar formulario 220: certificado de ingresos y retenciones – año gravable 2019"]
[]
[null,"[Calendario] Calendario tributario 2019 – versión para imprimir"]
[]
[null,"[Pack de formatos] Dictámenes e informes del revisor fiscal actualizados al 2020"]
[]
[null,"[ORO] Clasificación de las personas jurídicas frente al impuesto de renta y al SIMPLE – año gravable 2019"]
[]
[null,"Informe de revisión de información financiera intermedia con conclusión adversa"]
[]
[null,"Revisión de información financiera intermedia sin salvedades"]
[]
[null,"[ORO] Cálculo del costo de renovación de matrícula mercantil y de establecimientos de comercio (año 2020)"]
[]
[null,"[ORO] Impuesto de renta de personas naturales residentes en el régimen ordinario, año gravable 2019 vs. 2020"]
[]
[null,"[ORO] Sanciones aplicables a la documentación comprobatoria"]
[]
[null,"[ORO] Listado de contribuyentes inscritos en el régimen simple con corte a septiembre 30 de 2019"]
[]
[null,"[ORO] Proyección del impuesto al patrimonio y cálculo del de normalización y/o saneamiento 2020"]
[]
[null,"[ORO] Simulador de tributación en el régimen simple vs. régimen ordinario – año gravable 2020"]
[]
[null,"[ORO] Tablas de retención en la fuente a título de impuestos nacionales durante el año fiscal 2020"]
[]
[null,"[ORO] Comparativo de normas afectadas con la Ley de crecimiento económico 2010 de diciembre 27 de 2019"]
[]
[null,"[Guía] Cálculo de renta presuntiva para el período gravable 2019"]
[]
[null,"[ORO] Carta para solicitar un incremento de salario al empleador"]
[]
[null,"Tributación sobre dividendos y su respectiva retención fue reglamentada por el Ministerio de Hacienda"]
[]
[null,"[ORO] Retención en la fuente con procedimiento 1 sobre rentas de trabajo durante 2020"]
[]
[null,"Tabla de retención en la fuente para el año fiscal 2020"]
[]
[null,"[ORO] Tasa representativa del mercado –TRM– 2019"]
[]
[null,"[2020] Histórico de la variación nominal del salario mínimo vs. la inflación 1993 – 2019"]
[]
[null,"Novedades en la clasificación de bienes y servicios frente al IVA y el INC con la Ley 2010 de 2019"]
[]
[null,"[Calendario] Calendario tributario distrital 2020"]
[]
[null,"[ORO] Cuadro temático con los cambios introducidos por la Ley de crecimiento 2010 de 2019"]
[]
[null,"[2020] Histórico de salario mínimo y auxilio de transporte"]
[]
[null,"[Guía] Información laboral 2020"]
[]
[null,"[ORO] Porcentaje fijo de retención en la fuente sobre salarios en diciembre de 2019 – Procedimiento 2"]
[]
[null,"[Guía] Certificado de persona natural no declarante del impuesto de renta y complementario 2019"]
[]
[null,"[Lista de chequeo] Cuestionario control interno – Efectivo y equivalentes de efectivo"]
[]
[null,"[Guía] Lista de chequeo información ESF Patrimonio – Formato de conciliación fiscal 2516 versión 3 AG 2020"]
[]
[null,"[Guía] Convenios para evitar la doble tributación aplicables al año gravable 2019"]
[]
[null,"[Guía] Ingresos que no se consideran de fuente nacional – período gravable 2019"]
[]
[null,"[ORO] Rentas exentas para personas jurídicas – período gravable 2019"]
[]
[null,"[ORO] Aportes a seguridad social para trabajadores independientes con un contrato por días"]
[]
[null,"Carta para notificar terminación de contrato mercantil de forma unilateral"]
[]
[null,"[Liquidador] Simulador de subsidio de vivienda de interés social o prioritario"]
[]
[null,"[Liquidador] Formulario 350: Declaración Mensual de Retenciones en la Fuente"]
[]
[null,"[ORO] Plantilla para elaborar el formulario 445 complementario de normalización tributaria 2019"]
[]
[null,"[ORO] Formulario 350: Declaración Mensual de Retención en la Fuente (plantilla avanzada)"]
[]
[null,"[Guía] Conozca quiénes están obligados a aplicar la NICC 1"]
[]
[null,"[Guía] Lista de chequeo: requisitos por cumplir para solicitar ser autorretenedor de renta"]
[]
[null,"[ORO] Recomendaciones a la junta directiva emitida por empleado que renuncia con justa causa"]
[]
[null,"[ORO] Terminación de contrato justa causa"]
[]
[null,"[Guía] Evaluación de las competencias y recursos de la firma"]
[]
[null,"[ORO] Formulario 310: declaración del impuesto nacional al consumo (plantilla para borrador)"]
[]
[null,"[Poder] Diligencias en la Dian"]
[]
[null,"[ORO] Cálculo de intereses presuntivos sobre préstamos entre socios y sociedades durante 2018"]
[]
[null,"[Guía] Tablas para el cálculo del tiempo entre dos fechas"]
[]
[null,"[Guía] Cálculo de la contribución 2019 a Supersociedades"]
[]
[null,"[Guía] Convenios para evitar la doble tributación aplicables al año gravable 2018"]
[]
[null,"[ORO] Formulario 420 – Declaración de impuesto al patrimonio"]
[]
[null,"[ORO] Aspectos generales del contrato de aprendizaje"]
[]
[null,"[ORO] Indicadores financieros de liquidez, endeudamiento, actividad y rentabilidad"]
[]
[null,"[ORO] Consecuencias derivadas de la obligación de llevar contabilidad"]
[]
[null,"[ORO] Tabla para liquidar indemnizaciones por pérdida de capacidad laboral"]
[]
[null,"[ORO] Calendario tributario 2019 avanzado"]
[]
[null,"[ORO] Depuración del impuesto de renta para personas naturales por el año gravable 2018"]
[]
[null,"[ORO] Residentes vs. no residentes frente al impuesto de renta y ganancia ocasional 2018"]
[]
[null,"[ORO] Certificación del socio gestor en contratos de cuentas en participación"]
[]
[null,"[ORO] Certificación del mandatario en contratos de mandato"]
[]
[null,"[ORO] Formulario 210 declaración de renta año gravable 2018 – Residentes no obligados a llevar contabilidad"]
[]
[null,"[ORO] Formulario 110 declaración de renta de personas naturales AG 2018 – No obligados a llevar contabilidad"]
[]
[null,"[ORO] Formulario 210 y formato 2517 para renta AG 2018 – Residentes obligados a llevar contabilidad"]
[]
[null,"[ORO] Formulario 110 y formato 2516 declaración de renta 2018 de personas naturales obligadas a llevar contabilidad"]
[]
[null,"[ORO] Reglamentación a tener en cuenta en la declaración de renta de personas naturales año gravable 2018"]
[]
[null,"[Guía] Indicadores básicos para la declaración de renta de personas naturales por el año gravable 2018"]
[]
[null,"[Liquidador] Retención en la fuente sobre pagos laborales en junio de 2019 – Procedimiento 2"]
[]
[null,"[ORO] Modelo para determinar quién puede pertenecer al régimen simple de tributación"]
[]
[null,"[Guía] Diferencias entre el registro de una marca y una empresa"]
[]
[null,"[Guía] Plantilla para elaborar el formulario 300 para las declaraciones del IVA durante 2019"]
[]
[null,"[Guía] Inscripción de libros en las cámaras de comercio"]
[]
[null,"[Guía] Requisitos a verificar de la factura electrónica de venta antes de su emisión"]
[]
[null,"[ORO] Formato exógena 1011, 1012 y 2275 por el año gravable 2018: reporte de otros datos en renta e IVA"]
[]
[null,"[ORO] Categorías de informantes de exógena por el año gravable 2018 y los formatos que deben usar"]
[]
[null,"[ORO] Formatos 2276 y 2280 para el reporte de información exógena de 2018"]
[]
[null,"[ORO] Formato exógena 5253 por el año gravable 2018: información de los beneficiarios efectivos"]
[]
[null,"[ORO] Formatos de exógena por el año gravable 2018: reportes de los mandatarios"]
[]
[null,"[ORO] Formato exógena 1647 por el año gravable 2018: reporte de ingresos recibidos para terceros"]
[]
[null,"[ORO] Formato exógena 1010 por el año gravable 2018: reporte de socios, cooperados o comuneros"]
[]
[null,"[ORO] Formato exógena 1009 por el año gravable 2018: reporte de cuentas por pagar"]
[]
[null,"[ORO] Formato exógena 1008 por el año gravable 2018: reporte de cuentas por cobrar"]
[]
[null,"[ORO] Formato exógena 1004 de 2018: reporte de descuentos al impuesto de renta y ganancia ocasional"]
[]
[null,"[Guía] Comunicación de asuntos que generan amenazas a la independencia"]
[]
[null,"[ORO] Formato exógena 1007 por el año gravable 2018: reportes de ingresos propios"]
[]
[null,"[ORO] Formato exógena 1001 por el año gravable 2018: reporte de pagos o abonos en cuenta"]
[]
[null,"[ORO] Formatos exógena 1005 y 1006 del año gravable 2018: reportes de IVA generados y descontables"]
[]
[null,"[ORO] Formato exógena 1003 por el año gravable 2018: retenciones que le practicaron al informante"]
[]
[null,"[Guía] Devolución del IVA pagado en adquisición de materiales para construcción de VIS"]
[]
[null,"[ORO] Listado de actividades económicas (códigos CIIU)"]
[]
[null,"[Lista de chequeo] Seguimiento de control de calidad en un encargo de auditoría bajo NICC 1"]
[]
[null,"[ORO] Reglamentación para la declaración de renta de personas jurídicas por el año gravable 2018"]
[]
[null,"[ORO] Formulario 110 y formato 2516 para declaración de renta o ingresos y patrimonio 2018"]
[]
[null,"[ORO] Estructura general del Decreto único tributario 1625 de 2016"]
[]
[null,"[ORO] Clasificación general de personas jurídicas frente al impuesto de renta por el año gravable 2018"]
[]
[null,"[Guía] Indicadores básicos para declaración de renta de personas jurídicas año gravable 2018"]
[]
[null,"[Guía] Lista de chequeo: estándares mínimos de seguridad para empresas grandes y medianas"]
[]
[null,"[Guía] Requisitos para acceder a beneficios de la economía naranja y desarrollo del campo colombiano"]
[]
[null,"[Guía] Lista de chequeo: estándares mínimos de seguridad para empresas medianas"]
[]
[null,"[Guía] Comunicación de deficiencias en el proceso de inspección del seguimiento del control de calidad"]
[]
[null,"[Guía] Lista de chequeo: estándares mínimos de seguridad para pequeñas empresas"]
[]
[null,"[Liquidador] Costo de renovación de matrícula mercantil y establecimientos de comercio en 2019"]
[]
[null,"[Contrato] Compraventa de un establecimiento de comercio"]
[]
[null,"[ORO] Proyección del impuesto al patrimonio y cálculo del de normalización y/o saneamiento 2019"]
[]
[null,"[Guía] Modelo del certificado anual a socios o accionistas por el año 2018"]
[]
[null,"[ORO] Cambios en la tributación sobre dividendos, luego de la Ley de financiamiento"]
[]
[null,"[ORO] Depuración del impuesto de renta de personas jurídicas en el régimen ordinario 2018 vs. 2019"]
[]
[null,"[ORO] Cambios en el impuesto de renta de las personas naturales luego de la Ley de financiamiento"]
[]
[null,"[ORO] Comparativo entre la depuración de la renta en el régimen ordinario y en el régimen simple"]
[]
[null,"[ORO] Formulario 220: certificado por rentas de trabajo año gravable 2018"]
[]
[null,"[Liquidador] Impuesto de renta ordinario vs impuesto simple: ¿cuál es la decisión más conveniente?"]
[]
[null,"[Guía] Requisitos para acceder al subsidio de desempleo"]
[]
[null,"[Guía] Tarifas de autorretención especial en renta automatizado"]
[]
[null,"[Guía] Indicadores básicos para tener en cuenta durante 2019"]
[]
[null,"[ORO] Novedades en clasificación de bienes y servicios frente a IVA e INC"]
[]
[null,"[Guía] Requisitos para pertenecer al régimen simple de tributación"]
[]
[null,"[ORO] Porcentaje fijo y retención en la fuente con procedimiento 2 durante 2019 tras Ley de financiamiento"]
[]
[null,"[ORO] Retención en la fuente con procedimiento 1 sobre rentas de trabajo 2019 tras Ley de financiamiento"]
[]
[null,"[Liquidador] Retención en la fuente con procedimiento 1 sobre rentas de trabajo durante 2019"]
[]
[null,"[Liquidador] Porcentaje fijo diciembre 2018 y junio 2019, y retención en la fuente con procedimiento 2 por 2019"]
[]
[null,"[Guía] Información laboral 2019"]
[]
[null,"[Formato] Radicación de licencia de maternidad ante EPS al no cotizar todo el período de gestación"]
[]
[null,"[Guía] Tasa representativa del mercado -TRM- 2018"]
[]
[null,"Histórico de la variación nominal del salario mínimo vs. la inflación 1993 – 2018"]
[]
[null,"[Guía avanzada] Tablas de retención en la fuente a título de impuestos nacionales 2019"]
[]
[null,"[Guía] Tabla de retenciones en la fuente por renta para el año fiscal 2019"]
[]
[null,"[Calendario] Calendario tributario distrital 2019"]
[]
[null,"[ORO] Matriz de cambios introducidos por la Ley de financiamiento 1943 de 2018"]
[]
[null,"[ORO] Comparativo de normas afectadas por la Ley de financiamiento 1943 de diciembre 28 de 2018"]
[]
[null,"[Guía] Dictamen para empresas que aplican el Estándar Internacional para Pymes"]
[]
[null,"[Certificación] Certificado de ingresos por rendimientos financieros expedido por contador público"]
[]
[null,"[2019] Histórico de salario mínimo y auxilio de transporte"]
[]
[null,"[ORO] Disminución de la base de retención por pagos a terceros por concepto de alimentación"]
[]
[null,"[Carta] Solicitud de aplicación de tarifa superior de retención en la fuente"]
[]
[null,"[ORO] Equivalencias entre cuentas contables y formato de conciliación fiscal 2516"]
[]
[null,"[Carta] Anuncio de modificación a términos de descuento por pronto pago"]
[]
[null,"[Formato] Nota débito"]
[]
[null,"[Guía] Proveedores tecnológicos autorizados para prestar servicios de facturación electrónica"]
[]
[null,"[Certificado] Certificación para efectos de retención en la fuente de trabajador independiente"]
[]
[null,"[Carta] Carta otorgando poder"]
[]
[null,"[Liquidador] Histórico de reajustes fiscales"]
[]
[null,"[ORO] Demanda de nulidad y restablecimiento del derecho contra la Dian"]
[]
[null,"[ORO] Recurso de reconsideración presentado ante la Dian"]
[]
[null,"[Guía] Modelo recurso de súplica – proceso laboral"]
[]
[null,"[ORO] Carta de agradecimiento a empleador"]
[]
[null,"[Guía] Modelo recurso de queja – proceso laboral"]
[]
[null,"[Guía] Conceptos y orientaciones que abordan el tratamiento contable de los contratos de concesión"]
[]
[null,"[Carta] Ofrecimiento de disculpas a un cliente por la no prestación de un servicio"]
[]
[null,"[Guía] Acuerdo de terminación voluntaria del contrato de trabajo con bonificación por servicios prestados"]
[]
[null,"[Guía] Normas del Estatuto Tributario sobre el patrimonio y renta según obligación de llevar contabilidad"]
[]
[null,"[ORO] Solicitud de empleo"]
[]
[null,"[Guía] Sistema de control de calidad aplicado a recursos humanos en un encargo de auditoría"]
[]
[null,"[Guía] Resoluciones y circulares para declaración de renta de personas naturales año gravable 2017"]
[]
[null,"[Guía] Modelo recurso de apelación – audiencia laboral"]
[]
[null,"[Guía] Decretos para la declaración de renta de personas naturales por el año gravable 2017"]
[]
[null,"[ORO] Solicitud pago de acreencias laborales"]
[]
[null,"[Guía] Informe de un auditor sobre el diseño y la eficacia de los controles de la entidad"]
[]
[null,"[Guía] Personas naturales no residentes obligadas o no a declarar impuesto de renta"]
[]
[null,"[Guía] Tratamiento contable arrendamiento financiero con opción de compra"]
[]
[null,"[Guía] Residencia fiscal y sus implicaciones fiscales"]
[]
[null,"[Guía] Impuesto de renta y ganancia ocasional según residencia fiscal de la persona natural"]
[]
[null,"[Formato] Solicitud compensación de vacaciones"]
[]
[null,"[Guía] Política contable de arrendamientos para entidades de grupo 1"]
[]
[null,"[Guía] Requisitos para que persona natural quede exonerada de declarar renta por el año gravable 2017"]
[]
[null,"[Guía] Personas naturales obligadas o no a llevar contabilidad, e implicaciones contables y tributarias"]
[]
[null,"[Guía] Políticas contables en pymes para los intangibles"]
[]
[null,"[ORO] Porcentaje fijo de retención en la fuente sobre salarios en junio de 2018 – Procedimiento 2"]
[]
[null,"[ORO] Contestación de demanda – proceso ordinario laboral"]
[]
[null,"[Liquidador] Cálculo de la contribución 2018 a Supersociedades"]
[]
[null,"[ORO] Conceptos que se someten o no a límites de rentas y deducciones especiales"]
[]
[null,"[Guía] Recurso de reposición – proceso laboral"]
[]
[null,"[Liquidador] Liquidador de vacaciones"]
[]
[null,"[Poder] Poder de sustitución"]
[]
[null,"[Guía] Informe sobre los hallazgos obtenidos en las propiedades, planta y equipo"]
[]
[null,"[ORO] Doctrinas de la Dian para tener en cuenta al elaborar declaración de renta personas naturales 2017"]
[]
[null,"[ORO] Depuración a efectuar dentro de las 5 cédulas de la declaración de renta de personas naturales"]
[]
[null,"[ORO] Formulario 210 para declaración renta año gravable 2017 – obligados a llevar contabilidad"]
[]
[null,"[Carta] Solicitud de depósito de recursos a cuenta AFC para que no se practique retefuente"]
[]
[null,"[ORO] Formulario 110 – declaración de renta 2017 de personas naturales obligadas a llevar contabilidad"]
[]
[null,"[ORO] Notificación de no renovación de contrato laboral a término fijo"]
[]
[null,"[ORO] Formulario 210 para declaración renta año gravable 2017 – no obligados a llevar contabilidad"]
[]
[null,"[Guía] Informe sobre los hallazgos obtenidos en las cuentas por cobrar en una pyme"]
[]
[null,"[ORO] Beneficios tributarios por venta o herencia de bien inmueble"]
[]
[null,"[Guía] Declaración de renta año gravable 2017: indicadores y otros datos básicos para su elaboración"]
[]
[null,"[Liquidador] Cobro coactivo: conozca si la Dian debería levantar medida cautelar sobre un bien del contribuyente"]
[]
[null,"[Carta] Revocatoria de poder otorgado a un abogado"]
[]
[null,"[ORO] Formulario 110 – declaración de renta 2017 de personas naturales no obligadas a llevar contabilidad"]
[]
[null,"[Guía] Rentas exentas y deducciones aplicables a cada cédula"]
[]
[null,"[Carta] Notificación de último cobro extrajudicial"]
[]
[null,"[Certificado] Cumplimiento de requisitos para solicitar permanencia en el régimen tributario especial"]
[]
[null,"[Certificado] Antecedentes de directivos en entidades del régimen especial"]
[]
[null,"[ORO] Plantilla para elaborar XML de formatos 1004, 1011 y 2275 para el año gravable 2017"]
[]
[null,"[ORO] Registro web de las entidades del régimen especial: trámites que debe realizar cada tipo de entidad"]
[]
[null,"[Guía] Reforma al acuerdo de reorganización"]
[]
[null,"[ORO] Clasificación general de personas jurídicas en relación con el impuesto de renta por el 2017"]
[]
[null,"[Guía] Informe de revisión de estados financieros de una pyme conforme a la NIER 2400"]
[]
[null,"[Guía] Solicitud de normalización de acreencias"]
[]
[null,"[Guía] Normalización de acreencias incumplidas en proceso de reorganización"]
[]
[null,"[Guía] Levantamiento de medida cautelar en proceso de reorganización"]
[]
[null,"[Guía] Incorporación de procesos ejecutivos en proceso de reorganización empresarial"]
[]
[null,"[Guía] Remisión de documentos reunión de acreedores"]
[]
[null,"[Guía] Presentación de reforma de acuerdo de reorganización"]
[]
[null,"[Guía] Denuncia por incumplimiento de obligación de hacer en acuerdo de reorganización"]
[]
[null,"[Guía] Denuncia de incumplimiento de acuerdo de reestructuración"]
[]
[null,"[Certificación] Certificación trimestral de cumplimiento total de la Circular 156–000005 de 2011"]
[]
[null,"[Certificación] Oficio de cumplimiento de la Circular 156–000005 de 2011"]
[]
[null,"[Certificación] Certificación de cumplimiento de Circular 156–000005 de 2011"]
[]
[null,"[ORO] Formatos exógena 1011, 1012 y 2275 por el año gravable 2017: reporte de otros datos en renta e IVA"]
[]
[null,"[ORO] Formato exógena 1009 por el año gravable 2017: reporte de cuentas por pagar"]
[]
[null,"Formatos de exógena por el año gravable 2017: reportes de los mandatarios"]
[]
[null,"[ORO] Formato exógena 1008 por el año gravable 2017: reporte de cuentas por cobrar"]
[]
[null,"[ORO] Formato exógena 1007 por el año gravable 2017: reportes de ingresos propios"]
[]
[null,"[ORO] Formatos exógena 1005 y 1006 por el año gravable 2017: reportes de IVA generados y descontables"]
[]
[null,"[ORO] Formato exógena 1003 por el año gravable 2017: retenciones que le practicaron al informante"]
[]
[null,"[ORO] Resumen de categorías de informantes de exógena por el año gravable 2017 y formatos que deben usar"]
[]
[null,"[ORO] Formato exógena 1004 por 2017: reporte de descuentos al impuesto de renta y ganancia ocasional"]
[]
[null,"Formatos 2276, 2278 y 2280 para el reporte de información exógena por 2017"]
[]
[null,"Formato exógena 1647 por el año gravable 2017: reporte de ingresos recibidos para terceros"]
[]
[null,"Formato exógena 1010 por el año gravable 2017: reporte de socios, cooperados o comuneros"]
[]
[null,"[ORO] Formato exógena 1001 por el año gravable 2017: reporte de pagos o abonos en cuenta"]
[]
[null,"[Guía] Reglamentación para la declaración de renta de personas jurídicas 2017"]
[]
[null,"[ORO] Formulario 110 y formato 2516 para declaración de renta o ingresos y patrimonio 2017"]
[]
[null,"[ORO] Arqueo de caja"]
[]
[null,"[Liquidador] Beneficio neto o excedente de las entidades del régimen tributario especial"]
[]
[null,"[ORO] Liquidador básico de nómina"]
[]
[null,"[Certificación] Explotación de áreas comunes por copropiedades comerciales o mixtas"]
[]
[null,"[ORO] Costo de renovación 2018 de matrícula mercantil y establecimientos de comercio"]
[]
[null,"[Liquidador] Formulario 220 certificado por rentas de trabajo del año gravable 2017: ejemplo de asalariados"]
[]
[null,"[Guía] Testamento abierto o público cuando no hay hijos herederos"]
[]
[null,"[Liquidador] Aplicativo simulador y comparativo de créditos cuota fija"]
[]
[null,"[Calendario] Calendarios tributarios 2018 de los distritos y municipios principales de Colombia"]
[]
[null,"[Guía] Amparo de pobreza"]
[]
[null,"[Guía] Sanciones relacionadas con ICA, impuesto predial y de vehículos en Bogotá"]
[]
[null,"[Liquidador] Cálculo de tasa de interés efectiva implícita en una cuota"]
[]
[null,"[Poderes] Poder para adelantar sucesión ante Notaría"]
[]
[null,"[Liquidador] Conversión de tasas de interés"]
[]
[null,"[Calendario] Calendario tributario de Cali 2018"]
[]
[null,"[Calendario] Calendario tributario de Medellín 2018"]
[]
[null,"[Calendario] Calendarios tributarios de las tres principales ciudades de Colombia 2018"]
[]
[null,"[Guía] Escritura pública de disolución de sociedad comercial"]
[]
[null,"[ORO] Plantilla para elaborar formulario 220 certificado por rentas de trabajo del año gravable 2017"]
[]
[null,"[Guía] Decretos reglamentarios de la Ley de reforma tributaria 1819 de 2016 expedidos a finales de 2017"]
[]
[null,"[Guía] Demanda para fijación de nuevo valor de arrendamiento de local comercial"]
[]
[null,"[Guía] Impuesto diferido aplicado a propiedades de inversión: caso práctico"]
[]
[null,"[Guía] Indicadores básicos a tener en cuenta en el 2018"]
[]
[null,"[Guía] Declaración de extinción de la obligación hipotecaria"]
[]
[null,"[Liquidador] Límite de pagos en efectivo a tener en cuenta para 2018"]
[]
[null,"[Guía] Demanda de cancelación y reposición de título valor contra entidad bancaria"]
[]
[null,"[Lista de chequeo] Revisión de control de calidad en un encargo de auditoría"]
[]
[null,"[Liquidador] Retención en la fuente con procedimiento 1 sobre rentas de trabajo durante el 2018"]
[]
[null,"[Contrato] Contrato de comodato"]
[]
[null,"[Guía] Tipos de términos de firmeza de las declaraciones tributarias"]
[]
[null,"[Guía] Información laboral 2018"]
[]
[null,"[2018] Histórico de salario mínimo y auxilio de transporte"]
[]
[null,"[Calendario] Calendario para personas naturales 2018"]
[]
[null,"[Calendario] Calendario tributario distrital 2018"]
[]
[null,"[Guía] Tasa representativa de mercado –TRM–"]
[]
[null,"[ORO] Calendario tributario automatizado 2018"]
[]
[null,"[ORO] Tabla de retenciones en la fuente por renta para año fiscal 2018"]
[]
[null,"[Calendario] Calendario tributario 2018"]
[]
[null,"[Guía] Modelo del certificado anual a socios y/o accionistas por el año 2017"]
[]
[null,"[ORO] Porcentaje fijo de retención en la fuente sobre salarios en diciembre de 2017 – Procedimiento 2"]
[]
[null,"[Poder] Para constituir una sociedad anónima otorgado por persona jurídica extranjera"]
[]
[null,"[Carta] Independencia del revisor fiscal o auditor de la firma"]
[]
[null,"[ORO] Categorías de informantes de exógena por el año gravable 2017 y formatos que deben usar"]
[]
[null,"[Guía] Demanda de restitución de bien inmueble arrendado – Local de comercio"]
[]
[null,"[Carta] Confirmación del auditor de un componente"]
[]
[null,"[Guía] Régimen simplificado del IVA y del impuesto al consumo: diferencias y similitudes"]
[]
[null,"[Guía] Persona natural, empresa unipersonal o SAS: características frente a obligaciones tributarias"]
[]
[null,"[Guía] Recurso de queja por denegar liquidación de crédito en proceso ejecutivo"]
[]
[null,"[Poder] Solicitud de pruebas extraprocesales"]
[]
[null,"[ORO] Conciliación contable y tributaria: casos de descuentos y deducciones (parte IV)"]
[]
[null,"[ORO] Conciliación contable y tributaria: casos de descuentos tributarios"]
[]
[null,"[Guía] Demanda de proceso ejecutivo singular (letra de cambio)"]
[]
[null,"[Guía] Conciliación contable y tributaria: casos de costos y deducciones (parte II)"]
[]
[null,"[Guía] Descuentos tributarios para personas jurídicas y sus límites al momento de aplicarlos"]
[]
[null,"[Contrato] Distribución exclusiva"]
[]
[null,"[ORO] Conciliación contable y tributaria: casos de costos y deducciones (parte I)"]
[]
[null,"[Guía] Formatos para acceder a exclusión de IVA en equipos en pro del medio ambiente"]
[]
[null,"[Contrato] Compromiso de fusión"]
[]
[null,"[Guía] Lista de chequeo: evidencia relativa a los controles en una organización de servicios"]
[]
[null,"[Guía] Zomac: listado automatizado de municipios pertenecientes a estas zonas"]
[]
[null,"[Guía] Convocatoria de integración de tribunal de arbitramento comercial"]
[]
[null,"[Guía] Beneficio en renta para sociedades ubicadas en Zomac: requisitos según el tamaño de la empresa"]
[]
[null,"[Acta] Acta final de arreglo directo"]
[]
[null,"[Contrato] Cesión de derechos litigiosos"]
[]
[null,"[ORO] Cuenta de cobro para una persona que presta servicios en el régimen simplificado del IVA"]
[]
[null,"[Demanda] Levantamiento de fuero sindical"]
[]
[null,"​[Guía] Requisitos para no estar obligado a declarar renta por el año gravable 2016"]
[]
[null,"[Guía] Patrimonio y rentas a declarar según la residencia fiscal del contribuyente"]
[]
[null,"[Guía] Demanda para iniciar proceso ejecutivo laboral"]
[]
[null,"[Guía] Conducta sancionable, ¿en qué consiste para efectos de liquidar sanción reducida?"]
[]
[null,"[ORO] Contrato de outsourcing"]
[]
[null,"[Guía] Convenios para evitar la doble tributación aplicables al año gravable 2016"]
[]
[null,"[Guía] Declaración de renta año gravable 2016: indicadores y otros datos básicos para su elaboración"]
[]
[null,"[Guía] Lista de chequeo de requisitos para obtener la tarjeta profesional de contador público"]
[]
[null,"[Matriz] Clasificación tributaria de una persona natural según el Concepto 885 de julio 31 de 2014"]
[]
[null,"[Formularios] Formulario de reclamos del usuario o cliente"]
[]
[null,"[Guía] Lista de chequeo de requisitos para la expedición de la tarjeta de registro de entidades"]
[]
[null,"​[Guía] Conducta sancionable, comisión de la misma conducta no permite liquidar sanción reducida"]
[]
[null,"[Carta] Modelo de circularización con compañías de seguros"]
[]
[null,"[Liquidador] Prorrateo de IVA comunes: hoja de trabajo con cálculos básicos"]
[]
[null,"[Guía] Personas naturales obligadas y no obligadas a llevar contabilidad"]
[]
[null,"[Certificación] Certificación laboral"]
[]
[null,"[Liquidador] Cálculo de la contribución 2017 a la Supersociedades"]
[]
[null,"[Guía] Lista de chequeo de revelaciones para microempresas"]
[]
[null,"​[Matriz] Clasificación tributaria de una persona natural según Decreto 3032 de 2013"]
[]
[null,"[Contrato] Transacción para terminar contrato de obra en propiedad horizontal"]
[]
[null,"[Matriz] Residente para efectos fiscales"]
[]
[null,"[ORO] Carta de interrupción de la prescripción de las acciones laborales"]
[]
[null,"[Guía] Tabla de equivalencias de términos sobre Normas Internacionales de Auditoría"]
[]
[null,"[Guía] Habilitación para expedir factura electrónica: proceso a seguir"]
[]
[null,"[Contrato] Contrato de obra para construcción"]
[]
[null,"[ORO] Pasos que debe seguir el consumidor financiero para exponer una inconformidad"]
[]
[null,"[Guía] Términos a tener en cuenta en el trámite de solicitud de devolución de saldos a favor"]
[]
[null,"[Formato] Cuestionario de auditoría para área de sistemas"]
[]
[null,"​[Matriz] Cédula rentas de capital y su renta líquida según Concepto 5984 de marzo 17 de 2017"]
[]
[null,"[ORO] Renta presuntiva y las novedades de la reforma tributaria en su determinación"]
[]
[null,"[Carta] Radicación de licencia de maternidad cuando no se cotizó todo el embarazo"]
[]
[null,"[ORO] Cuestionario de auditoría para área de producción"]
[]
[null,"[Guía] Listado de relaciones de intercambio de información de cuentas financieras que tiene Colombia"]
[]
[null,"[Guía] Tasas: generalidades y conceptos"]
[]
[null,"[ORO] Contribuyentes de monotributo ARL y valor a pagar por cada componente por 2017"]
[]
[null,"[Acta] Reclamación ante empresas de telefonía celular por reporte negativo a centrales de riesgo"]
[]
[null,"[ORO] Intereses moratorios sobre deudas tributarias luego de la Ley 1819 de 2016"]
[]
[null,"[ORO] Formularios 210 y 230 con anexos para declaración de renta año gravable 2016"]
[]
[null,"[ORO] ​Formularios 110 y 240 con anexos para declaración de renta año gravable 2016"]
[]
[null,"​[ORO] Modelo para proyectar efectos de IMAN e IMAS en declaraciones de renta 2016 de empleados"]
[]
[null,"[ORO] Clasificación tributaria de las personas naturales y sucesiones ilíquidas por el año 2016"]
[]
[null,"​[ORO] Modelo para proyectar efectos de IMAS por 2016 de trabajadores por cuenta propia"]
[]
[null,"[Guía] Contribuyentes de monotributo BEPS y valor a pagar por cada componente"]
[]
[null,"[Acta] Aprobación de disolución de sociedad de responsabilidad limitada"]
[]
[null,"[Acta] Acta de junta para transformación de SA a SAS"]
[]
[null,"[Certificación] Requisitos para acceder a beneficios en registro mercantil de la Ley Projoven"]
[]
[null,"[ORO] Porcentaje fijo de retención en la fuente sobre salarios en junio de 2017 – Procedimiento 2"]
[]
[null,"[Acta] Acta de junta para transformación de Ltda a SAS"]
[]
[null,"[Carta] Reclamación por garantías sobre bienes o servicios"]
[]
[null,"[ORO] Manifestación de temas a tratar en informes de control interno"]
[]
[null,"Retefuente con procedimiento 1 para quienes perciban rentas de trabajo"]
[]
[null,"[Guía] Régimen tributario especial: información que debe contener el registro de inscripción"]
[]
[null,"​[ORO] Formulario 300 para declaraciones de IVA bimestrales y/o cuatrimestrales durante 2017"]
[]
[null,"[Contrato] Escrituras de venta de inmueble que no está ubicado en propiedad horizontal"]
[]
[null,"[Contrato] Escrituras de venta de inmueble ubicado en propiedad horizontal"]
[]
[null,"[Guía] Información requerida para agendar cita en la DIAN"]
[]
[null,"[Guía] Elementos conceptuales para informe de control interno"]
[]
[null,"[Guía] Modelo de manifestación de la gerencia dirigida a la revisoría fiscal"]
[]
[null,"[ORO] Formato 1003 por 2016: reportes de retenciones que le practicaron a la persona o entidad informante"]
[]
[null,"[ORO] Formato 1009 por 2016: reportes de cuentas por pagar"]
[]
[null,"[ORO] Formato 1004 por 2016: reporte de descuentos al impuesto de renta o de ganancia ocasional"]
[]
[null,"[ORO] Formato 1647 por 2016: reportes de ingresos recibidos para terceros"]
[]
[null,"[ORO] Formato 1007 por 2016: reportes de ingresos propios"]
[]
[null,"[ORO] Formato 1001 por 2016: reportes de pagos o abonos en cuenta y sus retenciones a terceros"]
[]
[null,"[ORO] Formatos 2276, 2278 y 2280 para el reporte de información exógena por 2016"]
[]
[null,"[ORO] Formatos 1005 y 1006 por 2016: reportes de IVA generados y descontables"]
[]
[null,"[ORO] Formato 1010 por 2016: reportes de socios, cooperados o comuneros"]
[]
[null,"[ORO] Formato 1008 por 2016: reportes de cuentas por cobrar"]
[]
[null,"[Guía] Incentivos de la reforma tributaria que fueron reglamentados a nivel territorial"]
[]
[null,"[ORO] Formatos 1011, 1012 y 2275 por 2016: reportes de otros datos en renta o en ingresos y patrimonio"]
[]
[null,"[Contrato] Solicitud al banco de cheques originales pagados"]
[]
[null,"[Guía] Dictamen de la revisoría fiscal para una empresa del Grupo 2 por el año 2016"]
[]
[null,"[Guía] Matriz para definir si pertenece al régimen simplificado del IVA"]
[]
[null,"[Contrato] Contrato de depósito"]
[]
[null,"[Guía] Matriz para definir si pertenece al régimen simplificado del impuesto nacional al consumo"]
[]
[null,"[Contrato] Distribución de productos"]
[]
[null,"[Contrato] Arrendamiento de oficina, local o bodega"]
[]
[null,"[Guía] Modelo de certificación de Estados Financieros (versión extendida)"]
[]
[null,"[Guía] Cambios en conceptos de exógena para reportar descuentos tributarios solicitados"]
[]
[null,"[ORO] Formularios 110 y 140 y formato 1732 para personas jurídicas por año gravable 2016"]
[]
[null,"[ORO] Derecho de petición de interés particular contra empresa de servicios públicos -ESP-"]
[]
[null,"[Guía] Política contable sobre moneda funcional y transacciones en moneda extranjera para Pymes"]
[]
[null,"[ORO] Plantilla para elaborar borrador de formulario 350 de marzo de 2017 en adelante"]
[]
[null,"[Guía] Nuevos conceptos de exógena para reportar ingresos por operaciones con IVA"]
[]
[null,"[Acta] Reunión de junta directiva"]
[]
[null,"[Acta] Autorización de aumento del capital"]
[]
[null,"[Guía] Cambios en conceptos de exógena para reportar valores de costos y deducciones"]
[]
[null,"[Acta] Iniciación de arreglo directo"]
[]
[null,"[Guía] Modelo informe del Revisor Fiscal con ISAE"]
[]
[null,"[Guía] Cambios en los conceptos de exógena para reportar valores de rentas exentas"]
[]
[null,"[ORO] Calendario Tributario 2017 automatizado"]
[]
[null,"[Liquidador] Matrícula Mercantil y establecimientos de comercio: costo de renovación año 2017"]
[]
[null,"[Guía] Cambios en los conceptos para reportar ingresos no constitutivos de renta ni ganancia ocasional"]
[]
[null,"[Guía] Convocatoria junta de socios o asamblea general extraordinaria"]
[]
[null,"[Guía] Síntesis de las modificaciones de la Ley 1819 de 2016 a rentas exentas del artículo 207-2"]
[]
[null,"[ORO] Plantilla para elaborar Formulario 220 certificado de ingresos y retenciones a empleados año gravable 2016"]
[]
[null,"[Guía] Políticas contables más significativas en Pymes"]
[]
[null,"[Formato] Comprobante de préstamos sobre salarios"]
[]
[null,"​​[Guía] Nota 2: base de preparación de Estados Financieros bajo el Estándar Internacional para Pymes"]
[]
[null,"[Formato] Allanamiento a las pretensiones de la demanda"]
[]
[null,"​[ORO] Cálculo de retención sobre dividendos de 2016, anteriores, de 2017 y siguientes"]
[]
[null,"[Formato] Demanda de divorcio de matrimonio civil"]
[]
[null,"[ORO] Cuadro temático con los cambios introducidos por la Ley de reforma tributaria 1819 de 2016"]
[]
[null,"[Guía] Matriz para clasificar empresas que inicien actividades en ZOMAC y tarifa en renta a aplicar por 2017"]
[]
[null,"[Formato] Cesión de derechos hereditarios"]
[]
[null,"[Formato] Tabla de retención en la fuente sobre ingresos laborales"]
[]
[null,"[Guía] Matriz para determinar valor de excesos de renta presuntiva y de base mínima a compensar"]
[]
[null,"[Guía] Matriz para determinar valor de pérdidas fiscales susceptibles de compensación según reforma"]
[]
[null,"[Guía] Información laboral 2017"]
[]
[null,"[Formato] Poder especial para adelantar proceso ejecutivo"]
[]
[null,"[Liquidador] Sobretasa del impuesto de renta y complementario de personas jurídicas"]
[]
[null,"[Guía] Matriz para definir periodicidad de declaración y pago de IVA en 2017 según reforma tributaria 2016"]
[]
[null,"[Formato] Liquidador de seguridad social y provisión de prestaciones sociales para servicio doméstico"]
[]
[null,"[ORO] Listado de bienes y servicios cuya clasificación frente al IVA fue modificada con la Ley 1819"]
[]
[null,"[ORO] Tablas de retención en la fuente a título de los impuestos nacionales durante el año fiscal 2017"]
[]
[null,"[ORO] Gravamen progresivo en impuesto de renta de personas naturales"]
[]
[null,"​[Guía] Matriz para definir quién puede acogerse al Monotributo por el año 2017 según reforma tributaria"]
[]
[null,"[Guía] Matriz para definir categoría en Monotributo y valor a pagar en 2017 según reforma tributaria 2016"]
[]
[null,"[Formato] Poder especial otorgado por representante legal de persona jurídica"]
[]
[null,"[Guía] Tabla de retenciones en la fuente por renta año fiscal 2017"]
[]
[null,"[Calendario] Calendario tributario distrital 2017"]
[]
[null,"[Formato] Cédula de control para valoración de riesgos en compras"]
[]
[null,"[Guía] Matriz para definir categoría en Monotributo y valor a pagar en 2017 según reforma tributaria"]
[]
[null,"​[Guía] Matriz para definir la periodicidad de declaración y pago del IVA en 2017 según reforma tributaria"]
[]
[null,"[Guía] Lista de chequeo de revelaciones Sección 27: deterioro del valor de los activos"]
[]
[null,"[Guía] Matriz para definir obligados a declarar renta según reforma tributaria aprobada en primer debate"]
[]
[null,"[ORO] Modelo para definir porcentaje fijo de retefuente sobre salarios en diciembre 2016 – Procedimiento 2"]
[]
[null,"[Formato] Modelo de carta para solicitar a la empresa de servicios públicos la suspensión del contrato de telefonía e internet"]
[]
[null,"[Guía] Lista de chequeo de revelaciones Sección 26: pagos basados en acciones"]
[]
[null,"[Calendario] Calendario tributario 2017"]
[]
[null,"[Acta] Modelo para otorgar poder de representación ante una junta de socios o asamblea de accionistas"]
[]
[null,"[Guía] Lista de chequeo de revelaciones Sección 24: subvenciones del gobierno"]
[]
[null,"[Guía] Matriz para definir si puede acogerse al Monotributo por el año 2017 según proyecto reforma tributaria"]
[]
[null,"[Autorización] Formato autorización permiso de salida del país para menores"]
[]
[null,"[Guía] Lista de chequeo de revelaciones Sección 23: ingresos de actividades ordinarias"]
[]
[null,"[Guía] Matriz para definir obligados a declarar renta por el 2017 según proyecto reforma tributaria"]
[]
[null,"[Liquidador] Cálculos para determinar valores susceptibles de ser compensados"]
[]
[null,"[Poder] Representación ante la Superintendencia de Sociedades"]
[]
[null,"[Liquidador] Tarifas en impuesto y sobretasa en renta para empresas editoriales según proyecto de reforma"]
[]
[null,"[Guía] Matriz para determinar el valor de las pérdidas fiscales susceptibles de ser compensadas"]
[]
[null,"[ORO] Impuesto de renta de persona natural según proyecto de reforma tributaria"]
[]
[null,"[Liquidador] Tablas de gravamen progresivo en impuesto y retención por renta de personas naturales"]
[]
[null,"[Guía] Estatuto Tributario concordado con el Proyecto de Ley de Reforma Tributaria"]
[]
[null,"[Guía] Dictamen de modelo (limpio o sin salvedades) del revisor fiscal"]
[]
[null,"[Guía] Estructura general del Proyecto Ley Reforma Tributaria Estructural"]
[]
[null,"[ORO] Contrato de trabajo con salario integral"]
[]
[null,"[Guía] Matriz para establecer cumplimiento de criterios para ser calificado como Gran Contribuyente"]
[]
[null,"[ORO] ESFA y Estados financieros 2015 y 2016: Caso práctico"]
[]
[null,"[Guía] Matriz para definir la periodicidad para declarar y pagar la autorretención del CREE"]
[]
[null,"[ORO] Aplicación del Estándar para Pymes por representante legal y contador"]
[]
[null,"[Guía] Matriz para definir la periodicidad de declaración y pago del impuesto sobre las ventas"]
[]
[null,"[Guía] Informe de directivos: Aplicación de los Estándares Internacionales – Grupo 2"]
[]
[null,"[Formato] “Especificaciones de los servicios” para acceder a incentivos de la Ley 1715 del 2014"]
[]
[null,"[Acta] Reglamento para la emisión de acciones"]
[]
[null,"[Formato] “Especificaciones del elemento, equipo y/o maquinaria” para acceder a incentivos de la Ley 1715"]
[]
[null,"[Acta] Disolución de una sociedad"]
[]
[null,"[Formato] Formato único de solicitud de certificación de beneficios ambientales"]
[]
[null,"[Guía] Cuadro sinóptico de la generación del IVA en operaciones con empresas en zonas francas"]
[]
[null,"[Acta] Modelos de autorización para obtener, renovar o cancelar la firma digital"]
[]
[null,"[Formato] Modelo de memorial para solicitarle al juez librar medida cautelar"]
[]
[null,"[Acta] Modelo de reclamación por garantía"]
[]
[null,"[Guía] Matriz para definir el sistema mediante el cual puede declarar un trabajador por cuenta propia"]
[]
[null,"[Acta] Acta de Junta Directiva para autorizar al Gerente a suscribir contratos"]
[]
[null,"[Guía] Modelo de política contable para el valor residual"]
[]
[null,"[Acta] Modelo de comprobante de pago con caja menor"]
[]
[null,"[ORO] Matriz para definir el sistema mediante el cual puede declarar un empleado por el año gravable 2015"]
[]
[null,"[Acta] Modelo de circularización con abogados"]
[]
[null,"[Liquidador] Cuota mensual en el pago de una obligación financiera"]
[]
[null,"[Liquidador] Flujo de caja especial para una microempresa"]
[]
[null,"[Guía] Matriz para definir si una persona natural está obligada a declarar renta por el 2015"]
[]
[null,"[Poder] Poder de representación en asamblea/junta general de asociados"]
[]
[null,"[Convocatoria] Segunda convocatoria a asamblea general ordinaria de socios/accionistas"]
[]
[null,"[Guía] Modelo simple de programa de auditoría a inversiones en pymes"]
[]
[null,"[Acta] Modelo de acta para nombramiento de junta directiva y/o revisor fiscal"]
[]
[null,"[Liquidador] Herramienta calculadora de tarifas en la Contaduría Pública"]
[]
[null,"[Guía] Modelo para la aprobación de políticas contables para entidades del sector público (Resolución 414)"]
[]
[null,"[ORO] Matriz para definir contribuyentes no obligados a presentar declaración de renta"]
[]
[null,"[Guía] Servicios y contratos en los cuales se puede aplicar AIU"]
[]
[null,"[Guía] Lista de Chequeo de Revelaciones Sección 19: combinaciones de negocio y plusvalía"]
[]
[null,"[Liquidador] Modelo para el cálculo de la «sanción por corrección» en una declaración de renta"]
[]
[null,"[Guía] Navegación en el marco normativo de las NAI"]
[]
[null,"[Guía] Lista de Chequeo de Revelaciones Sección 17: propiedades, planta y equipo"]
[]
[null,"[Guía] Diferencias en la declaración de renta de personas naturales obligadas o no a llevar contabilidad"]
[]
[null,"[ORO] Modelo de renuncia por falta de pago de salarios"]
[]
[null,"[Formato] Carta de compromiso de auditoría bajo NIA"]
[]
[null,"[Guía] Lista de Chequeo de Revelaciones Sección 16: propiedades de inversión"]
[]
[null,"[ORO] Beneficios tributarios por vinculación laboral de personas con condiciones especiales"]
[]
[null,"[ORO] Documentos necesarios para elaborar la declaración de renta de personas naturales año gravable 2015"]
[]
[null,"[ORO] Formato “otro sí” para modificar promesa de compraventa"]
[]
[null,"[Certificado] Modelo del certificado anual a socios y/o accionistas por el año gravable 2015"]
[]
[null,"[Guía] Lista de Chequeo de Revelaciones Sección 10: políticas contables, estimaciones y errores"]
[]
[null,"[Liquidador] IMAS en el impuesto de renta de los trabajadores por cuenta propia: modelo para proyectar efectos 2015"]
[]
[null,"[Reclamaciones] Reclamación directa contra proveedor o productor"]
[]
[null,"[Liquidador] IMAN e IMAS en el impuesto de renta para empleados: modelo para proyectar efectos 2015"]
[]
[null,"[Carta] Solicitud de autorización para venta de propiedad de un menor de edad"]
[]
[null,"[Guía] Lista de Chequeo de Revelaciones Sección 7: Estado de Flujos de Efectivo"]
[]
[null,"[ORO] Cálculo de la contribución 2016 a la Supersociedades"]
[]
[null,"[ORO] Formularios 210 y 230 con anexos para la declaración de renta de personas naturales año gravable 2015"]
[]
[null,"[Guía] Lista de Chequeo de Revelaciones Sección 5: Estado de Resultado Integral y Estado de Resultados"]
[]
[null,"[Liquidador avanzado] ​Formularios 110 y 240 con anexos para la declaración de renta año gravable 2015"]
[]
[null,"[Guía] Lista de Chequeo de Revelaciones Sección 4: Estado de Situación Financiera"]
[]
[null,"[Liquidador básico] Formulario 210 Declaración de Renta Personas Naturales y Sucesiones ilíquidas año gravable 2015"]
[]
[null,"[Guía] Clasificación tributaria de personas naturales y sucesiones ilíquidas frente al impuesto de renta por el año gravable 2015"]
[]
[null,"[ORO] Derecho de petición para solicitar documentos a exempleador"]
[]
[null,"[Guía] Lista de chequeo de revelaciones Sección 3: presentación de Estados Financieros"]
[]
[null,"[ORO] Cálculo de la sanción por extemporaneidad después del emplazamiento por no declarar"]
[]
[null,"[ORO] Acta de Asamblea General para aprobación de estados financieros 2015 en entidad del Grupo 1"]
[]
[null,"[ORO] Modelo para definir porcentaje fijo de retención en la Fuente sobre salarios en junio del 2016 – Procedimiento 2"]
[]
[null,"Modelo básico para proyectar el impuesto a la riqueza 2015 a 2018 y su complementario de normalización tributaria"]
[]
[null,"[ORO] Cálculo de intereses presuntivos por préstamos en dinero a socios durante el 2015"]
[]
[null,"[Guía] Lista de chequeo de revelaciones: NIC 36 Deterioro del valor de los activos"]
[]
[null,"[Contrato] Finalización del contrato por parte del arrendatario por vencimiento del contrato"]
[]
[null,"[Guía] Lista de chequeo de revelaciones: NIC 26 – Contabilización e información financiera sobre planes de beneficio por retiro"]
[]
[null,"[ORO] Cálculo de la sanción por extemporaneidad antes del emplazamiento"]
[]
[null,"[Acta] Acta de nombramiento del Vigía en Seguridad y Salud en el Trabajo"]
[]
[null,"[Guía] Normatividad aplicable a los impuestos de renta, CREE y riqueza contenida en la Ley 1739 del 2014"]
[]
[null,"[Formato] Formato para presentar quejas sobre situaciones que puedan constituir acoso laboral"]
[]
[null,"[ORO] Hoja de trabajo para el control de activos fijos"]
[]
[null,"[Guía] Plantilla para elaborar el Informe de Prácticas Empresariales por el 2015"]
[]
[null,"[Guía] Generación del IVA en operaciones con empresas en zonas francas"]
[]
[null,"[Guía] Certificado por Retención en la Fuente a título del impuesto de Timbre"]
[]
[null,"[Autorización] Autorización de salida de bienes por finalización del contrato de arrendamiento – Propiedad Horizontal"]
[]
[null,"[ORO] Proyección de descuentos en Renta, CREE y Sobretasa al CREE por impuestos pagados en el exterior"]
[]
[null,"[ORO] Cuentas a reportar en los formatos de información exógena año gravable 2015"]
[]
[null,"[Guía] Clasificación de las personas jurídicas en el impuesto de Renta y CREE del año gravable 2015"]
[]
[null,"[Guía] Plantilla de Estados Financieros 2015 bajo Estándares Internacionales Plenos para Supersociedades con XBRL Express"]
[]
[null,"[Liquidador] Impuesto a la riqueza: cálculo valor patrimonial neto para acciones poseídas de forma indirecta en sociedades nacionales"]
[]
[null,"​[Calendario] Calendario tributario automatizado para el 2016"]
[]
[null,"[Liquidador] Efectos de las ventas de activos fijos depreciables que constituyen ganancia ocasional"]
[]
[null,"[Guía] Categorías de informantes de exógena por el año gravable 2015 y formatos a utilizar"]
[]
[null,"[Liquidador] Depuración del Impuesto de Renta año gravable 2015 para copropiedades que explotan áreas comunes"]
[]
[null,"[Guía] Cálculo de intereses de mora sobre obligaciones tributarias"]
[]
[null,"[Formato] Formato 2278: información de compras a terceros de bonos, vales y otros documentos para pagos a trabajadores en el 2015"]
[]
[null,"[ORO] Formato 2280: deducción en el 2015 por empleadas víctimas de la violencia"]
[]
[null,"[ORO] Poder especial para compraventa de inmueble"]
[]
[null,"[Guía] Simulación del Sistema de Registro de Diferencias"]
[]
[null,"[Liquidador] Cálculo de deducción en renta por inversiones en proyectos de investigación tecnológica"]
[]
[null,"[Formato] Certificación de estados financieros año 2015 a entregar a la Supersociedades"]
[]
[null,"[ORO] Formulario 220: certificación de pagos y retenciones a empleados por el año gravable 2015"]
[]
[null,"[ORO] Promesa de compraventa de apartamento con usufructo para cancelar"]
[]
[null,"[Formato] Dictamen Revisoría Fiscal (auditoría externa) con Estándares Internacionales"]
[]
[null,"[Formato] Formatos 1005 y 1006: reporte de IVA descontables, e IVA e INC generados en el 2015"]
[]
[null,"[Formato] Formatos 1011, 1012 y 2275: reportes de otros datos de la declaración de Renta o de Ingresos y Patrimonio del 2015"]
[]
[null,"[ORO] Formato 1004: reporte de los descuentos al impuesto de Renta o de Ganancia Ocasional en el 2015"]
[]
[null,"[Formato] Formato 1010: reporte de socios, cooperados o comuneros a diciembre 31 del 2015"]
[]
[null,"[Formato] Formatos 1016, 1017, 1018, 1027, 1054 y 1055: reportes de los mandatarios en contratos de mandato año gravable 2015"]
[]
[null,"[ORO] Formularios 110 y 140 con anexos y formato 1732 año gravable 2015"]
[]
[null,"[Certificado] Participación patrimonial anual a socios y/o accionistas por el 2015"]
[]
[null,"[ORO] Formato 1009: reporte de cuentas por pagar a diciembre 31 del 2015"]
[]
[null,"[ORO] Formato 1008: reporte de cuentas por cobrar a diciembre 31 del 2015"]
[]
[null,"[ORO] Convocatoria para Asamblea General de Copropietarios"]
[]
[null,"[ORO] Formato 2276: información de los certificados de ingresos y retenciones a empleados año 2015"]
[]
[null,"[ORO] Formato 1007: información de ingresos propios recibidos durante el 2015"]
[]
[null,"[ORO] Formato 1001: información de pagos o causaciones a terceros durante el 2015 y las retenciones practicadas o asumidas sobre los mismos. Caso 1"]
[]
[null,"[ORO] Formato 1001: información de pagos o causaciones a terceros durante el 2015 y las retenciones practicadas o asumidas sobre los mismos. Caso 2"]
[]
[null,"[ORO] Formato 1647: reportes de ingresos recibidos (facturados) para terceros durante el 2015"]
[]
[null,"[ORO] Formato 1003: reportes de retenciones que le practicaron a la persona o entidad informante durante el 2015"]
[]
[null,"[Carta] Carta de finalización del contrato individual de trabajo por pensión del trabajador"]
[]
[null,"[Guía] Plantilla de estados financieros 2015 bajo Estándares Internacionales para Supersociedades con XBRL Express"]
[]
[null,"[Guía] Cierre contable: proceso de verificación de la información del 2015"]
[]
[null,"[Calendario] Declaración anual del Impuesto de Industria y Comercio en Cali"]
[]
[null,"[Calendario] Calendario Tributario para Personas Naturales"]
[]
[null,"[Guía] Tabla de recargos y aportes para salario mínimo 2016"]
[]
[null,"[Liquidador] Costo de renovación de la Matrícula Mercantil para el 2016"]
[]
[null,"[ORO] Sanción por extemporaneidad en declaración del Régimen Simplificado del Impuesto al Consumo"]
[]
[null,"[Poder] Otorgamiento de poder para cancelar línea telefónica"]
[]
[null,"[Guía] Cuestionario para la revisión y evaluación de los saldos, movimientos y el control de las cuentas de caja y bancos"]
[]
[null,"[Guía] Lista de chequeo de revelaciones: NIC 26 − Planes de beneficio por retiro"]
[]
[null,"[Guía] Requisitos para pertenecer al régimen simplificado del IVA en el 2016"]
[]
[null,"[Contrato] Contrato de compraventa de vehículo automotor (automóvil o motocicleta)"]
[]
[null,"[Guía] Indicadores básicos para tener en cuenta en el 2016"]
[]
[null,"[Guía] Lista de chequeo de revelaciones: NIC 23 costos por préstamos y NIC 24 partes relacionadas"]
[]
[null,"[ORO] Parámetros claves en la elaboración de declaraciones tributarias durante el año 2016"]
[]
[null,"[Guía] Tarifas de la autorretención del CREE"]
[]
[null,"[Guía] Información laboral 2016"]
[]
[null,"[Calendario] Calendario Tributario de Bogotá D.C."]
[]
[null,"Ejercicios de conversión: caso práctico para la elaboración del ESFA en pymes"]
[]
[null,"[Guía] Tabla de retenciones en la fuente por renta año fiscal 2016"]
[]
[null,"[Guía] Cuestionario para la revisión y evaluación del Sistema de Control Interno"]
[]
[null,"[Guía] Lista de chequeo de revelaciones: NIC 21 -Efectos de las variaciones en las tasas de cambio de la moneda extranjera"]
[]
[null,"[Formato] Auditoría de conciliaciones bancarias"]
[]
[null,"[Guía] Lista de chequeo de revelaciones: NIC 19 -Beneficios a los empleados"]
[]
[null,"[Contrato] Modelo de contrato de corretaje inmobiliario"]
[]
[null,"[Calendario] Calendario Tributario 2016"]
[]
[null,"[Guía] Lista de chequeo de revelaciones: NIC 18 – Ingresos de actividades ordinarias"]
[]
[null,"[ORO] Retención en la fuente con procedimiento 1 para asalariados y demás empleados durante el 2016"]
[]
[null,"[Carta] Autorización para desocupar inmueble por finalización del contrato de arrendamiento –PH"]
[]
[null,"[Formato] Auditoría del disponible"]
[]
[null,"[ORO] Ejercicio de conciliación entre el resultado contable y los resultados fiscales"]
[]
[null,"[ORO] Retención en la fuente con procedimiento 2 para determinar porcentaje en diciembre de 2015"]
[]
[null,"[Acta] Constitución y Posesión de miembros del Comité Paritario de Seguridad y Salud en el Trabajo"]
[]
[null,"[Guía] Lista de chequeo de revelaciones: NIC 17 – Arrendamientos"]
[]
[null,"[Guía] Normatividad reglamentaria del impuesto a la riqueza y su complementario"]
[]
[null,"[Guía] Básica de Trabajo: Auxilio de transporte y dotación"]
[]
[null,"[Guía] Exógena: Estructura final del contenido de la Resolución DIAN 000220 de octubre 31 del 2014"]
[]
[null,"[Guía] Normatividad reglamentaria del Impuesto Nacional al Consumo"]
[]
[null,"[Guía] Básica de Trabajo: Incapacidad"]
[]
[null,"[Guía] Documento de Orientación Técnica 015. Copropiedades de Uso Residencial o Mixto (Grupo 1, 2 y 3)"]
[]
[null,"[Guía] Documento de Orientación Técnica 014. Entidades Sin Ánimo de Lucro"]
[]
[null,"[Guía] Documentos de Orientación Pedagógica para la aplicación de las NIIF, NIF y NAI"]
[]
[null,"[Guía] Documentos sobre Combinaciones de Negocios. Orientaciones Técnicas 010 y 011 del CTCP"]
[]
[null,"[Guía] Documentos sobre Activos y Pasivos Financieros. Orientaciones Técnicas 008 y 009 del CTCP"]
[]
[null,"[Guía] Documentos de Regulación sobre Propiedades, Planta y Equipos. Orientaciones Técnicas 006 y 007 del CTCP"]
[]
[null,"[Guía] Documentos de Adopción por primera vez. Orientaciones Técnicas 004 y 005 del CTCP"]
[]
[null,"[Guía] Documentos de Marco Conceptual. Orientaciones Técnicas 002 y 003 del CTCP"]
[]
[null,"[Guía] Documento de Orientación Técnica 001. Contabilidad bajo los nuevos marcos técnicos normativos"]
[]
[null,"[Guía] Estructura del contenido de la Resolución DIAN 112 de octubre 29 del 2015"]
[]
[null,"[Guía] Normatividad reglamentaria del CREE"]
[]
[null,"[Guía] Básica de Trabajo: acoso laboral"]
[]
[null,"[Formato] Planilla de Circularizaciones"]
[]
[null,"[Guía] Lista de chequeo de revelaciones: NIC 16 -Propiedades, Planta y Equipo"]
[]
[null,"[Guía] Obligaciones Tributarias de los Consorcios y Uniones Temporales"]
[]
[null,"[Guía] Básica de Trabajo: salario y jornada laboral"]
[]
[null,"[Guía] Lista de chequeo de revelaciones: NIC 12 – Impuesto a las Ganancias"]
[]
[null,"[Guía] Doctrinas de la DIAN sobre el CREE"]
[]
[null,"[Guía] Atención Integral en Seguridad y Salud en el Trabajo 2015 – Hipocausia neurosensorial inducida por ruido u ototóxicos"]
[]
[null,"[Guía] Atención Integral en Seguridad y Salud en el Trabajo 2015 – Bencenos y sus derivados"]
[]
[null,"[Guía] Atención Integral en Seguridad y Salud en el Trabajo 2015 – Trabajadores expuestos a organofosforados o carbamatos"]
[]
[null,"[Guía] Atención Integral en Seguridad y Salud en el Trabajo 2015 – Neumoconiosis"]
[]
[null,"[Guía] Atención Integral en Seguridad y Salud en el Trabajo 2015 – Hombro doloroso"]
[]
[null,"[Guía] Atención Integral en Seguridad y Salud en el Trabajo 2015 – Dermatitis de origen ocupacional"]
[]
[null,"[Guía] Atención Integral en Seguridad y Salud en el Trabajo 2015 – Cáncer de pulmón de origen ocupacional"]
[]
[null,"[Guía] Atención Integral en Seguridad y Salud en el Trabajo 2015 – Asma de origen ocupacional"]
[]
[null,"[Guía] Contratación del servicio doméstico"]
[]
[null,"[Guía] Atención Integral en Seguridad y Salud en el Trabajo 2015 – Desorden músculo esquelético de miembro superior"]
[]
[null,"[Guía] Atención Integral en Seguridad y Salud en el Trabajo 2015 – Dolor lumbar inespecífico y enfermedad discal de origen ocupacional"]
[]
[null,"[Carta] Carta de Gerencia"]
[]
[null,"[Guía] Lista de chequeo de revelaciones: NIC 11 – Contratos de Construcción"]
[]
[null,"[Dictamen] Modelo de certificación para acreditar que la empresa se encuentra al día en pagos de parafiscales y Seguridad Social"]
[]
[null,"[Guía] Lista de chequeo de revelaciones: NIC 10 – Hechos ocurridos después del período sobre el que se informa"]
[]
[null,"[Guía] Acuerdos sobre Promoción y Protección Recíproca de Inversiones"]
[]
[null,"[Guía] Diferencias existentes entre los distintos tipos societarios"]
[]
[null,"[Carta] Modelo de Circularización Proveedores"]
[]
[null,"[Guía] Revelaciones exigidas por la NIC 8 – Políticas Contables, Cambios en las Estimaciones Contables y Errores"]
[]
[null,"[Guía] Convenios para evitar la doble tributación de las Empresas de Navegación"]
[]
[null,"[Carta] De manifestaciones de la dirección al auditor, en una revisión de información financiera intermedia"]
[]
[null,"[Guía] Revelaciones exigidas por la NIC 7: Estado de Flujos de Efectivo"]
[]
[null,"[Guía] Revelaciones exigidas por la NIC 2: lista de chequeo"]
[]
[null,"[Guía] Obligaciones tributarias con vencimiento en septiembre del 2015"]
[]
[null,"[Carta] Modelo de Circularización Cartera"]
[]
[null,"[Formato] Medición de cuentas por cobrar sin intereses"]
[]
[null,"[Guía] Tabla de tarifas del IMAS para trabajadores por cuenta propia"]
[]
[null,"[Contrato] Promesa de Compraventa de Inmueble"]
[]
[null,"[Formato] Dictamen revisor fiscal con salvedades según Decreto 302 del 2015"]
[]
[null,"[Guía] Resumen de normas tributarias recopiladas en los decretos únicos reglamentarios de mayo del 2015"]
[]
[null,"[Formato] Dictamen Revisor Fiscal con abstención según Decreto 302 del 2015"]
[]
[null,"[Certificado] Modelo Declaración Grupo Empresarial o Situación de Control (personas jurídicas)"]
[]
[null,"[Contrato] Contrato de Suministro"]
[]
[null,"[Dictamen] Modelo dictamen Revisor Fiscal, Decreto 302"]
[]
[null,"[Guía] Modificaciones realizadas por la Ley 1739 del 2014 en materia de declaración de renta"]
[]
[null,"[Contrato] Cesión de Derechos Patrimoniales de Autor"]
[]
[null,"[Guía] Normatividad a tener en cuenta en la preparación de la declaración de renta personas naturales año gravable 2014"]
[]
[null,"[Liquidador] Modelo liquidación trabajadores periodos inferiores a 30 días"]
[]
[null,"[Contrato] Acta compromisoria para delegación de Tribunal de Arbitramento"]
[]
[null,"[Formato] Amortización de contrato de leasing"]
[]
[null,"[Guía] Tablas para definir el impuesto de renta de «empleados» por el sistema ordinario, IMAN e IMAS"]
[]
[null,"[Acta] Constitución de COPASST"]
[]
[null,"[ORO] Formularios 110 y 140 declaración Renta y CREE personas jurídicas fracción año gravable 2015 – versión básica"]
[]
[null,"[Guía] Requisitos para acceder al beneficio tributario por la generación de nuevos puestos de trabajo"]
[]
[null,"[Guía] Propuesta aplicación NIIF en propiedad horizontal"]
[]
[null,"[Guía] Declaración renta personas naturales: requisitos para exoneración en el año gravable 2014"]
[]
[null,"[Acta] Derecho de Petición reliquidación de pensión"]
[]
[null,"[Guía] Declaración de renta personas naturales 2014: Documentos necesarios para elaborarla"]
[]
[null,"[Guía] Modelo Política Contable de presentación y revelación de cuentas por cobrar"]
[]
[null,"[Guía] Guía para determinar si una persona natural es residente para efectos fiscales"]
[]
[null,"[Contrato] Contrato de Prestación de Servicios"]
[]
[null,"[Guía] Modelo Política Contable de instrumentos financieros: cuentas por cobrar"]
[]
[null,"[ORO] Formularios 110 y 240 con anexos y formato 1732 para declaración de renta de persona natural comerciante año gravable 2014"]
[]
[null,"[ORO] Formularios 210 y 230 con anexos de persona natural para declaración de renta año gravable 2014"]
[]
[null,"[Guía] Modelo de política contable de medición posterior de cuentas por cobrar"]
[]
[null,"[ORO] Formulario 210 para Declaración de Renta 2014 de Personas Naturales. Versión básica"]
[]
[null,"[ORO] Consecuencias contables y tributarias de las personas naturales y/o sucesiones ilíquidas obligadas o no a llevar contabilidad por el año 2014"]
[]
[null,"[Contrato] Arrendamiento de Local Comercial"]
[]
[null,"[Contrato] Contrato de Depósito"]
[]
[null,"[Guía] Revelaciones exigidas por la NIC 1: lista de chequeoFO"]
[]
[null,"[Liquidador] Modelo para definir porcentaje fijo de retención en la fuente sobre salarios en junio del 2015 (procedimiento 2)"]
[]
[null,"[Liquidador] Modelo básico para la elaboración de la nómina para pago de salarios"]
[]
[null,"[ORO] Formulario 110 adaptado para Declaración de Renta 2014 de Personas Naturales. Versión básica"]
[]
[null,"[Guía] Cuadro resumen de las características básicas de cada tipo de persona natural"]
[]
[null,"[Acta] Derecho de Petición requiriendo visita para inspección de sanidad"]
[]
[null,"[Formato] Modelo de Contrato de Transporte Terrestre de Carga"]
[]
[null,"[Guía] Plantilla elaboración Estados Financieros en NIIF para Supersociedades con XBRL EXPRESS"]
[]
[null,"​[ORO] Modelo para proyectar efectos 2014 del IMAN y el IMAS en el impuesto de renta de los empleados"]
[]
[null,"[Guía] Requisitos para acceder a la exención del impuesto de renta en San Andrés, Providencia y Santa Catalina"]
[]
[null,"[Guía] Presentación de solicitud para registro de Contratos de Importación de Tecnología"]
[]
[null,"[ORO] Modelo para proyectar efectos 2014 del IMAS en la declaración de renta de los trabajadores por cuenta propia"]
[]
[null,"[Guía] Clasificación tributaria por el año gravable 2014 de las personas naturales y sucesiones ilíquidas frente al impuesto de renta y ganancia ocasional"]
[]
[null,"[Contrato] Oferta de Seriedad"]
[]
[null,"[Formato] Modelo de Presupuesto y cálculo de la cuota de administración de una propiedad horizontal"]
[]
[null,"[Certificación] Modelo de Certificado de Retenciones en la Fuente año gravable 2014"]
[]
[null,"[Acta] Derecho de Petición informando apertura de establecimiento de comercio"]
[]
[null,"[Formato] Modelo de Contrato de Comodato Precario"]
[]
[null,"[Formato] Superfinanciera: valoración de Instrumentos Financieros Derivados Básicos"]
[]
[null,"[Formato] Modelo de Política general contable"]
[]
[null,"[Guía] Categorías de informantes de exógena por el año gravable 2014 y los formatos que deben usar"]
[]
[null,"[Contrato] Convenio de colaboración programa empresarial"]
[]
[null,"[Contrato] Modelo de Contrato de Maquila"]
[]
[null,"[Liquidador] Proyección de posibles resultados del «CREE menos sus autorretenciones» y de la «Sobretasa al CREE más y menos sus anticipos»"]
[]
[null,"[Plantillas] Reportes de Información exógena Tributaria a la DIAN año gravable 2014"]
[]
[null,"[Formato] Control Interno en la entrada de Inventarios"]
[]
[null,"[Guía] Casos de la depuración del Impuesto de Renta en las entidades del régimen tributario especial"]
[]
[null,"[Guía] Comparativo de partidas con que se depura el Impuesto de Renta y Complementarios y el CREE"]
[]
[null,"[ORO] Liquidación del Impuesto de Renta y CREE año gravable 2014 para pequeñas empresas de la Ley 1429 de 2010"]
[]
[null,"[Certificado] Modelo del certificado anual a socios y/o accionistas por el año 2014"]
[]
[null,"[Formato] Medición de pasivos financieros a costo amortizado"]
[]
[null,"[Acta] Notificación del arrendatario de no renovación del contrato"]
[]
[null,"[ORO] Formularios 110 y 140 declaración Renta y CREE personas jurídicas año gravable 2014 – versión básica"]
[]
[null,"[ORO] Formularios 110 y 140 con anexos y formato 1732 para personas jurídicas año gravable 2014"]
[]
[null,"[Formato] Tabla amortización de CDT"]
[]
[null,"[Contrato] Contrato de Fianza"]
[]
[null,"[Contrato] Contrato de Confidencialidad"]
[]
[null,"[Contrato] Fideicomiso Civil"]
[]
[null,"[Calendario] Calendario tributario automatizado para el 2015"]
[]
[null,"[Formato] Análisis de la situación financiera a largo plazo"]
[]
[null,"[Guía] Modelo para obligados a presentar las declaraciones tributarias de forma virtual"]
[]
[null,"[Guía] Plantilla para elaborar Estado de Situación Financiera de Apertura para reportar a Supersociedades"]
[]
[null,"[Liquidador] Cálculo costo renovación año 2015 de la Matrícula Mercantil y de los establecimientos de comercio"]
[]
[null,"[Certificación] Persona natural no obligada a llevar contabilidad para acreditar los indicadores de capacidad financiera para proponentes"]
[]
[null,"[Guía] Preguntas para clasificación de empresas en grupos de convergencia"]
[]
[null,"[Guía] Plantilla para elaborar Formulario Empresarial por el año 2014 a Supersociedades"]
[]
[null,"[Guía] Revisión Autorretención del CREE"]
[]
[null,"[Acta] Modelo de certificación para acreditar el pago de aportes a la seguridad social y aportes parafiscales de proponentes"]
[]
[null,"[Guía] Indice del Marco Técnico Normativo de las Normas de Aseguramiento de la Información"]
[]
[null,"[Formato] Plan de Implementación NIIF para empresas del Grupo 2"]
[]
[null,"[Guía] Cumplimiento oportuno de obligaciones tributarias"]
[]
[null,"[Reclamación] Demanda para iniciar Proceso Ordinario Laboral"]
[]
[null,"[Formato] Cuestionario de Auditoría para Área de Tesorería"]
[]
[null,"[Formato] Informe de Gestión año 2014"]
[]
[null,"[Formato] Documento Constitución Comité NIIF"]
[]
[null,"[Guía] Informes Superintendencia de Sociedades"]
[]
[null,"[Certificación] Formulario 220 certificación pagos y retenciones a “empleados” por el año gravable 2014"]
[]
[null,"[Contrato] Solicitud de transacción ante Juez Laboral"]
[]
[null,"[Guía] Planeación obligaciones tributarias 2015"]
[]
[null,"[Acta] Estructuración de la Auditoría"]
[]
[null,"[Formato] Política contable de Presentación de Estados Financieros"]
[]
[null,"[Guía] Conciliación entre resultado contable y resultados fiscales 2014"]
[]
[null,"[Formato] Anexo declaración de renta o balance"]
[]
[null,"[Liquidador] Retención en la fuente con procedimiento 1 a asalariados y demás empleados durante el 2015"]
[]
[null,"[Contrato] Encargo fiduciario con destinación específica"]
[]
[null,"[Formato] Concordancias entre las NIIF y los PCGA"]
[]
[null,"[Guía] Modelo cesión de acciones"]
[]
[null,"[Guía] Factura de Venta"]
[]
[null,"[Dictamen] Modelo de dictamen de entidades del Grupo 1"]
[]
[null,"[Guía] Información a tener en cuenta para realizar el cierre contable 2014"]
[]
[null,"[Guía] Parámetros claves en la elaboración de declaraciones tributarias durante el año 2015"]
[]
[null,"[Calendario] Calendario Tributario 2015"]
[]
[null,"[Acta] Carta de compromiso de auditoría"]
[]
[null,"[Guía] Indicadores básicos 2015"]
[]
[null,"[Guía] Información laboral a tener en cuenta a partir del 1° de enero de 2015"]
[]
[null,"Guía de Referencia 2015"]
[]
[null,"6 Liquidadores a tener en cuenta para este año 2015"]
[]
[null,"[Guía] Retención en la fuente a título de los impuestos nacionales durante el 2015"]
[]
[null,"[Guía] Cuadro temático con los cambios introducidos por la Reforma Tributaria Ley 1739 de 2014"]
[]
[null,"[Liquidador] Modelo para definir porcentaje fijo retención sobre salarios en diciembre de 2014 (procedimiento 2)"]
[]
[null,"[Guía] Plantilla para clasificar una entidad en un Grupo de aplicación de las NIIF en Colombia"]
[]
[null,"[Guía] Estructura del contenido de la Resolución DIAN 000220 de oct. 31 de 2014"]
[]
[null,"[Liquidador] Liquidador contrato de trabajo a término fijo – Héctor Fernando Muñoz E."]
[]
[null,"[Guía] Manejo del IVA y retención por renta de las empresas que manejan A.I.U."]
[]
[null,"[Guía] Casos de aplicación del A.I.U."]
[]
[null,"[Guía] Códigos de responsabilidades tributarias que le pueden figurar a un contribuyente en su RUT"]
[]
[null,"[Certificaciones] Modelo para certificación de experiencia técnico contable en trámite de solicitud tarjeta profesional"]
[]
[null,"[Certificaciones] Modelo Certificación de Contador para solicitar autorización reducción retención de IVA"]
[]
[null,"[Contratos] Acuerdo confidencialidad para miembros del Comité de Convivencia"]
[]
[null,"[Guía] Cronograma para aplicación de Estándares NIIF"]
[]
[null,"[Liquidador] Formulario 210 para Declaración de Renta 2013 de Personas Naturales. Versión básica"]
[]
[null,"[Liquidador avanzado] Diligenciamiento de formularios 210 y 230 con anexos para la declaración de renta 2013 de una persona natural no obligada a llevar contabilidad"]
[]
[null,"[Certificación] Modelo certificación de contador para actualizar el RUT por cese de actividades gravadas con IVA"]
[]
[null,"[Liquidador] Cálculo de intereses presuntivos sobre préstamos entre sociedades y socios durante 2014"]
[]
[null,"[Liquidador] Modelo para definir porcentaje fijo de retención en la fuente sobre salarios en Junio de 2014 (procedimiento 2)"]
[]
[null,"[Guía] Plantilla para elaborar el ESFA individual a enero 1 de 2014 en entidades del grupo 1"]
[]
[null,"[Liquidador] Proyección de efectos del IMAS en la declaración de renta de los trabajadores por cuenta propia"]
[]
[null,"[Liquidador] Proyección de efectos del IMAN y el IMAS en el impuesto de renta de los empleados"]
[]
[null,"[Liquidador] Plantilla para cálculo automático impuesto IMAS de trabajadores por cuenta propia"]
[]
[null,"[Liquidador Avanzado] Diligenciamiento de formularios 110 y 240 con anexos y formato 1732 para la declaración de renta de una persona natural comerciante año gravable 2013"]
[]
[null,"[Liquidador] Formulario 110 adaptado para Declaración de Renta 2013 Personas Naturales. Versión básica"]
[]
[null,"[Guía] Clasificación de las personas naturales frente al impuesto de renta luego de la Ley 1607"]
[]
[null,"[Guía] Modelo básico con la estructura del nuevo formato 1001 para el reporte de exógena tributaria 2013"]
[]
[null,"[Guía] Plantilla para elaborar Informe de Prácticas Empresariales por el 2013"]
[]
[null,"[Certificado] Modelo del certificado anual a socios y/o accionistas por el año 2013"]
[]
[null,"[Liquidadores] Reportes de Información exógena Tributaria a la DIAN año gravable 2013"]
[]
[null,"[Guía] Clasificación general de personas jurídicas en relación con el impuesto de renta y complementarios y del CREE, por el año gravable 2013"]
[]
[null,"[Liquidador] Cálculo costo renovación año 2014 de la matrícula mercantil y los establecimientos de comercio"]
[]
[null,"[Liquidador] Formulario 110 y 140 Declaración renta y CREE de Personas jurídicas año gravable 2013. Plantilla básica"]
[]
[null,"[Guía] Resumen de las categorías de informantes de Exógena por el año gravable 2013 y los formatos que deben usar"]
[]
[null,"[Certificaciones] Certificado anual exigido a los contratistas que cobren rentas de trabajo y depuración de la base para efectos de retención en la fuente"]
[]
[null,"[ORO] Formularios 110 y 140 con anexos y formato 1732 año gravable 2013"]
[]
[null,"[Liquidador] Depuración impuesto renta año gravable 2013 para las copropiedades comerciales y mixtas"]
[]
[null,"[Guía] Cierre contable 2013. Lista de chequeo para verificación de información"]
[]
[null,"[Guía] Llegó el momento de utilizar las tarifas de honorarios profesionales y remuneración para Contadores Públicos"]
[]
[null,"[Guías] Solicitudes de devolución y/o compensación por saldos a favor generados en declaraciones de renta y ventas"]
[]
[null,"[Certificación] Formulario 220 certificación pagos y retenciones a «empleados» por el año gravable 2013"]
[]
[null,"[Liquidación] Conciliación entre la renta contable y la renta fiscal"]
[]
[null,"[Liquidador] Retención en la fuente con procedimiento 1 a asalariados y demás «empleados» durante el 2014"]
[]
[null,"[Calendario] Calendario tributario automatizado para el 2014"]
[]
[null,"[Guía] Requisitos para pertenecer al Régimen Simplificado en el 2014"]
[]
[null,"[Guía] Cambios a los textos de los Decretos 2706 y 2784 de 2012 efectuados con Decretos 3019 y 3024 de 2013"]
[]
[null,"[Guía] Retención en la fuente a título de los impuestos nacionales, año fiscal 2014"]
[]
[null,"[Calendario] Calendario Tributario 2014"]
[]
[null,"[Guía] Información laboral a tener en cuenta a partir del 1° de enero de 2014"]
[]
[null,"[Formularios] Formato Único Nacional de Autorización de Trabajo para niños, niñas o adolescentes (NNA)"]
[]
[null,"[Liquidador] Modelo para estimar reducción de aportes parafiscales y EPS según la Ley 1607"]
[]
[null,"[Guía] ABC de la afiliación a Riesgos Laborales de Independientes. Decreto 723 de 2013"]
[]
[null,"[Liquidador] Cálculo del punto de equilibrio y simulación de utilidad deseada – Ower Cassetta"]
[]
[null,"[Formato] Reclamación directa (Propuesto por la SIC)"]
[]
[null,"[Formato] Circularización bancaria de información financiera"]
[]
[null,"[Acta] Circular a contratistas por pago de seguridad social"]
[]
[null,"[Autorización] Descuento en salario de libranza"]
[]
[null,"[Autorización] Pagaré y Carta de Instrucción"]
[]
[null,"[Guía] Glosario básico para aplicación de estándares internacionales de información financiera"]
[]
[null,"[Guía] Conoce como esta clasificada su empresa de acuerdo a las NIIF"]
[]
[null,"[Guía] Comunicado para notificar en la DIAN la delegación de la responsabilidad para firmar las declaraciones"]
[]
[null,"[Liquidador] Cálculo valores por salud y pensiones que al independiente se le restarían en el proceso de retención"]
[]
[null,"[Liquidador] Convertir tasa efectiva a nominal – Jhony José Duran"]
[]
[null,"[Guía] Las preguntas más frecuentes sobre la contratación del trabajo doméstico"]
[]
[null,"[Contrato] Contrato de EXW (Ex – Works)"]
[]
[null,"[Certificado] Donaciones en dinero o en especie para entidades sin ánimo de lucro"]
[]
[null,"[Guía] Cuadro sinóptico sobre quiénes deben actuar como agentes de retención de IVA y con qué tarifas"]
[]
[null,"[Cuadro sinóptico] Diferencias entre Contribuyentes y No Contribuyentes del Impuesto de Renta y Complementarios"]
[]
[null,"[Liquidador] Modelo para cálculo de retención en la fuente a independientes con tabla de la Ley 1527 de 2012"]
[]
[null,"[Guía] Consejos prácticos sobre el nuevo estatuto del consumidor – SuperIndustria y Comercio"]
[]
[null,"[Guía] Cartilla. Mincomercio pública documento unificado sobre NIIF"]
[]
[null,"[Autorización] Para que un tercero solicite en la DIAN los mecanismos de firma digital"]
[]
[null,"[Guía] Indicadores básicos a tener en cuenta al finalizar 2011 e iniciar el 2012"]
[]
[null,"[Liquidador] Anexo a nota contable para actualización de valorizaciones o provisiones sobre activos fijos al cierre del año"]
[]
[null,"[Acta] Acta de constitución y estatutos de Entidad Sin Ánimo de Lucro (fundación, corporación, asociación)"]
[]
[null,"[Acta] Informe en propiedad horizontal, con salvedad – Jesús S. Blanquicett Carmona"]
[]
[null,"[Liquidador] Modelo para definir límite de pagos no salariales y su aporte a seguridad social"]
[]
[null,"[Guía] Cuestionario de control para verificar cumplimiento de requisitos de facturación en papel o por computador"]
[]
[null,"[Acta] Reunión extraordinaria, Junta Directiva autorizando a Representante Legal a suscribir créditos"]
[]
[null,"[Liquidador] Conversión de Tasas de Interés – Edicson Ortiz Dicelis"]
[]
[null,"[Derecho de Petición] Devolución de pagarés o letras pagadas"]
[]
[null,"[Liquidador] Modelo para determinar obligaciones comerciales o fiscales según el patrimonio o los ingresos"]
[]
[null,"[Edicto] Aviso de trabajador fallecido para pago de salarios y prestaciones adeudadas"]
[]
[null,"[Guía] Funciones, Responsabilidades y Conocimientos para aplicar al cargo de Contador General de una empresa"]
[]
[null,"[Liquidador] Liquidador de intereses de mora de obligaciones tributarias – Jose Miguel Barbosa M."]
[]
[null,"[Liquidador] Cálculo de retención a independientes con un único contrato no superior a 300 UVT"]
[]
[null,"[Convocatoria] Citación a Asamblea de Propietarios de Propiedad Horizontal"]
[]
[null,"[Certificado] Comprobante de Pago de los Intereses de Cesantía"]
[]
[null,"[Acta] Modelo de Acción y nota de Cesión"]
[]
[null,"[Contrato] Contrato de Arrendamiento de Vehículo Automotor para Carga o Transporte"]
[]
[null,"[Liquidador] Liquidador contrato de trabajo a término fijo – Fredy Robinson Gil Zea"]
[]
[null,"[Acta] Acta para transformación de Sociedad Comanditaria por Acciones a SAS"]
[]
[null,"[Acta] Modelo Acción de Tutela para reclamar incapacidad o licencia negada según el Decreto 1804 de 1999"]
[]
[null,"[Acta] Acta de Junta para transformar Sociedad en Comandita en SAS"]
[]
[null,"[Contrato] Minuta de Comodato o Préstamo de uso"]
[]
[null,"[Acta] Minuta compraventa de inmueble con reserva de usufructo"]
[]
[null,"[Acta] Asamblea Extraordinaria de Accionistas para la entrega de Acciones a Acreedores"]
[]
[null,"[Guía] Cuadro comparativo de modificaciones hechas por la Ley 1328/09 al Estatuto Orgánico Financiero"]
[]
[null,"[Acta] Reforma al Componente Social de una Sociedad Limitada – (Cesión de Cuotas)"]
[]
[null,"[Contrato] Contrato de Suministro de Alimentos (Outsourcing de Casino)"]
[]
[null,"[Liquidador] Liquidador de jornadas ordinarias y extraordinarias de trabajo – Juan M. Beltrán V."]
[]
[null,"[Acta] Modelo de Minuta para la Constitución de una SAS. Sociedad por Acciones Simplificada – Francisco Reyes"]
[]
[null,"[Liquidador] Herramienta calculadora de tarifas en la profesión de Contador Público"]
[]
[null,"[Guía] Listado de los códigos para identificar en la PILA a las distintas administradoras de la seguridad social"]
[]
[null,"[Contrato] Contrato de Fabricación de Productos"]
[]
[null,"[Acta] Segunda Convocatoria a Asamblea General Ordinaria de Socios"]
[]
[null,"[Acta] Cesión y Venta de Cuotas entre los mismos Socios"]
[]
[null,"[Guía] Resumen de Parámetros Clave para la elaboración de Declaraciones Tributarias durante el 2009"]
[]
[null,"[Contrato] Modelo para la elaboración de un Contrato de Suministro"]
[]
[null,"[Guía] Diferencias entre Contribuyentes y No Contribuyentes del Impuesto sobre la Renta y Complementarios"]
[]
[null,"[Acta] Modelo Acción de Tutela para reclamar incapacidades"]
[]
[null,"[Acta] Acta de Asamblea Ordinaria de Socios o Accionistas"]
[]
[null,"[Contrato] Modelo de Contrato de Compraventa de Carro o Moto"]
[]
[null,"[Guía] Cuestionario para preparar la DR 2007 de Personas Naturales"]
[]
[null,"[Acta] Modelo de dictamen sin salvedades que la Revisoría Fiscal expediría para el cierre del periodo 2007"]
[]
[null,"[Guía] Clasificación actual de los Bienes Corporales Muebles en relación con el Impuesto sobre las Ventas"]
[]
[null,"[Acta] Modelo para la Elaboración de un Reglamento Interno de Trabajo"]
[]
[null,"[Liquidador] Modelo de Consolidación accionaria exigida en el artículo 130 del decreto 2649 de 1993"]
[]
[null,"[Guía] Información necesaria para efectos contables, laborales y tributarios tanto en el cierre contable como para la Declaración de Renta de año gravables 2006-2007"]
[]
[null,"[Liquidador] Modelo para elaborar un Resumen de Ajustes propuestos a los Estados Financieros en el desarrollo de una auditoría externa o Revisoría Fiscal"]